Workbook

Sheet Informations
A23: Page de téléchargement et introduction aux méthodes de calcul
A24: https://cetiso.fr/chaines-de-cotes
A26: Guide d'utilisation
A27: https://cetiso.fr/outil-cetiso-de-calcul-des-chaines-de-cotes-guide-dutilisation
A29: Classeur complet disponible sur demande :
A30: https://cetiso.fr/contact-cetiso

Sheet AFC Vierge
C1: Chaînes de cotes (à partir d'Excel 2013) | G1: Aide | I1: N° | J1: Rév. | K1: Nom | N1: Date
C2: Projet : | D2: Formation | I2: 0 | J2: 1 | K2: JY JACOTIN | N2: 46183
A32: Fonction : | C32: Effort de déverouillage
A33: Calcul retenu | C33: Param. | D33: Exigence fonctionnelle CFmin | H33: CFmin | I33: Calcmin | J33: Exigence fonctionnelle CFmax | N33: CFmax | O33: Calcmax
A34: Proba. Monte Carlo | C34: =IFERROR(IF(INDEX(E52:E56,MATCH(A34,A52:A56,0))="","Aucun",INDEX(E52:E56,MATCH(A34,A52:A56,0))),"") -> 2700 | D34: Risque de dév. en décélération | H34: 60.5 | I34: =IFERROR(INDEX(N52:N56,MATCH(A34,A52:A56,0)),"") -> 60.56245191 | J34: Effort utilisateur trop important | N34: 61.5 | O34: =IFERROR(INDEX(O52:O56,MATCH(A34,A52:A56,0)),"") -> 61.43754809
A36: Maillon | B36: Pièce | C36: Description cote | D36: Nom. | E36: Ajust. | F36: Tol min | G36: Tol max | H36: Sens | I36: Sensib. | J36: Moy. | K36: ITx|S| | L36: (ITxS)² | M36: ±δμ adm. | N36: C. Arith. | O36: C. Quad | P36: S. Orient | Q36: Déport | R36: Appui/2 | S36: S. CAO | T36: CF moy. | U36: Delta | V36: CF(delta)
A37: a1 | B37: AAA 12345601 A | C37: Loca Hauteur | D37: 14 | F37: =-Tab_Maillons_AFC_1[[#This Row],[Tol max]] -> -0.1 | G37: 0.1 | H37: + | I37: =IF(Tab_Maillons_AFC_1[[#This Row],[Sens]]="+",1,IF(Tab_Maillons_AFC_1[[#This Row],[Sens]]="-",-1,IF(Tab_Maillons_AFC_1[[#This Row],[Sens]]="+½ cote",0.5,IF(Tab_Maillons_AFC_1[[#This Row],[Sens]]="-½ cote",-0.5,IF(Tab_Maillons_AFC_1[[#This Row],[Sens]]="S Orient",Tab_Maillons_AFC_1[[#This Row],[S. Orient]],IF(Tab_Maillons_AFC_1[[#This Row],[Sens]]="S CAO",ABS(Tab_Maillons_AFC_1[[#This Row],[S. CAO]]),IF(Tab_Maillons_AFC_1[[#This Row],[Sens]]="",0,"Erreur"))))))) -> 1 | J37: =IF(Tab_Maillons_AFC_1[[#This Row],[Sens]]<>"S CAO",(Tab_Maillons_AFC_1[[#This Row],[Nom.]]+(Tab_Maillons_AFC_1[[#This Row],[Tol min]]+Tab_Maillons_AFC_1[[#This Row],[Tol max]])/2)*Tab_Maillons_AFC_1[[#This Row],[Sensib.]],(Tab_Maillons_AFC_1[[#This Row],[Nom.]]+(Tab_Maillons_AFC_1[[#This Row],[Tol min]]+Tab_Maillons_AFC_1[[#This Row],[Tol max]])/2)) -> 14 | K37: =ABS(Tab_Maillons_AFC_1[[#This Row],[Tol max]]-Tab_Maillons_AFC_1[[#This Row],[Tol min]])*ABS(Tab_Maillons_AFC_1[[#This Row],[Sensib.]]) -> 0.2 | L37: =Tab_Maillons_AFC_1[[#This Row],[ITx|S|]]^2 -> 0.04 | M37: =IF(Decentrage_admis,Tab_Maillons_AFC_1[[#This Row],[ITx|S|]]/Decentrage_admis,0) -> 0.025 | N37: =IF(Tab_Maillons_AFC_1[[#Totals],[ITx|S|]],Tab_Maillons_AFC_1[[#This Row],[ITx|S|]]/Tab_Maillons_AFC_1[[#Totals],[ITx|S|]],0) -> 0.1428571429 | O37: =IF(Tab_Maillons_AFC_1[[#Totals],[(ITxS)²]],Tab_Maillons_AFC_1[[#This Row],[(ITxS)²]]/Tab_Maillons_AFC_1[[#Totals],[(ITxS)²]],0) -> 0.1428571429 | P37: =IF(Tab_Maillons_AFC_1[[#This Row],[Appui/2]]<>0,Tab_Maillons_AFC_1[[#This Row],[Déport]]/Tab_Maillons_AFC_1[[#This Row],[Appui/2]],1) -> 1 | S37: =IF(Tab_Maillons_AFC_1[[#This Row],[Delta]]<>0,(Tab_Maillons_AFC_1[[#This Row],[CF(delta)]]-Tab_Maillons_AFC_1[[#This Row],[CF moy.]])/Tab_Maillons_AFC_1[[#This Row],[Delta]],1) -> 1 | T37: 0 | U37: 0 | V37: 0
A38: b2 | B38: BBB 12345602 A | C38: Loca Largeur | D38: 15 | F38: =-Tab_Maillons_AFC_1[[#This Row],[Tol max]] -> -0.1 | G38: 0.1 | H38: + | I38: =IF(Tab_Maillons_AFC_1[[#This Row],[Sens]]="+",1,IF(Tab_Maillons_AFC_1[[#This Row],[Sens]]="-",-1,IF(Tab_Maillons_AFC_1[[#This Row],[Sens]]="+½ cote",0.5,IF(Tab_Maillons_AFC_1[[#This Row],[Sens]]="-½ cote",-0.5,IF(Tab_Maillons_AFC_1[[#This Row],[Sens]]="S Orient",Tab_Maillons_AFC_1[[#This Row],[S. Orient]],IF(Tab_Maillons_AFC_1[[#This Row],[Sens]]="S CAO",ABS(Tab_Maillons_AFC_1[[#This Row],[S. CAO]]),IF(Tab_Maillons_AFC_1[[#This Row],[Sens]]="",0,"Erreur"))))))) -> 1 | J38: =IF(Tab_Maillons_AFC_1[[#This Row],[Sens]]<>"S CAO",(Tab_Maillons_AFC_1[[#This Row],[Nom.]]+(Tab_Maillons_AFC_1[[#This Row],[Tol min]]+Tab_Maillons_AFC_1[[#This Row],[Tol max]])/2)*Tab_Maillons_AFC_1[[#This Row],[Sensib.]],(Tab_Maillons_AFC_1[[#This Row],[Nom.]]+(Tab_Maillons_AFC_1[[#This Row],[Tol min]]+Tab_Maillons_AFC_1[[#This Row],[Tol max]])/2)) -> 15 | K38: =ABS(Tab_Maillons_AFC_1[[#This Row],[Tol max]]-Tab_Maillons_AFC_1[[#This Row],[Tol min]])*ABS(Tab_Maillons_AFC_1[[#This Row],[Sensib.]]) -> 0.2 | L38: =Tab_Maillons_AFC_1[[#This Row],[ITx|S|]]^2 -> 0.04 | M38: =IF(Decentrage_admis,Tab_Maillons_AFC_1[[#This Row],[ITx|S|]]/Decentrage_admis,0) -> 0.025 | N38: =IF(Tab_Maillons_AFC_1[[#Totals],[ITx|S|]],Tab_Maillons_AFC_1[[#This Row],[ITx|S|]]/Tab_Maillons_AFC_1[[#Totals],[ITx|S|]],0) -> 0.1428571429 | O38: =IF(Tab_Maillons_AFC_1[[#Totals],[(ITxS)²]],Tab_Maillons_AFC_1[[#This Row],[(ITxS)²]]/Tab_Maillons_AFC_1[[#Totals],[(ITxS)²]],0) -> 0.1428571429 | P38: =IF(Tab_Maillons_AFC_1[[#This Row],[Appui/2]]<>0,Tab_Maillons_AFC_1[[#This Row],[Déport]]/Tab_Maillons_AFC_1[[#This Row],[Appui/2]],1) -> 1 | S38: =IF(Tab_Maillons_AFC_1[[#This Row],[Delta]]<>0,(Tab_Maillons_AFC_1[[#This Row],[CF(delta)]]-Tab_Maillons_AFC_1[[#This Row],[CF moy.]])/Tab_Maillons_AFC_1[[#This Row],[Delta]],1) -> 1 | T38: =IF(Tab_Maillons_AFC_1[[#This Row],[Maillon]]=Tab_Maillons_AFC_1[[#This Row],[Maillon]], INDEX(Tab_Maillons_AFC_1[CF moy.],1), "") -> 0
A39: c3 | B39: CCC 12345603 A | C39: Loca hauteur | D39: 12 | F39: =-Tab_Maillons_AFC_1[[#This Row],[Tol max]] -> -0.1 | G39: 0.1 | H39: + | I39: =IF(Tab_Maillons_AFC_1[[#This Row],[Sens]]="+",1,IF(Tab_Maillons_AFC_1[[#This Row],[Sens]]="-",-1,IF(Tab_Maillons_AFC_1[[#This Row],[Sens]]="+½ cote",0.5,IF(Tab_Maillons_AFC_1[[#This Row],[Sens]]="-½ cote",-0.5,IF(Tab_Maillons_AFC_1[[#This Row],[Sens]]="S Orient",Tab_Maillons_AFC_1[[#This Row],[S. Orient]],IF(Tab_Maillons_AFC_1[[#This Row],[Sens]]="S CAO",ABS(Tab_Maillons_AFC_1[[#This Row],[S. CAO]]),IF(Tab_Maillons_AFC_1[[#This Row],[Sens]]="",0,"Erreur"))))))) -> 1 | J39: =IF(Tab_Maillons_AFC_1[[#This Row],[Sens]]<>"S CAO",(Tab_Maillons_AFC_1[[#This Row],[Nom.]]+(Tab_Maillons_AFC_1[[#This Row],[Tol min]]+Tab_Maillons_AFC_1[[#This Row],[Tol max]])/2)*Tab_Maillons_AFC_1[[#This Row],[Sensib.]],(Tab_Maillons_AFC_1[[#This Row],[Nom.]]+(Tab_Maillons_AFC_1[[#This Row],[Tol min]]+Tab_Maillons_AFC_1[[#This Row],[Tol max]])/2)) -> 12 | K39: =ABS(Tab_Maillons_AFC_1[[#This Row],[Tol max]]-Tab_Maillons_AFC_1[[#This Row],[Tol min]])*ABS(Tab_Maillons_AFC_1[[#This Row],[Sensib.]]) -> 0.2 | L39: =Tab_Maillons_AFC_1[[#This Row],[ITx|S|]]^2 -> 0.04 | M39: =IF(Decentrage_admis,Tab_Maillons_AFC_1[[#This Row],[ITx|S|]]/Decentrage_admis,0) -> 0.025 | N39: =IF(Tab_Maillons_AFC_1[[#Totals],[ITx|S|]],Tab_Maillons_AFC_1[[#This Row],[ITx|S|]]/Tab_Maillons_AFC_1[[#Totals],[ITx|S|]],0) -> 0.1428571429 | O39: =IF(Tab_Maillons_AFC_1[[#Totals],[(ITxS)²]],Tab_Maillons_AFC_1[[#This Row],[(ITxS)²]]/Tab_Maillons_AFC_1[[#Totals],[(ITxS)²]],0) -> 0.1428571429 | P39: =IF(Tab_Maillons_AFC_1[[#This Row],[Appui/2]]<>0,Tab_Maillons_AFC_1[[#This Row],[Déport]]/Tab_Maillons_AFC_1[[#This Row],[Appui/2]],1) -> 1 | S39: =IF(Tab_Maillons_AFC_1[[#This Row],[Delta]]<>0,(Tab_Maillons_AFC_1[[#This Row],[CF(delta)]]-Tab_Maillons_AFC_1[[#This Row],[CF moy.]])/Tab_Maillons_AFC_1[[#This Row],[Delta]],1) -> 1 | T39: =IF(Tab_Maillons_AFC_1[[#This Row],[Maillon]]=Tab_Maillons_AFC_1[[#This Row],[Maillon]], INDEX(Tab_Maillons_AFC_1[CF moy.],1), "") -> 0
A40: d4 | B40: DDD 12345604 A | C40: Loca Hauteur | D40: 20 | F40: =-Tab_Maillons_AFC_1[[#This Row],[Tol max]] -> -0.1 | G40: 0.1 | H40: + | I40: =IF(Tab_Maillons_AFC_1[[#This Row],[Sens]]="+",1,IF(Tab_Maillons_AFC_1[[#This Row],[Sens]]="-",-1,IF(Tab_Maillons_AFC_1[[#This Row],[Sens]]="+½ cote",0.5,IF(Tab_Maillons_AFC_1[[#This Row],[Sens]]="-½ cote",-0.5,IF(Tab_Maillons_AFC_1[[#This Row],[Sens]]="S Orient",Tab_Maillons_AFC_1[[#This Row],[S. Orient]],IF(Tab_Maillons_AFC_1[[#This Row],[Sens]]="S CAO",ABS(Tab_Maillons_AFC_1[[#This Row],[S. CAO]]),IF(Tab_Maillons_AFC_1[[#This Row],[Sens]]="",0,"Erreur"))))))) -> 1 | J40: =IF(Tab_Maillons_AFC_1[[#This Row],[Sens]]<>"S CAO",(Tab_Maillons_AFC_1[[#This Row],[Nom.]]+(Tab_Maillons_AFC_1[[#This Row],[Tol min]]+Tab_Maillons_AFC_1[[#This Row],[Tol max]])/2)*Tab_Maillons_AFC_1[[#This Row],[Sensib.]],(Tab_Maillons_AFC_1[[#This Row],[Nom.]]+(Tab_Maillons_AFC_1[[#This Row],[Tol min]]+Tab_Maillons_AFC_1[[#This Row],[Tol max]])/2)) -> 20 | K40: =ABS(Tab_Maillons_AFC_1[[#This Row],[Tol max]]-Tab_Maillons_AFC_1[[#This Row],[Tol min]])*ABS(Tab_Maillons_AFC_1[[#This Row],[Sensib.]]) -> 0.2 | L40: =Tab_Maillons_AFC_1[[#This Row],[ITx|S|]]^2 -> 0.04 | M40: =IF(Decentrage_admis,Tab_Maillons_AFC_1[[#This Row],[ITx|S|]]/Decentrage_admis,0) -> 0.025 | N40: =IF(Tab_Maillons_AFC_1[[#Totals],[ITx|S|]],Tab_Maillons_AFC_1[[#This Row],[ITx|S|]]/Tab_Maillons_AFC_1[[#Totals],[ITx|S|]],0) -> 0.1428571429 | O40: =IF(Tab_Maillons_AFC_1[[#Totals],[(ITxS)²]],Tab_Maillons_AFC_1[[#This Row],[(ITxS)²]]/Tab_Maillons_AFC_1[[#Totals],[(ITxS)²]],0) -> 0.1428571429 | P40: =IF(Tab_Maillons_AFC_1[[#This Row],[Appui/2]]<>0,Tab_Maillons_AFC_1[[#This Row],[Déport]]/Tab_Maillons_AFC_1[[#This Row],[Appui/2]],1) -> 1 | S40: =IF(Tab_Maillons_AFC_1[[#This Row],[Delta]]<>0,(Tab_Maillons_AFC_1[[#This Row],[CF(delta)]]-Tab_Maillons_AFC_1[[#This Row],[CF moy.]])/Tab_Maillons_AFC_1[[#This Row],[Delta]],1) -> 1 | T40: =IF(Tab_Maillons_AFC_1[[#This Row],[Maillon]]=Tab_Maillons_AFC_1[[#This Row],[Maillon]], INDEX(Tab_Maillons_AFC_1[CF moy.],1), "") -> 0
A41: e5 | B41: EEE 12345605 A | C41: Sym Rainure | D41: 0 | F41: =-Tab_Maillons_AFC_1[[#This Row],[Tol max]] -> -0.1 | G41: 0.1 | H41: + | I41: =IF(Tab_Maillons_AFC_1[[#This Row],[Sens]]="+",1,IF(Tab_Maillons_AFC_1[[#This Row],[Sens]]="-",-1,IF(Tab_Maillons_AFC_1[[#This Row],[Sens]]="+½ cote",0.5,IF(Tab_Maillons_AFC_1[[#This Row],[Sens]]="-½ cote",-0.5,IF(Tab_Maillons_AFC_1[[#This Row],[Sens]]="S Orient",Tab_Maillons_AFC_1[[#This Row],[S. Orient]],IF(Tab_Maillons_AFC_1[[#This Row],[Sens]]="S CAO",ABS(Tab_Maillons_AFC_1[[#This Row],[S. CAO]]),IF(Tab_Maillons_AFC_1[[#This Row],[Sens]]="",0,"Erreur"))))))) -> 1 | J41: =IF(Tab_Maillons_AFC_1[[#This Row],[Sens]]<>"S CAO",(Tab_Maillons_AFC_1[[#This Row],[Nom.]]+(Tab_Maillons_AFC_1[[#This Row],[Tol min]]+Tab_Maillons_AFC_1[[#This Row],[Tol max]])/2)*Tab_Maillons_AFC_1[[#This Row],[Sensib.]],(Tab_Maillons_AFC_1[[#This Row],[Nom.]]+(Tab_Maillons_AFC_1[[#This Row],[Tol min]]+Tab_Maillons_AFC_1[[#This Row],[Tol max]])/2)) -> 0 | K41: =ABS(Tab_Maillons_AFC_1[[#This Row],[Tol max]]-Tab_Maillons_AFC_1[[#This Row],[Tol min]])*ABS(Tab_Maillons_AFC_1[[#This Row],[Sensib.]]) -> 0.2 | L41: =Tab_Maillons_AFC_1[[#This Row],[ITx|S|]]^2 -> 0.04 | M41: =IF(Decentrage_admis,Tab_Maillons_AFC_1[[#This Row],[ITx|S|]]/Decentrage_admis,0) -> 0.025 | N41: =IF(Tab_Maillons_AFC_1[[#Totals],[ITx|S|]],Tab_Maillons_AFC_1[[#This Row],[ITx|S|]]/Tab_Maillons_AFC_1[[#Totals],[ITx|S|]],0) -> 0.1428571429 | O41: =IF(Tab_Maillons_AFC_1[[#Totals],[(ITxS)²]],Tab_Maillons_AFC_1[[#This Row],[(ITxS)²]]/Tab_Maillons_AFC_1[[#Totals],[(ITxS)²]],0) -> 0.1428571429 | P41: =IF(Tab_Maillons_AFC_1[[#This Row],[Appui/2]]<>0,Tab_Maillons_AFC_1[[#This Row],[Déport]]/Tab_Maillons_AFC_1[[#This Row],[Appui/2]],1) -> 1 | S41: =IF(Tab_Maillons_AFC_1[[#This Row],[Delta]]<>0,(Tab_Maillons_AFC_1[[#This Row],[CF(delta)]]-Tab_Maillons_AFC_1[[#This Row],[CF moy.]])/Tab_Maillons_AFC_1[[#This Row],[Delta]],1) -> 1 | T41: =IF(Tab_Maillons_AFC_1[[#This Row],[Maillon]]=Tab_Maillons_AFC_1[[#This Row],[Maillon]], INDEX(Tab_Maillons_AFC_1[CF moy.],1), "") -> 0
A42: f6 | B42: FFF 12345606 A | C42: Sym Tenon | D42: 0 | F42: =-Tab_Maillons_AFC_1[[#This Row],[Tol max]] -> -0.1 | G42: 0.1 | H42: + | I42: =IF(Tab_Maillons_AFC_1[[#This Row],[Sens]]="+",1,IF(Tab_Maillons_AFC_1[[#This Row],[Sens]]="-",-1,IF(Tab_Maillons_AFC_1[[#This Row],[Sens]]="+½ cote",0.5,IF(Tab_Maillons_AFC_1[[#This Row],[Sens]]="-½ cote",-0.5,IF(Tab_Maillons_AFC_1[[#This Row],[Sens]]="S Orient",Tab_Maillons_AFC_1[[#This Row],[S. Orient]],IF(Tab_Maillons_AFC_1[[#This Row],[Sens]]="S CAO",ABS(Tab_Maillons_AFC_1[[#This Row],[S. CAO]]),IF(Tab_Maillons_AFC_1[[#This Row],[Sens]]="",0,"Erreur"))))))) -> 1 | J42: =IF(Tab_Maillons_AFC_1[[#This Row],[Sens]]<>"S CAO",(Tab_Maillons_AFC_1[[#This Row],[Nom.]]+(Tab_Maillons_AFC_1[[#This Row],[Tol min]]+Tab_Maillons_AFC_1[[#This Row],[Tol max]])/2)*Tab_Maillons_AFC_1[[#This Row],[Sensib.]],(Tab_Maillons_AFC_1[[#This Row],[Nom.]]+(Tab_Maillons_AFC_1[[#This Row],[Tol min]]+Tab_Maillons_AFC_1[[#This Row],[Tol max]])/2)) -> 0 | K42: =ABS(Tab_Maillons_AFC_1[[#This Row],[Tol max]]-Tab_Maillons_AFC_1[[#This Row],[Tol min]])*ABS(Tab_Maillons_AFC_1[[#This Row],[Sensib.]]) -> 0.2 | L42: =Tab_Maillons_AFC_1[[#This Row],[ITx|S|]]^2 -> 0.04 | M42: =IF(Decentrage_admis,Tab_Maillons_AFC_1[[#This Row],[ITx|S|]]/Decentrage_admis,0) -> 0.025 | N42: =IF(Tab_Maillons_AFC_1[[#Totals],[ITx|S|]],Tab_Maillons_AFC_1[[#This Row],[ITx|S|]]/Tab_Maillons_AFC_1[[#Totals],[ITx|S|]],0) -> 0.1428571429 | O42: =IF(Tab_Maillons_AFC_1[[#Totals],[(ITxS)²]],Tab_Maillons_AFC_1[[#This Row],[(ITxS)²]]/Tab_Maillons_AFC_1[[#Totals],[(ITxS)²]],0) -> 0.1428571429 | P42: =IF(Tab_Maillons_AFC_1[[#This Row],[Appui/2]]<>0,Tab_Maillons_AFC_1[[#This Row],[Déport]]/Tab_Maillons_AFC_1[[#This Row],[Appui/2]],1) -> 1 | S42: =IF(Tab_Maillons_AFC_1[[#This Row],[Delta]]<>0,(Tab_Maillons_AFC_1[[#This Row],[CF(delta)]]-Tab_Maillons_AFC_1[[#This Row],[CF moy.]])/Tab_Maillons_AFC_1[[#This Row],[Delta]],1) -> 1 | T42: =IF(Tab_Maillons_AFC_1[[#This Row],[Maillon]]=Tab_Maillons_AFC_1[[#This Row],[Maillon]], INDEX(Tab_Maillons_AFC_1[CF moy.],1), "") -> 0
A43: g7 | B43: GGG 12345607 A | C43: Sym Plan | D43: 0 | F43: =-Tab_Maillons_AFC_1[[#This Row],[Tol max]] -> -0.1 | G43: 0.1 | H43: + | I43: =IF(Tab_Maillons_AFC_1[[#This Row],[Sens]]="+",1,IF(Tab_Maillons_AFC_1[[#This Row],[Sens]]="-",-1,IF(Tab_Maillons_AFC_1[[#This Row],[Sens]]="+½ cote",0.5,IF(Tab_Maillons_AFC_1[[#This Row],[Sens]]="-½ cote",-0.5,IF(Tab_Maillons_AFC_1[[#This Row],[Sens]]="S Orient",Tab_Maillons_AFC_1[[#This Row],[S. Orient]],IF(Tab_Maillons_AFC_1[[#This Row],[Sens]]="S CAO",ABS(Tab_Maillons_AFC_1[[#This Row],[S. CAO]]),IF(Tab_Maillons_AFC_1[[#This Row],[Sens]]="",0,"Erreur"))))))) -> 1 | J43: =IF(Tab_Maillons_AFC_1[[#This Row],[Sens]]<>"S CAO",(Tab_Maillons_AFC_1[[#This Row],[Nom.]]+(Tab_Maillons_AFC_1[[#This Row],[Tol min]]+Tab_Maillons_AFC_1[[#This Row],[Tol max]])/2)*Tab_Maillons_AFC_1[[#This Row],[Sensib.]],(Tab_Maillons_AFC_1[[#This Row],[Nom.]]+(Tab_Maillons_AFC_1[[#This Row],[Tol min]]+Tab_Maillons_AFC_1[[#This Row],[Tol max]])/2)) -> 0 | K43: =ABS(Tab_Maillons_AFC_1[[#This Row],[Tol max]]-Tab_Maillons_AFC_1[[#This Row],[Tol min]])*ABS(Tab_Maillons_AFC_1[[#This Row],[Sensib.]]) -> 0.2 | L43: =Tab_Maillons_AFC_1[[#This Row],[ITx|S|]]^2 -> 0.04 | M43: =IF(Decentrage_admis,Tab_Maillons_AFC_1[[#This Row],[ITx|S|]]/Decentrage_admis,0) -> 0.025 | N43: =IF(Tab_Maillons_AFC_1[[#Totals],[ITx|S|]],Tab_Maillons_AFC_1[[#This Row],[ITx|S|]]/Tab_Maillons_AFC_1[[#Totals],[ITx|S|]],0) -> 0.1428571429 | O43: =IF(Tab_Maillons_AFC_1[[#Totals],[(ITxS)²]],Tab_Maillons_AFC_1[[#This Row],[(ITxS)²]]/Tab_Maillons_AFC_1[[#Totals],[(ITxS)²]],0) -> 0.1428571429 | P43: =IF(Tab_Maillons_AFC_1[[#This Row],[Appui/2]]<>0,Tab_Maillons_AFC_1[[#This Row],[Déport]]/Tab_Maillons_AFC_1[[#This Row],[Appui/2]],1) -> 1 | S43: =IF(Tab_Maillons_AFC_1[[#This Row],[Delta]]<>0,(Tab_Maillons_AFC_1[[#This Row],[CF(delta)]]-Tab_Maillons_AFC_1[[#This Row],[CF moy.]])/Tab_Maillons_AFC_1[[#This Row],[Delta]],1) -> 1 | T43: =IF(Tab_Maillons_AFC_1[[#This Row],[Maillon]]=Tab_Maillons_AFC_1[[#This Row],[Maillon]], INDEX(Tab_Maillons_AFC_1[CF moy.],1), "") -> 0
A44: h8 | B44: HHH 12345608 A | C44: Coax Trou | D44: 0 | F44: =-Tab_Maillons_AFC_1[[#This Row],[Tol max]] -> -0.1 | G44: 0.1 | I44: =IF(Tab_Maillons_AFC_1[[#This Row],[Sens]]="+",1,IF(Tab_Maillons_AFC_1[[#This Row],[Sens]]="-",-1,IF(Tab_Maillons_AFC_1[[#This Row],[Sens]]="+½ cote",0.5,IF(Tab_Maillons_AFC_1[[#This Row],[Sens]]="-½ cote",-0.5,IF(Tab_Maillons_AFC_1[[#This Row],[Sens]]="S Orient",Tab_Maillons_AFC_1[[#This Row],[S. Orient]],IF(Tab_Maillons_AFC_1[[#This Row],[Sens]]="S CAO",ABS(Tab_Maillons_AFC_1[[#This Row],[S. CAO]]),IF(Tab_Maillons_AFC_1[[#This Row],[Sens]]="",0,"Erreur"))))))) -> 0 | J44: =IF(Tab_Maillons_AFC_1[[#This Row],[Sens]]<>"S CAO",(Tab_Maillons_AFC_1[[#This Row],[Nom.]]+(Tab_Maillons_AFC_1[[#This Row],[Tol min]]+Tab_Maillons_AFC_1[[#This Row],[Tol max]])/2)*Tab_Maillons_AFC_1[[#This Row],[Sensib.]],(Tab_Maillons_AFC_1[[#This Row],[Nom.]]+(Tab_Maillons_AFC_1[[#This Row],[Tol min]]+Tab_Maillons_AFC_1[[#This Row],[Tol max]])/2)) -> 0 | K44: =ABS(Tab_Maillons_AFC_1[[#This Row],[Tol max]]-Tab_Maillons_AFC_1[[#This Row],[Tol min]])*ABS(Tab_Maillons_AFC_1[[#This Row],[Sensib.]]) -> 0 | L44: =Tab_Maillons_AFC_1[[#This Row],[ITx|S|]]^2 -> 0 | M44: =IF(Decentrage_admis,Tab_Maillons_AFC_1[[#This Row],[ITx|S|]]/Decentrage_admis,0) -> 0 | N44: =IF(Tab_Maillons_AFC_1[[#Totals],[ITx|S|]],Tab_Maillons_AFC_1[[#This Row],[ITx|S|]]/Tab_Maillons_AFC_1[[#Totals],[ITx|S|]],0) -> 0 | O44: =IF(Tab_Maillons_AFC_1[[#Totals],[(ITxS)²]],Tab_Maillons_AFC_1[[#This Row],[(ITxS)²]]/Tab_Maillons_AFC_1[[#Totals],[(ITxS)²]],0) -> 0 | P44: =IF(Tab_Maillons_AFC_1[[#This Row],[Appui/2]]<>0,Tab_Maillons_AFC_1[[#This Row],[Déport]]/Tab_Maillons_AFC_1[[#This Row],[Appui/2]],1) -> 1 | S44: =IF(Tab_Maillons_AFC_1[[#This Row],[Delta]]<>0,(Tab_Maillons_AFC_1[[#This Row],[CF(delta)]]-Tab_Maillons_AFC_1[[#This Row],[CF moy.]])/Tab_Maillons_AFC_1[[#This Row],[Delta]],1) -> 1 | T44: =IF(Tab_Maillons_AFC_1[[#This Row],[Maillon]]=Tab_Maillons_AFC_1[[#This Row],[Maillon]], INDEX(Tab_Maillons_AFC_1[CF moy.],1), "") -> 0
A45: i9 | B45: III 12345609 A | C45: Taille rainure | D45: 3 | E45: 0.2 | F45: -0.1 | G45: 0.1 | I45: =IF(Tab_Maillons_AFC_1[[#This Row],[Sens]]="+",1,IF(Tab_Maillons_AFC_1[[#This Row],[Sens]]="-",-1,IF(Tab_Maillons_AFC_1[[#This Row],[Sens]]="+½ cote",0.5,IF(Tab_Maillons_AFC_1[[#This Row],[Sens]]="-½ cote",-0.5,IF(Tab_Maillons_AFC_1[[#This Row],[Sens]]="S Orient",Tab_Maillons_AFC_1[[#This Row],[S. Orient]],IF(Tab_Maillons_AFC_1[[#This Row],[Sens]]="S CAO",ABS(Tab_Maillons_AFC_1[[#This Row],[S. CAO]]),IF(Tab_Maillons_AFC_1[[#This Row],[Sens]]="",0,"Erreur"))))))) -> 0 | J45: =IF(Tab_Maillons_AFC_1[[#This Row],[Sens]]<>"S CAO",(Tab_Maillons_AFC_1[[#This Row],[Nom.]]+(Tab_Maillons_AFC_1[[#This Row],[Tol min]]+Tab_Maillons_AFC_1[[#This Row],[Tol max]])/2)*Tab_Maillons_AFC_1[[#This Row],[Sensib.]],(Tab_Maillons_AFC_1[[#This Row],[Nom.]]+(Tab_Maillons_AFC_1[[#This Row],[Tol min]]+Tab_Maillons_AFC_1[[#This Row],[Tol max]])/2)) -> 0 | K45: =ABS(Tab_Maillons_AFC_1[[#This Row],[Tol max]]-Tab_Maillons_AFC_1[[#This Row],[Tol min]])*ABS(Tab_Maillons_AFC_1[[#This Row],[Sensib.]]) -> 0 | L45: =Tab_Maillons_AFC_1[[#This Row],[ITx|S|]]^2 -> 0 | M45: =IF(Decentrage_admis,Tab_Maillons_AFC_1[[#This Row],[ITx|S|]]/Decentrage_admis,0) -> 0 | N45: =IF(Tab_Maillons_AFC_1[[#Totals],[ITx|S|]],Tab_Maillons_AFC_1[[#This Row],[ITx|S|]]/Tab_Maillons_AFC_1[[#Totals],[ITx|S|]],0) -> 0 | O45: =IF(Tab_Maillons_AFC_1[[#Totals],[(ITxS)²]],Tab_Maillons_AFC_1[[#This Row],[(ITxS)²]]/Tab_Maillons_AFC_1[[#Totals],[(ITxS)²]],0) -> 0 | P45: =IF(Tab_Maillons_AFC_1[[#This Row],[Appui/2]]<>0,Tab_Maillons_AFC_1[[#This Row],[Déport]]/Tab_Maillons_AFC_1[[#This Row],[Appui/2]],1) -> 1 | S45: =IF(Tab_Maillons_AFC_1[[#This Row],[Delta]]<>0,(Tab_Maillons_AFC_1[[#This Row],[CF(delta)]]-Tab_Maillons_AFC_1[[#This Row],[CF moy.]])/Tab_Maillons_AFC_1[[#This Row],[Delta]],1) -> 1 | T45: =IF(Tab_Maillons_AFC_1[[#This Row],[Maillon]]=Tab_Maillons_AFC_1[[#This Row],[Maillon]], INDEX(Tab_Maillons_AFC_1[CF moy.],1), "") -> 0
A46: j10 | B46: JJJ 12345610 A | C46: Taille Tenon | D46: 3 | F46: =-Tab_Maillons_AFC_1[[#This Row],[Tol max]] -> -0.1 | G46: 0.1 | I46: =IF(Tab_Maillons_AFC_1[[#This Row],[Sens]]="+",1,IF(Tab_Maillons_AFC_1[[#This Row],[Sens]]="-",-1,IF(Tab_Maillons_AFC_1[[#This Row],[Sens]]="+½ cote",0.5,IF(Tab_Maillons_AFC_1[[#This Row],[Sens]]="-½ cote",-0.5,IF(Tab_Maillons_AFC_1[[#This Row],[Sens]]="S Orient",Tab_Maillons_AFC_1[[#This Row],[S. Orient]],IF(Tab_Maillons_AFC_1[[#This Row],[Sens]]="S CAO",ABS(Tab_Maillons_AFC_1[[#This Row],[S. CAO]]),IF(Tab_Maillons_AFC_1[[#This Row],[Sens]]="",0,"Erreur"))))))) -> 0 | J46: =IF(Tab_Maillons_AFC_1[[#This Row],[Sens]]<>"S CAO",(Tab_Maillons_AFC_1[[#This Row],[Nom.]]+(Tab_Maillons_AFC_1[[#This Row],[Tol min]]+Tab_Maillons_AFC_1[[#This Row],[Tol max]])/2)*Tab_Maillons_AFC_1[[#This Row],[Sensib.]],(Tab_Maillons_AFC_1[[#This Row],[Nom.]]+(Tab_Maillons_AFC_1[[#This Row],[Tol min]]+Tab_Maillons_AFC_1[[#This Row],[Tol max]])/2)) -> 0 | K46: =ABS(Tab_Maillons_AFC_1[[#This Row],[Tol max]]-Tab_Maillons_AFC_1[[#This Row],[Tol min]])*ABS(Tab_Maillons_AFC_1[[#This Row],[Sensib.]]) -> 0 | L46: =Tab_Maillons_AFC_1[[#This Row],[ITx|S|]]^2 -> 0 | M46: =IF(Decentrage_admis,Tab_Maillons_AFC_1[[#This Row],[ITx|S|]]/Decentrage_admis,0) -> 0 | N46: =IF(Tab_Maillons_AFC_1[[#Totals],[ITx|S|]],Tab_Maillons_AFC_1[[#This Row],[ITx|S|]]/Tab_Maillons_AFC_1[[#Totals],[ITx|S|]],0) -> 0 | O46: =IF(Tab_Maillons_AFC_1[[#Totals],[(ITxS)²]],Tab_Maillons_AFC_1[[#This Row],[(ITxS)²]]/Tab_Maillons_AFC_1[[#Totals],[(ITxS)²]],0) -> 0 | P46: =IF(Tab_Maillons_AFC_1[[#This Row],[Appui/2]]<>0,Tab_Maillons_AFC_1[[#This Row],[Déport]]/Tab_Maillons_AFC_1[[#This Row],[Appui/2]],1) -> 1 | S46: =IF(Tab_Maillons_AFC_1[[#This Row],[Delta]]<>0,(Tab_Maillons_AFC_1[[#This Row],[CF(delta)]]-Tab_Maillons_AFC_1[[#This Row],[CF moy.]])/Tab_Maillons_AFC_1[[#This Row],[Delta]],1) -> 1 | T46: =IF(Tab_Maillons_AFC_1[[#This Row],[Maillon]]=Tab_Maillons_AFC_1[[#This Row],[Maillon]], INDEX(Tab_Maillons_AFC_1[CF moy.],1), "") -> 0
A47: k11 | B47: KKK 12345611 A | C47: Taille rainure | D47: 10 | E47: H7 | F47: 0 | G47: 0.015 | I47: =IF(Tab_Maillons_AFC_1[[#This Row],[Sens]]="+",1,IF(Tab_Maillons_AFC_1[[#This Row],[Sens]]="-",-1,IF(Tab_Maillons_AFC_1[[#This Row],[Sens]]="+½ cote",0.5,IF(Tab_Maillons_AFC_1[[#This Row],[Sens]]="-½ cote",-0.5,IF(Tab_Maillons_AFC_1[[#This Row],[Sens]]="S Orient",Tab_Maillons_AFC_1[[#This Row],[S. Orient]],IF(Tab_Maillons_AFC_1[[#This Row],[Sens]]="S CAO",ABS(Tab_Maillons_AFC_1[[#This Row],[S. CAO]]),IF(Tab_Maillons_AFC_1[[#This Row],[Sens]]="",0,"Erreur"))))))) -> 0 | J47: =IF(Tab_Maillons_AFC_1[[#This Row],[Sens]]<>"S CAO",(Tab_Maillons_AFC_1[[#This Row],[Nom.]]+(Tab_Maillons_AFC_1[[#This Row],[Tol min]]+Tab_Maillons_AFC_1[[#This Row],[Tol max]])/2)*Tab_Maillons_AFC_1[[#This Row],[Sensib.]],(Tab_Maillons_AFC_1[[#This Row],[Nom.]]+(Tab_Maillons_AFC_1[[#This Row],[Tol min]]+Tab_Maillons_AFC_1[[#This Row],[Tol max]])/2)) -> 0 | K47: =ABS(Tab_Maillons_AFC_1[[#This Row],[Tol max]]-Tab_Maillons_AFC_1[[#This Row],[Tol min]])*ABS(Tab_Maillons_AFC_1[[#This Row],[Sensib.]]) -> 0 | L47: =Tab_Maillons_AFC_1[[#This Row],[ITx|S|]]^2 -> 0 | M47: =IF(Decentrage_admis,Tab_Maillons_AFC_1[[#This Row],[ITx|S|]]/Decentrage_admis,0) -> 0 | N47: =IF(Tab_Maillons_AFC_1[[#Totals],[ITx|S|]],Tab_Maillons_AFC_1[[#This Row],[ITx|S|]]/Tab_Maillons_AFC_1[[#Totals],[ITx|S|]],0) -> 0 | O47: =IF(Tab_Maillons_AFC_1[[#Totals],[(ITxS)²]],Tab_Maillons_AFC_1[[#This Row],[(ITxS)²]]/Tab_Maillons_AFC_1[[#Totals],[(ITxS)²]],0) -> 0 | P47: =IF(Tab_Maillons_AFC_1[[#This Row],[Appui/2]]<>0,Tab_Maillons_AFC_1[[#This Row],[Déport]]/Tab_Maillons_AFC_1[[#This Row],[Appui/2]],1) -> 1 | S47: =IF(Tab_Maillons_AFC_1[[#This Row],[Delta]]<>0,(Tab_Maillons_AFC_1[[#This Row],[CF(delta)]]-Tab_Maillons_AFC_1[[#This Row],[CF moy.]])/Tab_Maillons_AFC_1[[#This Row],[Delta]],1) -> 1 | T47: =IF(Tab_Maillons_AFC_1[[#This Row],[Maillon]]=Tab_Maillons_AFC_1[[#This Row],[Maillon]], INDEX(Tab_Maillons_AFC_1[CF moy.],1), "") -> 0
A48: l12 | B48: LLL 12345612 A | C48: Taille Tenon | D48: 3 | E48: g6 | F48: -0.008 | G48: -0.002 | I48: =IF(Tab_Maillons_AFC_1[[#This Row],[Sens]]="+",1,IF(Tab_Maillons_AFC_1[[#This Row],[Sens]]="-",-1,IF(Tab_Maillons_AFC_1[[#This Row],[Sens]]="+½ cote",0.5,IF(Tab_Maillons_AFC_1[[#This Row],[Sens]]="-½ cote",-0.5,IF(Tab_Maillons_AFC_1[[#This Row],[Sens]]="S Orient",Tab_Maillons_AFC_1[[#This Row],[S. Orient]],IF(Tab_Maillons_AFC_1[[#This Row],[Sens]]="S CAO",ABS(Tab_Maillons_AFC_1[[#This Row],[S. CAO]]),IF(Tab_Maillons_AFC_1[[#This Row],[Sens]]="",0,"Erreur"))))))) -> 0 | J48: =IF(Tab_Maillons_AFC_1[[#This Row],[Sens]]<>"S CAO",(Tab_Maillons_AFC_1[[#This Row],[Nom.]]+(Tab_Maillons_AFC_1[[#This Row],[Tol min]]+Tab_Maillons_AFC_1[[#This Row],[Tol max]])/2)*Tab_Maillons_AFC_1[[#This Row],[Sensib.]],(Tab_Maillons_AFC_1[[#This Row],[Nom.]]+(Tab_Maillons_AFC_1[[#This Row],[Tol min]]+Tab_Maillons_AFC_1[[#This Row],[Tol max]])/2)) -> 0 | K48: =ABS(Tab_Maillons_AFC_1[[#This Row],[Tol max]]-Tab_Maillons_AFC_1[[#This Row],[Tol min]])*ABS(Tab_Maillons_AFC_1[[#This Row],[Sensib.]]) -> 0 | L48: =Tab_Maillons_AFC_1[[#This Row],[ITx|S|]]^2 -> 0 | M48: =IF(Decentrage_admis,Tab_Maillons_AFC_1[[#This Row],[ITx|S|]]/Decentrage_admis,0) -> 0 | N48: =IF(Tab_Maillons_AFC_1[[#Totals],[ITx|S|]],Tab_Maillons_AFC_1[[#This Row],[ITx|S|]]/Tab_Maillons_AFC_1[[#Totals],[ITx|S|]],0) -> 0 | O48: =IF(Tab_Maillons_AFC_1[[#Totals],[(ITxS)²]],Tab_Maillons_AFC_1[[#This Row],[(ITxS)²]]/Tab_Maillons_AFC_1[[#Totals],[(ITxS)²]],0) -> 0 | P48: =IF(Tab_Maillons_AFC_1[[#This Row],[Appui/2]]<>0,Tab_Maillons_AFC_1[[#This Row],[Déport]]/Tab_Maillons_AFC_1[[#This Row],[Appui/2]],1) -> 1 | S48: =IF(Tab_Maillons_AFC_1[[#This Row],[Delta]]<>0,(Tab_Maillons_AFC_1[[#This Row],[CF(delta)]]-Tab_Maillons_AFC_1[[#This Row],[CF moy.]])/Tab_Maillons_AFC_1[[#This Row],[Delta]],1) -> 1 | T48: =IF(Tab_Maillons_AFC_1[[#This Row],[Maillon]]=Tab_Maillons_AFC_1[[#This Row],[Maillon]], INDEX(Tab_Maillons_AFC_1[CF moy.],1), "") -> 0
A49: Total | J49: =IF(COUNTIF(Tab_Maillons_AFC_1[Sens],"S CAO"),INDEX(Tab_Maillons_AFC_1[CF moy.],1),SUM(Tab_Maillons_AFC_1[Moy.])) -> 61 | K49: =SUM(Tab_Maillons_AFC_1[ITx|S|]) -> 1.4 | L49: =SUM(Tab_Maillons_AFC_1[(ITxS)²]) -> 0.28 | M49: =SUM(Tab_Maillons_AFC_1[±δμ adm.]) -> 0.175 | N49: =SUM(Tab_Maillons_AFC_1[C. Arith.]) -> 1 | O49: =SUM(Tab_Maillons_AFC_1[C. Quad]) -> 1
A51: Type de calculs | C51: Formule | D51: Paramètre | F51: Conditions d'application | K51: IT CF | L51: CF résultante | N51: CFmin | O51: CFmax
A52: Arithmétique | D52: Aucun | F52: Pire des cas, bornes correctes si la cible est proche du maxi ou mini matière. | K52: =Tab_Maillons_AFC_1[[#Totals],[ITx|S|]] -> 1.4 | L52: =FIXED(Tab_Maillons_AFC_1[[#Totals],[Moy.]],3)&" ± "&FIXED($K$52/2,3) -> 61.000 ± 0.700 | N52: =Tab_Maillons_AFC_1[[#Totals],[Moy.]]-$K$52/2 -> 60.3 | O52: =Tab_Maillons_AFC_1[[#Totals],[Moy.]]+$K$52/2 -> 61.7
A53: Quadratique | D53: Aucun | F53: Cible = moyenne, aucun décentrage, ITi indépendants. | K53: =Tab_Maillons_AFC_1[[#Totals],[(ITxS)²]]^0.5 -> 0.5291502622 | L53: =FIXED(Tab_Maillons_AFC_1[[#Totals],[Moy.]],3)&" ± "&FIXED($K$53/2,3) -> 61.000 ± 0.265 | N53: =Tab_Maillons_AFC_1[[#Totals],[Moy.]]-$K$53/2 -> 60.73542487 | O53: =Tab_Maillons_AFC_1[[#Totals],[Moy.]]+$K$53/2 -> 61.26457513
A54: Quadratique Décentré | D54: ± ITi / | E54: 8 | F54: Cible = moyenne avec décentrage possible, ppm ITQD = ppm ITi ; ITi indépendants. | K54: =IF(Decentrage_admis,2*(ABS(Tab_Maillons_AFC_1[[#Totals],[±δμ adm.]])+Calc_Q/2-Calc_Q/ABS(Decentrage_admis)),Calc_Q) -> 0.7468626967 | L54: =FIXED(Tab_Maillons_AFC_1[[#Totals],[Moy.]],3)&" ± "&FIXED($K$54/2,3) -> 61.000 ± 0.373 | N54: =Tab_Maillons_AFC_1[[#Totals],[Moy.]]-$K$54/2 -> 60.62656865 | O54: =Tab_Maillons_AFC_1[[#Totals],[Moy.]]+$K$54/2 -> 61.37343135
A55: Probabiliste U à nσ | D55: n = | E55: 6 | F55: Loi uniforme, ITi identiques, ≥ 5 maillons, ITi indépendants, peut être > ITA. | K55: =$E$55/(2*3^0.5)*Calc_Q -> 0.916515139 | L55: =FIXED(Tab_Maillons_AFC_1[[#Totals],[Moy.]],3)&" ± "&FIXED($K$55/2,3) -> 61.000 ± 0.458 | N55: =Tab_Maillons_AFC_1[[#Totals],[Moy.]]-$K$55/2 -> 60.54174243 | O55: =Tab_Maillons_AFC_1[[#Totals],[Moy.]]+$K$55/2 -> 61.45825757
A56: Proba. Monte Carlo | C56: Loi uniforme 1 M de tirages | D56: PPM Cible | E56: 2700 | F56: Ignorance statistique pas de cible ; ITi indépendants. | K56: 0.8750961783 | L56: =FIXED(Tab_Maillons_AFC_1[[#Totals],[Moy.]],3)&" ± "&FIXED($K$56/2,3) -> 61.000 ± 0.438 | N56: =Tab_Maillons_AFC_1[[#Totals],[Moy.]]-$K$56/2 -> 60.56245191 | O56: =Tab_Maillons_AFC_1[[#Totals],[Moy.]]+$K$56/2 -> 61.43754809
A57: Gain par rapport à : | C57: Arithmétique | D57: ITi | E57: =IF(MCU_IT_CF,$K$52/MCU_IT_CF-1,0) -> 0.5998241505 | F57: =1+E57 -> 1.599824151 | G57: Cond. Fonct. | I57: =IF($K$52,($K$52-MCU_IT_CF)/$K$52,0) -> 0.3749313012 | J57: Param QD
A58: Commentaires : | J58: 12
A59: Optimisation possible avec : - Coefficient de gain pour le calcul Monte Carlo, - Valeur cible ou Solver pour les autres méthodes de calcul. | J59: 10
J60: 8
J61: =20/3 -> 6.666666667
J62: 0

Sheet Ajustements ISO (hidden)
A1: Tableaux des ajustements standards ISO en µm (source norme ISO 286-2)
A2: Ce tableau inclut tous les ajustements définis dans la norme ISO 286-2 ; pour les ajustements non définis, Min et Max doivent être mis à 0.
A3: Ajustement | B3: ]0:1] | C3: ]1:3] | D3: ]3:6] | E3: ]6:10] | F3: ]10:14] | G3: ]14:18] | H3: ]18:24] | I3: ]24:30] | J3: ]30:40] | K3: ]40:50] | L3: ]50:65] | M3: ]65:80] | N3: ]80:100] | O3: ]100:120] | P3: ]120:140] | Q3: ]140:160] | R3: ]160:180] | S3: ]180:200] | T3: ]200:225] | U3: ]225:250] | V3: ]250:280] | W3: ]280:315] | X3: ]315:355] | Y3: ]355:400] | Z3: ]400:450] | AA3: ]450:500] | AB3: ]500:560] | AC3: ]560:630] | AD3: ]630:710] | AE3: ]710:800] | AF3: ]800:900] | AG3: ]900:1000] | AH3: ]1000:1120] | AI3: ]1120:1250] | AJ3: ]1250:1400] | AK3: ]1400:1600] | AL3: ]1600:1800] | AM3: ]1800:2000] | AN3: ]2000:2240] | AO3: ]2240:2500] | AP3: ]2500:2800] | AQ3: ]2800:3150]
A4: a9 | B4: 0 | C4: -270 | D4: -270 | E4: -280 | F4: -290 | G4: -290 | H4: -300 | I4: -300 | J4: -310 | K4: -320 | L4: -340 | M4: -360 | N4: -380 | O4: -410 | P4: -460 | Q4: -520 | R4: -580 | S4: -660 | T4: -740 | U4: -820 | V4: -920 | W4: -1050 | X4: -1200 | Y4: -1350 | Z4: -1500 | AA4: -1650 | AB4: 0 | AC4: 0 | AD4: 0 | AE4: 0 | AF4: 0 | AG4: 0 | AH4: 0 | AI4: 0 | AJ4: 0 | AK4: 0 | AL4: 0 | AM4: 0 | AN4: 0 | AO4: 0 | AP4: 0 | AQ4: 0
B5: 0 | C5: -295 | D5: -300 | E5: -316 | F5: -333 | G5: -333 | H5: -352 | I5: -352 | J5: -372 | K5: -382 | L5: -414 | M5: -434 | N5: -467 | O5: -497 | P5: -560 | Q5: -620 | R5: -680 | S5: -775 | T5: -855 | U5: -935 | V5: -1050 | W5: -1180 | X5: -1340 | Y5: -1490 | Z5: -1655 | AA5: -1805 | AB5: 0 | AC5: 0 | AD5: 0 | AE5: 0 | AF5: 0 | AG5: 0 | AH5: 0 | AI5: 0 | AJ5: 0 | AK5: 0 | AL5: 0 | AM5: 0 | AN5: 0 | AO5: 0 | AP5: 0 | AQ5: 0
A6: a10 | B6: 0 | C6: -270 | D6: -270 | E6: -280 | F6: -290 | G6: -290 | H6: -300 | I6: -300 | J6: -310 | K6: -320 | L6: -340 | M6: -360 | N6: -380 | O6: -410 | P6: -460 | Q6: -520 | R6: -580 | S6: -660 | T6: -740 | U6: -820 | V6: -920 | W6: -1050 | X6: -1200 | Y6: -1350 | Z6: -1500 | AA6: -1650 | AB6: 0 | AC6: 0 | AD6: 0 | AE6: 0 | AF6: 0 | AG6: 0 | AH6: 0 | AI6: 0 | AJ6: 0 | AK6: 0 | AL6: 0 | AM6: 0 | AN6: 0 | AO6: 0 | AP6: 0 | AQ6: 0
B7: 0 | C7: -310 | D7: -318 | E7: -338 | F7: -360 | G7: -360 | H7: -384 | I7: -384 | J7: -410 | K7: -420 | L7: -460 | M7: -480 | N7: -520 | O7: -550 | P7: -620 | Q7: -680 | R7: -740 | S7: -845 | T7: -925 | U7: -1005 | V7: -1130 | W7: -1260 | X7: -1430 | Y7: -1580 | Z7: -1750 | AA7: -1900 | AB7: 0 | AC7: 0 | AD7: 0 | AE7: 0 | AF7: 0 | AG7: 0 | AH7: 0 | AI7: 0 | AJ7: 0 | AK7: 0 | AL7: 0 | AM7: 0 | AN7: 0 | AO7: 0 | AP7: 0 | AQ7: 0
A8: a11 | B8: 0 | C8: -270 | D8: -270 | E8: -280 | F8: -290 | G8: -290 | H8: -300 | I8: -300 | J8: -310 | K8: -320 | L8: -340 | M8: -360 | N8: -380 | O8: -410 | P8: -460 | Q8: -520 | R8: -580 | S8: -660 | T8: -740 | U8: -820 | V8: -920 | W8: -1050 | X8: -1200 | Y8: -1350 | Z8: -1500 | AA8: -1650 | AB8: 0 | AC8: 0 | AD8: 0 | AE8: 0 | AF8: 0 | AG8: 0 | AH8: 0 | AI8: 0 | AJ8: 0 | AK8: 0 | AL8: 0 | AM8: 0 | AN8: 0 | AO8: 0 | AP8: 0 | AQ8: 0
B9: 0 | C9: -330 | D9: -345 | E9: -370 | F9: -400 | G9: -400 | H9: -430 | I9: -430 | J9: -470 | K9: -480 | L9: -530 | M9: -550 | N9: -600 | O9: -630 | P9: -710 | Q9: -770 | R9: -830 | S9: -950 | T9: -1030 | U9: -1110 | V9: -1240 | W9: -1370 | X9: -1560 | Y9: -1710 | Z9: -1900 | AA9: -2050 | AB9: 0 | AC9: 0 | AD9: 0 | AE9: 0 | AF9: 0 | AG9: 0 | AH9: 0 | AI9: 0 | AJ9: 0 | AK9: 0 | AL9: 0 | AM9: 0 | AN9: 0 | AO9: 0 | AP9: 0 | AQ9: 0
A10: a12 | B10: 0 | C10: -270 | D10: -270 | E10: -280 | F10: -290 | G10: -290 | H10: -300 | I10: -300 | J10: -310 | K10: -320 | L10: -340 | M10: -360 | N10: -380 | O10: -410 | P10: -460 | Q10: -520 | R10: -580 | S10: -660 | T10: -740 | U10: -820 | V10: -920 | W10: -1050 | X10: -1200 | Y10: -1350 | Z10: -1500 | AA10: -1650 | AB10: 0 | AC10: 0 | AD10: 0 | AE10: 0 | AF10: 0 | AG10: 0 | AH10: 0 | AI10: 0 | AJ10: 0 | AK10: 0 | AL10: 0 | AM10: 0 | AN10: 0 | AO10: 0 | AP10: 0 | AQ10: 0
B11: 0 | C11: -370 | D11: -390 | E11: -430 | F11: -470 | G11: -470 | H11: -510 | I11: -510 | J11: -560 | K11: -570 | L11: -640 | M11: -660 | N11: -730 | O11: -760 | P11: -860 | Q11: -920 | R11: -980 | S11: -1120 | T11: -1200 | U11: -1280 | V11: -1440 | W11: -1570 | X11: -1770 | Y11: -1920 | Z11: -2130 | AA11: -2280 | AB11: 0 | AC11: 0 | AD11: 0 | AE11: 0 | AF11: 0 | AG11: 0 | AH11: 0 | AI11: 0 | AJ11: 0 | AK11: 0 | AL11: 0 | AM11: 0 | AN11: 0 | AO11: 0 | AP11: 0 | AQ11: 0
A12: a13 | B12: 0 | C12: -270 | D12: -270 | E12: -280 | F12: -290 | G12: -290 | H12: -300 | I12: -300 | J12: -310 | K12: -320 | L12: -340 | M12: -360 | N12: -380 | O12: -410 | P12: -460 | Q12: -520 | R12: -580 | S12: -660 | T12: -740 | U12: -820 | V12: -920 | W12: -1050 | X12: -1200 | Y12: -1350 | Z12: -1500 | AA12: -1650 | AB12: 0 | AC12: 0 | AD12: 0 | AE12: 0 | AF12: 0 | AG12: 0 | AH12: 0 | AI12: 0 | AJ12: 0 | AK12: 0 | AL12: 0 | AM12: 0 | AN12: 0 | AO12: 0 | AP12: 0 | AQ12: 0
B13: 0 | C13: -410 | D13: -450 | E13: -500 | F13: -560 | G13: -560 | H13: -630 | I13: -630 | J13: -700 | K13: -710 | L13: -800 | M13: -820 | N13: -920 | O13: -950 | P13: -1090 | Q13: -1150 | R13: -1210 | S13: -1380 | T13: -1460 | U13: -1540 | V13: -1730 | W13: -1860 | X13: -2090 | Y13: -2240 | Z13: -2470 | AA13: -2620 | AB13: 0 | AC13: 0 | AD13: 0 | AE13: 0 | AF13: 0 | AG13: 0 | AH13: 0 | AI13: 0 | AJ13: 0 | AK13: 0 | AL13: 0 | AM13: 0 | AN13: 0 | AO13: 0 | AP13: 0 | AQ13: 0
A14: b8 | B14: 0 | C14: -140 | D14: -140 | E14: -150 | F14: -150 | G14: -150 | H14: -160 | I14: -160 | J14: -170 | K14: -180 | L14: -190 | M14: -200 | N14: -220 | O14: -240 | P14: -260 | Q14: -280 | R14: -310 | S14: -340 | T14: -380 | U14: -420 | V14: -480 | W14: -540 | X14: -600 | Y14: -680 | Z14: -760 | AA14: -840 | AB14: 0 | AC14: 0 | AD14: 0 | AE14: 0 | AF14: 0 | AG14: 0 | AH14: 0 | AI14: 0 | AJ14: 0 | AK14: 0 | AL14: 0 | AM14: 0 | AN14: 0 | AO14: 0 | AP14: 0 | AQ14: 0
B15: 0 | C15: -154 | D15: -158 | E15: -172 | F15: -177 | G15: -177 | H15: -193 | I15: -193 | J15: -209 | K15: -219 | L15: -236 | M15: -246 | N15: -274 | O15: -294 | P15: -323 | Q15: -343 | R15: -373 | S15: -412 | T15: -452 | U15: -492 | V15: -561 | W15: -621 | X15: -689 | Y15: -769 | Z15: -857 | AA15: -937 | AB15: 0 | AC15: 0 | AD15: 0 | AE15: 0 | AF15: 0 | AG15: 0 | AH15: 0 | AI15: 0 | AJ15: 0 | AK15: 0 | AL15: 0 | AM15: 0 | AN15: 0 | AO15: 0 | AP15: 0 | AQ15: 0
A16: b9 | B16: 0 | C16: -140 | D16: -140 | E16: -150 | F16: -150 | G16: -150 | H16: -160 | I16: -160 | J16: -170 | K16: -180 | L16: -190 | M16: -200 | N16: -220 | O16: -240 | P16: -260 | Q16: -280 | R16: -310 | S16: -340 | T16: -380 | U16: -420 | V16: -480 | W16: -540 | X16: -600 | Y16: -680 | Z16: -760 | AA16: -840 | AB16: 0 | AC16: 0 | AD16: 0 | AE16: 0 | AF16: 0 | AG16: 0 | AH16: 0 | AI16: 0 | AJ16: 0 | AK16: 0 | AL16: 0 | AM16: 0 | AN16: 0 | AO16: 0 | AP16: 0 | AQ16: 0
B17: 0 | C17: -165 | D17: -170 | E17: -186 | F17: -193 | G17: -193 | H17: -212 | I17: -212 | J17: -232 | K17: -242 | L17: -264 | M17: -274 | N17: -307 | O17: -327 | P17: -360 | Q17: -380 | R17: -410 | S17: -455 | T17: -495 | U17: -535 | V17: -610 | W17: -670 | X17: -740 | Y17: -820 | Z17: -915 | AA17: -995 | AB17: 0 | AC17: 0 | AD17: 0 | AE17: 0 | AF17: 0 | AG17: 0 | AH17: 0 | AI17: 0 | AJ17: 0 | AK17: 0 | AL17: 0 | AM17: 0 | AN17: 0 | AO17: 0 | AP17: 0 | AQ17: 0
A18: b10 | B18: 0 | C18: -140 | D18: -140 | E18: -150 | F18: -150 | G18: -150 | H18: -160 | I18: -160 | J18: -170 | K18: -180 | L18: -190 | M18: -200 | N18: -220 | O18: -240 | P18: -260 | Q18: -280 | R18: -310 | S18: -340 | T18: -380 | U18: -420 | V18: -480 | W18: -540 | X18: -600 | Y18: -680 | Z18: -760 | AA18: -840 | AB18: 0 | AC18: 0 | AD18: 0 | AE18: 0 | AF18: 0 | AG18: 0 | AH18: 0 | AI18: 0 | AJ18: 0 | AK18: 0 | AL18: 0 | AM18: 0 | AN18: 0 | AO18: 0 | AP18: 0 | AQ18: 0
B19: 0 | C19: -180 | D19: -188 | E19: -208 | F19: -220 | G19: -220 | H19: -244 | I19: -244 | J19: -270 | K19: -280 | L19: -310 | M19: -320 | N19: -360 | O19: -380 | P19: -420 | Q19: -440 | R19: -470 | S19: -525 | T19: -565 | U19: -605 | V19: -690 | W19: -750 | X19: -830 | Y19: -910 | Z19: -1010 | AA19: -1090 | AB19: 0 | AC19: 0 | AD19: 0 | AE19: 0 | AF19: 0 | AG19: 0 | AH19: 0 | AI19: 0 | AJ19: 0 | AK19: 0 | AL19: 0 | AM19: 0 | AN19: 0 | AO19: 0 | AP19: 0 | AQ19: 0
A20: b11 | B20: 0 | C20: -140 | D20: -140 | E20: -150 | F20: -150 | G20: -150 | H20: -160 | I20: -160 | J20: -170 | K20: -180 | L20: -190 | M20: -200 | N20: -220 | O20: -240 | P20: -260 | Q20: -280 | R20: -310 | S20: -340 | T20: -380 | U20: -420 | V20: -480 | W20: -540 | X20: -600 | Y20: -680 | Z20: -760 | AA20: -840 | AB20: 0 | AC20: 0 | AD20: 0 | AE20: 0 | AF20: 0 | AG20: 0 | AH20: 0 | AI20: 0 | AJ20: 0 | AK20: 0 | AL20: 0 | AM20: 0 | AN20: 0 | AO20: 0 | AP20: 0 | AQ20: 0
B21: 0 | C21: -200 | D21: -215 | E21: -240 | F21: -260 | G21: -260 | H21: -290 | I21: -290 | J21: -330 | K21: -340 | L21: -380 | M21: -390 | N21: -440 | O21: -460 | P21: -510 | Q21: -530 | R21: -560 | S21: -630 | T21: -670 | U21: -710 | V21: -800 | W21: -860 | X21: -960 | Y21: -1040 | Z21: -1160 | AA21: -1240 | AB21: 0 | AC21: 0 | AD21: 0 | AE21: 0 | AF21: 0 | AG21: 0 | AH21: 0 | AI21: 0 | AJ21: 0 | AK21: 0 | AL21: 0 | AM21: 0 | AN21: 0 | AO21: 0 | AP21: 0 | AQ21: 0
A22: b12 | B22: 0 | C22: -140 | D22: -140 | E22: -150 | F22: -150 | G22: -150 | H22: -160 | I22: -160 | J22: -170 | K22: -180 | L22: -190 | M22: -200 | N22: -220 | O22: -240 | P22: -260 | Q22: -280 | R22: -310 | S22: -340 | T22: -380 | U22: -420 | V22: -480 | W22: -540 | X22: -600 | Y22: -680 | Z22: -760 | AA22: -840 | AB22: 0 | AC22: 0 | AD22: 0 | AE22: 0 | AF22: 0 | AG22: 0 | AH22: 0 | AI22: 0 | AJ22: 0 | AK22: 0 | AL22: 0 | AM22: 0 | AN22: 0 | AO22: 0 | AP22: 0 | AQ22: 0
B23: 0 | C23: -240 | D23: -260 | E23: -300 | F23: -330 | G23: -330 | H23: -370 | I23: -370 | J23: -420 | K23: -430 | L23: -490 | M23: -500 | N23: -570 | O23: -590 | P23: -660 | Q23: -680 | R23: -710 | S23: -800 | T23: -840 | U23: -880 | V23: -1000 | W23: -1060 | X23: -1170 | Y23: -1250 | Z23: -1390 | AA23: -1470 | AB23: 0 | AC23: 0 | AD23: 0 | AE23: 0 | AF23: 0 | AG23: 0 | AH23: 0 | AI23: 0 | AJ23: 0 | AK23: 0 | AL23: 0 | AM23: 0 | AN23: 0 | AO23: 0 | AP23: 0 | AQ23: 0
A24: b13 | B24: 0 | C24: -140 | D24: -140 | E24: -150 | F24: -150 | G24: -150 | H24: -160 | I24: -160 | J24: -170 | K24: -180 | L24: -190 | M24: -200 | N24: -220 | O24: -240 | P24: -260 | Q24: -280 | R24: -310 | S24: -340 | T24: -380 | U24: -420 | V24: -480 | W24: -540 | X24: -600 | Y24: -680 | Z24: -760 | AA24: -840 | AB24: 0 | AC24: 0 | AD24: 0 | AE24: 0 | AF24: 0 | AG24: 0 | AH24: 0 | AI24: 0 | AJ24: 0 | AK24: 0 | AL24: 0 | AM24: 0 | AN24: 0 | AO24: 0 | AP24: 0 | AQ24: 0
B25: 0 | C25: -280 | D25: -320 | E25: -370 | F25: -420 | G25: -420 | H25: -490 | I25: -490 | J25: -560 | K25: -570 | L25: -650 | M25: -660 | N25: -760 | O25: -780 | P25: -890 | Q25: -910 | R25: -940 | S25: -1060 | T25: -1100 | U25: -1140 | V25: -1290 | W25: -1350 | X25: -1490 | Y25: -1570 | Z25: -1730 | AA25: -1810 | AB25: 0 | AC25: 0 | AD25: 0 | AE25: 0 | AF25: 0 | AG25: 0 | AH25: 0 | AI25: 0 | AJ25: 0 | AK25: 0 | AL25: 0 | AM25: 0 | AN25: 0 | AO25: 0 | AP25: 0 | AQ25: 0
A26: c8 | B26: -60 | C26: -60 | D26: -70 | E26: -80 | F26: -95 | G26: -95 | H26: -110 | I26: -110 | J26: -120 | K26: -130 | L26: -140 | M26: -150 | N26: -170 | O26: -180 | P26: -200 | Q26: -210 | R26: -230 | S26: -240 | T26: -260 | U26: -280 | V26: -300 | W26: -330 | X26: -360 | Y26: -400 | Z26: -440 | AA26: -480 | AB26: 0 | AC26: 0 | AD26: 0 | AE26: 0 | AF26: 0 | AG26: 0 | AH26: 0 | AI26: 0 | AJ26: 0 | AK26: 0 | AL26: 0 | AM26: 0 | AN26: 0 | AO26: 0 | AP26: 0 | AQ26: 0
B27: -74 | C27: -74 | D27: -88 | E27: -102 | F27: -122 | G27: -122 | H27: -143 | I27: -143 | J27: -159 | K27: -169 | L27: -186 | M27: -196 | N27: -224 | O27: -234 | P27: -263 | Q27: -273 | R27: -293 | S27: -312 | T27: -332 | U27: -352 | V27: -381 | W27: -411 | X27: -449 | Y27: -489 | Z27: -537 | AA27: -577 | AB27: 0 | AC27: 0 | AD27: 0 | AE27: 0 | AF27: 0 | AG27: 0 | AH27: 0 | AI27: 0 | AJ27: 0 | AK27: 0 | AL27: 0 | AM27: 0 | AN27: 0 | AO27: 0 | AP27: 0 | AQ27: 0
A28: c9 | B28: -60 | C28: -60 | D28: -70 | E28: -80 | F28: -95 | G28: -95 | H28: -110 | I28: -110 | J28: -120 | K28: -130 | L28: -140 | M28: -150 | N28: -170 | O28: -180 | P28: -200 | Q28: -210 | R28: -230 | S28: -240 | T28: -260 | U28: -280 | V28: -300 | W28: -330 | X28: -360 | Y28: -400 | Z28: -440 | AA28: -480 | AB28: 0 | AC28: 0 | AD28: 0 | AE28: 0 | AF28: 0 | AG28: 0 | AH28: 0 | AI28: 0 | AJ28: 0 | AK28: 0 | AL28: 0 | AM28: 0 | AN28: 0 | AO28: 0 | AP28: 0 | AQ28: 0
B29: -85 | C29: -85 | D29: -100 | E29: -116 | F29: -138 | G29: -138 | H29: -162 | I29: -162 | J29: -182 | K29: -192 | L29: -214 | M29: -224 | N29: -257 | O29: -267 | P29: -300 | Q29: -310 | R29: -330 | S29: -355 | T29: -375 | U29: -395 | V29: -430 | W29: -460 | X29: -500 | Y29: -540 | Z29: -595 | AA29: -635 | AB29: 0 | AC29: 0 | AD29: 0 | AE29: 0 | AF29: 0 | AG29: 0 | AH29: 0 | AI29: 0 | AJ29: 0 | AK29: 0 | AL29: 0 | AM29: 0 | AN29: 0 | AO29: 0 | AP29: 0 | AQ29: 0
A30: c10 | B30: -60 | C30: -60 | D30: -70 | E30: -80 | F30: -95 | G30: -95 | H30: -110 | I30: -110 | J30: -120 | K30: -130 | L30: -140 | M30: -150 | N30: -170 | O30: -180 | P30: -200 | Q30: -210 | R30: -230 | S30: -240 | T30: -260 | U30: -280 | V30: -300 | W30: -330 | X30: -360 | Y30: -400 | Z30: -440 | AA30: -480 | AB30: 0 | AC30: 0 | AD30: 0 | AE30: 0 | AF30: 0 | AG30: 0 | AH30: 0 | AI30: 0 | AJ30: 0 | AK30: 0 | AL30: 0 | AM30: 0 | AN30: 0 | AO30: 0 | AP30: 0 | AQ30: 0
B31: -100 | C31: -100 | D31: -118 | E31: -138 | F31: -165 | G31: -165 | H31: -194 | I31: -194 | J31: -220 | K31: -230 | L31: -260 | M31: -270 | N31: -310 | O31: -320 | P31: -360 | Q31: -370 | R31: -390 | S31: -425 | T31: -445 | U31: -465 | V31: -510 | W31: -540 | X31: -590 | Y31: -630 | Z31: -690 | AA31: -730 | AB31: 0 | AC31: 0 | AD31: 0 | AE31: 0 | AF31: 0 | AG31: 0 | AH31: 0 | AI31: 0 | AJ31: 0 | AK31: 0 | AL31: 0 | AM31: 0 | AN31: 0 | AO31: 0 | AP31: 0 | AQ31: 0
A32: c11 | B32: -60 | C32: -60 | D32: -70 | E32: -80 | F32: -95 | G32: -95 | H32: -110 | I32: -110 | J32: -120 | K32: -130 | L32: -140 | M32: -150 | N32: -170 | O32: -180 | P32: -200 | Q32: -210 | R32: -230 | S32: -240 | T32: -260 | U32: -280 | V32: -300 | W32: -330 | X32: -360 | Y32: -400 | Z32: -440 | AA32: -480 | AB32: 0 | AC32: 0 | AD32: 0 | AE32: 0 | AF32: 0 | AG32: 0 | AH32: 0 | AI32: 0 | AJ32: 0 | AK32: 0 | AL32: 0 | AM32: 0 | AN32: 0 | AO32: 0 | AP32: 0 | AQ32: 0
B33: -120 | C33: -120 | D33: -145 | E33: -170 | F33: -205 | G33: -205 | H33: -240 | I33: -240 | J33: -280 | K33: -290 | L33: -330 | M33: -340 | N33: -390 | O33: -400 | P33: -450 | Q33: -460 | R33: -480 | S33: -530 | T33: -550 | U33: -570 | V33: -620 | W33: -650 | X33: -720 | Y33: -760 | Z33: -840 | AA33: -880 | AB33: 0 | AC33: 0 | AD33: 0 | AE33: 0 | AF33: 0 | AG33: 0 | AH33: 0 | AI33: 0 | AJ33: 0 | AK33: 0 | AL33: 0 | AM33: 0 | AN33: 0 | AO33: 0 | AP33: 0 | AQ33: 0
A34: c12 | B34: -60 | C34: -60 | D34: -70 | E34: -80 | F34: -95 | G34: -95 | H34: -110 | I34: -110 | J34: -120 | K34: -130 | L34: -140 | M34: -150 | N34: -170 | O34: -180 | P34: -200 | Q34: -210 | R34: -230 | S34: -240 | T34: -260 | U34: -280 | V34: -300 | W34: -330 | X34: -360 | Y34: -400 | Z34: -440 | AA34: -480 | AB34: 0 | AC34: 0 | AD34: 0 | AE34: 0 | AF34: 0 | AG34: 0 | AH34: 0 | AI34: 0 | AJ34: 0 | AK34: 0 | AL34: 0 | AM34: 0 | AN34: 0 | AO34: 0 | AP34: 0 | AQ34: 0
B35: -150 | C35: -150 | D35: -190 | E35: -230 | F35: -275 | G35: -275 | H35: -320 | I35: -320 | J35: -370 | K35: -380 | L35: -440 | M35: -450 | N35: -520 | O35: -530 | P35: -600 | Q35: -610 | R35: -630 | S35: -700 | T35: -720 | U35: -740 | V35: -820 | W35: -850 | X35: -930 | Y35: -970 | Z35: -1070 | AA35: -1110 | AB35: 0 | AC35: 0 | AD35: 0 | AE35: 0 | AF35: 0 | AG35: 0 | AH35: 0 | AI35: 0 | AJ35: 0 | AK35: 0 | AL35: 0 | AM35: 0 | AN35: 0 | AO35: 0 | AP35: 0 | AQ35: 0
A36: cd5 | B36: -34 | C36: -34 | D36: -46 | E36: -56 | F36: 0 | G36: 0 | H36: 0 | I36: 0 | J36: 0 | K36: 0 | L36: 0 | M36: 0 | N36: 0 | O36: 0 | P36: 0 | Q36: 0 | R36: 0 | S36: 0 | T36: 0 | U36: 0 | V36: 0 | W36: 0 | X36: 0 | Y36: 0 | Z36: 0 | AA36: 0 | AB36: 0 | AC36: 0 | AD36: 0 | AE36: 0 | AF36: 0 | AG36: 0 | AH36: 0 | AI36: 0 | AJ36: 0 | AK36: 0 | AL36: 0 | AM36: 0 | AN36: 0 | AO36: 0 | AP36: 0 | AQ36: 0
B37: -38 | C37: -38 | D37: -51 | E37: -62 | F37: 0 | G37: 0 | H37: 0 | I37: 0 | J37: 0 | K37: 0 | L37: 0 | M37: 0 | N37: 0 | O37: 0 | P37: 0 | Q37: 0 | R37: 0 | S37: 0 | T37: 0 | U37: 0 | V37: 0 | W37: 0 | X37: 0 | Y37: 0 | Z37: 0 | AA37: 0 | AB37: 0 | AC37: 0 | AD37: 0 | AE37: 0 | AF37: 0 | AG37: 0 | AH37: 0 | AI37: 0 | AJ37: 0 | AK37: 0 | AL37: 0 | AM37: 0 | AN37: 0 | AO37: 0 | AP37: 0 | AQ37: 0
A38: cd6 | B38: -34 | C38: -34 | D38: -46 | E38: -56 | F38: 0 | G38: 0 | H38: 0 | I38: 0 | J38: 0 | K38: 0 | L38: 0 | M38: 0 | N38: 0 | O38: 0 | P38: 0 | Q38: 0 | R38: 0 | S38: 0 | T38: 0 | U38: 0 | V38: 0 | W38: 0 | X38: 0 | Y38: 0 | Z38: 0 | AA38: 0 | AB38: 0 | AC38: 0 | AD38: 0 | AE38: 0 | AF38: 0 | AG38: 0 | AH38: 0 | AI38: 0 | AJ38: 0 | AK38: 0 | AL38: 0 | AM38: 0 | AN38: 0 | AO38: 0 | AP38: 0 | AQ38: 0
B39: -40 | C39: -40 | D39: -54 | E39: -65 | F39: 0 | G39: 0 | H39: 0 | I39: 0 | J39: 0 | K39: 0 | L39: 0 | M39: 0 | N39: 0 | O39: 0 | P39: 0 | Q39: 0 | R39: 0 | S39: 0 | T39: 0 | U39: 0 | V39: 0 | W39: 0 | X39: 0 | Y39: 0 | Z39: 0 | AA39: 0 | AB39: 0 | AC39: 0 | AD39: 0 | AE39: 0 | AF39: 0 | AG39: 0 | AH39: 0 | AI39: 0 | AJ39: 0 | AK39: 0 | AL39: 0 | AM39: 0 | AN39: 0 | AO39: 0 | AP39: 0 | AQ39: 0
A40: cd7 | B40: -34 | C40: -34 | D40: -46 | E40: -56 | F40: 0 | G40: 0 | H40: 0 | I40: 0 | J40: 0 | K40: 0 | L40: 0 | M40: 0 | N40: 0 | O40: 0 | P40: 0 | Q40: 0 | R40: 0 | S40: 0 | T40: 0 | U40: 0 | V40: 0 | W40: 0 | X40: 0 | Y40: 0 | Z40: 0 | AA40: 0 | AB40: 0 | AC40: 0 | AD40: 0 | AE40: 0 | AF40: 0 | AG40: 0 | AH40: 0 | AI40: 0 | AJ40: 0 | AK40: 0 | AL40: 0 | AM40: 0 | AN40: 0 | AO40: 0 | AP40: 0 | AQ40: 0
B41: -44 | C41: -44 | D41: -58 | E41: -71 | F41: 0 | G41: 0 | H41: 0 | I41: 0 | J41: 0 | K41: 0 | L41: 0 | M41: 0 | N41: 0 | O41: 0 | P41: 0 | Q41: 0 | R41: 0 | S41: 0 | T41: 0 | U41: 0 | V41: 0 | W41: 0 | X41: 0 | Y41: 0 | Z41: 0 | AA41: 0 | AB41: 0 | AC41: 0 | AD41: 0 | AE41: 0 | AF41: 0 | AG41: 0 | AH41: 0 | AI41: 0 | AJ41: 0 | AK41: 0 | AL41: 0 | AM41: 0 | AN41: 0 | AO41: 0 | AP41: 0 | AQ41: 0
A42: cd8 | B42: -34 | C42: -34 | D42: -46 | E42: -56 | F42: 0 | G42: 0 | H42: 0 | I42: 0 | J42: 0 | K42: 0 | L42: 0 | M42: 0 | N42: 0 | O42: 0 | P42: 0 | Q42: 0 | R42: 0 | S42: 0 | T42: 0 | U42: 0 | V42: 0 | W42: 0 | X42: 0 | Y42: 0 | Z42: 0 | AA42: 0 | AB42: 0 | AC42: 0 | AD42: 0 | AE42: 0 | AF42: 0 | AG42: 0 | AH42: 0 | AI42: 0 | AJ42: 0 | AK42: 0 | AL42: 0 | AM42: 0 | AN42: 0 | AO42: 0 | AP42: 0 | AQ42: 0
B43: -48 | C43: -48 | D43: -64 | E43: -78 | F43: 0 | G43: 0 | H43: 0 | I43: 0 | J43: 0 | K43: 0 | L43: 0 | M43: 0 | N43: 0 | O43: 0 | P43: 0 | Q43: 0 | R43: 0 | S43: 0 | T43: 0 | U43: 0 | V43: 0 | W43: 0 | X43: 0 | Y43: 0 | Z43: 0 | AA43: 0 | AB43: 0 | AC43: 0 | AD43: 0 | AE43: 0 | AF43: 0 | AG43: 0 | AH43: 0 | AI43: 0 | AJ43: 0 | AK43: 0 | AL43: 0 | AM43: 0 | AN43: 0 | AO43: 0 | AP43: 0 | AQ43: 0
A44: cd9 | B44: -34 | C44: -34 | D44: -46 | E44: -56 | F44: 0 | G44: 0 | H44: 0 | I44: 0 | J44: 0 | K44: 0 | L44: 0 | M44: 0 | N44: 0 | O44: 0 | P44: 0 | Q44: 0 | R44: 0 | S44: 0 | T44: 0 | U44: 0 | V44: 0 | W44: 0 | X44: 0 | Y44: 0 | Z44: 0 | AA44: 0 | AB44: 0 | AC44: 0 | AD44: 0 | AE44: 0 | AF44: 0 | AG44: 0 | AH44: 0 | AI44: 0 | AJ44: 0 | AK44: 0 | AL44: 0 | AM44: 0 | AN44: 0 | AO44: 0 | AP44: 0 | AQ44: 0
B45: -59 | C45: -59 | D45: -76 | E45: -92 | F45: 0 | G45: 0 | H45: 0 | I45: 0 | J45: 0 | K45: 0 | L45: 0 | M45: 0 | N45: 0 | O45: 0 | P45: 0 | Q45: 0 | R45: 0 | S45: 0 | T45: 0 | U45: 0 | V45: 0 | W45: 0 | X45: 0 | Y45: 0 | Z45: 0 | AA45: 0 | AB45: 0 | AC45: 0 | AD45: 0 | AE45: 0 | AF45: 0 | AG45: 0 | AH45: 0 | AI45: 0 | AJ45: 0 | AK45: 0 | AL45: 0 | AM45: 0 | AN45: 0 | AO45: 0 | AP45: 0 | AQ45: 0
A46: cd10 | B46: -34 | C46: -34 | D46: -46 | E46: -56 | F46: 0 | G46: 0 | H46: 0 | I46: 0 | J46: 0 | K46: 0 | L46: 0 | M46: 0 | N46: 0 | O46: 0 | P46: 0 | Q46: 0 | R46: 0 | S46: 0 | T46: 0 | U46: 0 | V46: 0 | W46: 0 | X46: 0 | Y46: 0 | Z46: 0 | AA46: 0 | AB46: 0 | AC46: 0 | AD46: 0 | AE46: 0 | AF46: 0 | AG46: 0 | AH46: 0 | AI46: 0 | AJ46: 0 | AK46: 0 | AL46: 0 | AM46: 0 | AN46: 0 | AO46: 0 | AP46: 0 | AQ46: 0
B47: -74 | C47: -74 | D47: -94 | E47: -114 | F47: 0 | G47: 0 | H47: 0 | I47: 0 | J47: 0 | K47: 0 | L47: 0 | M47: 0 | N47: 0 | O47: 0 | P47: 0 | Q47: 0 | R47: 0 | S47: 0 | T47: 0 | U47: 0 | V47: 0 | W47: 0 | X47: 0 | Y47: 0 | Z47: 0 | AA47: 0 | AB47: 0 | AC47: 0 | AD47: 0 | AE47: 0 | AF47: 0 | AG47: 0 | AH47: 0 | AI47: 0 | AJ47: 0 | AK47: 0 | AL47: 0 | AM47: 0 | AN47: 0 | AO47: 0 | AP47: 0 | AQ47: 0
A48: d5 | B48: -20 | C48: -20 | D48: -30 | E48: -40 | F48: -50 | G48: -50 | H48: -65 | I48: -65 | J48: -80 | K48: -80 | L48: -100 | M48: -100 | N48: -120 | O48: -120 | P48: -145 | Q48: -145 | R48: -145 | S48: -170 | T48: -170 | U48: -170 | V48: -190 | W48: -190 | X48: -210 | Y48: -210 | Z48: -230 | AA48: -230 | AB48: 0 | AC48: 0 | AD48: 0 | AE48: 0 | AF48: 0 | AG48: 0 | AH48: 0 | AI48: 0 | AJ48: 0 | AK48: 0 | AL48: 0 | AM48: 0 | AN48: 0 | AO48: 0 | AP48: 0 | AQ48: 0
B49: -24 | C49: -24 | D49: -35 | E49: -46 | F49: -58 | G49: -58 | H49: -74 | I49: -74 | J49: -91 | K49: -91 | L49: -113 | M49: -113 | N49: -135 | O49: -135 | P49: -163 | Q49: -163 | R49: -163 | S49: -190 | T49: -190 | U49: -190 | V49: -213 | W49: -213 | X49: -235 | Y49: -235 | Z49: -257 | AA49: -257 | AB49: 0 | AC49: 0 | AD49: 0 | AE49: 0 | AF49: 0 | AG49: 0 | AH49: 0 | AI49: 0 | AJ49: 0 | AK49: 0 | AL49: 0 | AM49: 0 | AN49: 0 | AO49: 0 | AP49: 0 | AQ49: 0
A50: d6 | B50: -20 | C50: -20 | D50: -30 | E50: -40 | F50: -50 | G50: -50 | H50: -65 | I50: -65 | J50: -80 | K50: -80 | L50: -100 | M50: -100 | N50: -120 | O50: -120 | P50: -145 | Q50: -145 | R50: -145 | S50: -170 | T50: -170 | U50: -170 | V50: -190 | W50: -190 | X50: -210 | Y50: -210 | Z50: -230 | AA50: -230 | AB50: 0 | AC50: 0 | AD50: 0 | AE50: 0 | AF50: 0 | AG50: 0 | AH50: 0 | AI50: 0 | AJ50: 0 | AK50: 0 | AL50: 0 | AM50: 0 | AN50: 0 | AO50: 0 | AP50: 0 | AQ50: 0
B51: -26 | C51: -26 | D51: -38 | E51: -49 | F51: -61 | G51: -61 | H51: -78 | I51: -78 | J51: -96 | K51: -96 | L51: -119 | M51: -119 | N51: -142 | O51: -142 | P51: -170 | Q51: -170 | R51: -170 | S51: -199 | T51: -199 | U51: -199 | V51: -222 | W51: -222 | X51: -246 | Y51: -246 | Z51: -270 | AA51: -270 | AB51: 0 | AC51: 0 | AD51: 0 | AE51: 0 | AF51: 0 | AG51: 0 | AH51: 0 | AI51: 0 | AJ51: 0 | AK51: 0 | AL51: 0 | AM51: 0 | AN51: 0 | AO51: 0 | AP51: 0 | AQ51: 0
A52: d7 | B52: -20 | C52: -20 | D52: -30 | E52: -40 | F52: -50 | G52: -50 | H52: -65 | I52: -65 | J52: -80 | K52: -80 | L52: -100 | M52: -100 | N52: -120 | O52: -120 | P52: -145 | Q52: -145 | R52: -145 | S52: -170 | T52: -170 | U52: -170 | V52: -190 | W52: -190 | X52: -210 | Y52: -210 | Z52: -230 | AA52: -230 | AB52: -260 | AC52: -260 | AD52: -290 | AE52: -290 | AF52: -320 | AG52: -320 | AH52: -350 | AI52: -350 | AJ52: -390 | AK52: -390 | AL52: -430 | AM52: -430 | AN52: -480 | AO52: -480 | AP52: -520 | AQ52: -520
B53: -30 | C53: -30 | D53: -42 | E53: -55 | F53: -68 | G53: -68 | H53: -86 | I53: -86 | J53: -105 | K53: -105 | L53: -130 | M53: -130 | N53: -155 | O53: -155 | P53: -185 | Q53: -185 | R53: -185 | S53: -216 | T53: -216 | U53: -216 | V53: -242 | W53: -242 | X53: -267 | Y53: -267 | Z53: -293 | AA53: -293 | AB53: -330 | AC53: -330 | AD53: -370 | AE53: -370 | AF53: -410 | AG53: -410 | AH53: -455 | AI53: -455 | AJ53: -515 | AK53: -515 | AL53: -580 | AM53: -580 | AN53: -655 | AO53: -655 | AP53: -730 | AQ53: -730
A54: d8 | B54: -20 | C54: -20 | D54: -30 | E54: -40 | F54: -50 | G54: -50 | H54: -65 | I54: -65 | J54: -80 | K54: -80 | L54: -100 | M54: -100 | N54: -120 | O54: -120 | P54: -145 | Q54: -145 | R54: -145 | S54: -170 | T54: -170 | U54: -170 | V54: -190 | W54: -190 | X54: -210 | Y54: -210 | Z54: -230 | AA54: -230 | AB54: -260 | AC54: -260 | AD54: -290 | AE54: -290 | AF54: -320 | AG54: -320 | AH54: -350 | AI54: -350 | AJ54: -390 | AK54: -390 | AL54: -430 | AM54: -430 | AN54: -480 | AO54: -480 | AP54: -520 | AQ54: -520
B55: -34 | C55: -34 | D55: -48 | E55: -62 | F55: -77 | G55: -77 | H55: -98 | I55: -98 | J55: -119 | K55: -119 | L55: -146 | M55: -146 | N55: -174 | O55: -174 | P55: -208 | Q55: -208 | R55: -208 | S55: -242 | T55: -242 | U55: -242 | V55: -271 | W55: -271 | X55: -299 | Y55: -299 | Z55: -327 | AA55: -327 | AB55: -370 | AC55: -370 | AD55: -415 | AE55: -415 | AF55: -460 | AG55: -460 | AH55: -515 | AI55: -515 | AJ55: -585 | AK55: -585 | AL55: -660 | AM55: -660 | AN55: -760 | AO55: -760 | AP55: -850 | AQ55: -850
A56: d9 | B56: -20 | C56: -20 | D56: -30 | E56: -40 | F56: -50 | G56: -50 | H56: -65 | I56: -65 | J56: -80 | K56: -80 | L56: -100 | M56: -100 | N56: -120 | O56: -120 | P56: -145 | Q56: -145 | R56: -145 | S56: -170 | T56: -170 | U56: -170 | V56: -190 | W56: -190 | X56: -210 | Y56: -210 | Z56: -230 | AA56: -230 | AB56: -260 | AC56: -260 | AD56: -290 | AE56: -290 | AF56: -320 | AG56: -320 | AH56: -350 | AI56: -350 | AJ56: -390 | AK56: -390 | AL56: -430 | AM56: -430 | AN56: -480 | AO56: -480 | AP56: -520 | AQ56: -520
B57: -45 | C57: -45 | D57: -60 | E57: -76 | F57: -93 | G57: -93 | H57: -117 | I57: -117 | J57: -142 | K57: -142 | L57: -174 | M57: -174 | N57: -207 | O57: -207 | P57: -245 | Q57: -245 | R57: -245 | S57: -285 | T57: -285 | U57: -285 | V57: -320 | W57: -320 | X57: -350 | Y57: -350 | Z57: -385 | AA57: -385 | AB57: -435 | AC57: -435 | AD57: -490 | AE57: -490 | AF57: -550 | AG57: -550 | AH57: -610 | AI57: -610 | AJ57: -700 | AK57: -700 | AL57: -800 | AM57: -800 | AN57: -920 | AO57: -920 | AP57: -1060 | AQ57: -1060
A58: d10 | B58: -20 | C58: -20 | D58: -30 | E58: -40 | F58: -50 | G58: -50 | H58: -65 | I58: -65 | J58: -80 | K58: -80 | L58: -100 | M58: -100 | N58: -120 | O58: -120 | P58: -145 | Q58: -145 | R58: -145 | S58: -170 | T58: -170 | U58: -170 | V58: -190 | W58: -190 | X58: -210 | Y58: -210 | Z58: -230 | AA58: -230 | AB58: -260 | AC58: -260 | AD58: -290 | AE58: -290 | AF58: -320 | AG58: -320 | AH58: -350 | AI58: -350 | AJ58: -390 | AK58: -390 | AL58: -430 | AM58: -430 | AN58: -480 | AO58: -480 | AP58: -520 | AQ58: -520
B59: -60 | C59: -60 | D59: -78 | E59: -98 | F59: -120 | G59: -120 | H59: -149 | I59: -149 | J59: -180 | K59: -180 | L59: -220 | M59: -220 | N59: -260 | O59: -260 | P59: -305 | Q59: -305 | R59: -305 | S59: -355 | T59: -355 | U59: -355 | V59: -400 | W59: -400 | X59: -440 | Y59: -440 | Z59: -480 | AA59: -480 | AB59: -540 | AC59: -540 | AD59: -610 | AE59: -610 | AF59: -680 | AG59: -680 | AH59: -770 | AI59: -770 | AJ59: -890 | AK59: -890 | AL59: -1030 | AM59: -1030 | AN59: -1180 | AO59: -1180 | AP59: -1380 | AQ59: -1380
A60: d11 | B60: -20 | C60: -20 | D60: -30 | E60: -40 | F60: -50 | G60: -50 | H60: -65 | I60: -65 | J60: -80 | K60: -80 | L60: -100 | M60: -100 | N60: -120 | O60: -120 | P60: -145 | Q60: -145 | R60: -145 | S60: -170 | T60: -170 | U60: -170 | V60: -190 | W60: -190 | X60: -210 | Y60: -210 | Z60: -230 | AA60: -230 | AB60: -260 | AC60: -260 | AD60: -290 | AE60: -290 | AF60: -320 | AG60: -320 | AH60: -350 | AI60: -350 | AJ60: -390 | AK60: -390 | AL60: -430 | AM60: -430 | AN60: -480 | AO60: -480 | AP60: -520 | AQ60: -520
B61: -80 | C61: -80 | D61: -105 | E61: -130 | F61: -160 | G61: -160 | H61: -195 | I61: -195 | J61: -240 | K61: -240 | L61: -290 | M61: -290 | N61: -340 | O61: -340 | P61: -395 | Q61: -395 | R61: -395 | S61: -460 | T61: -460 | U61: -460 | V61: -510 | W61: -510 | X61: -570 | Y61: -570 | Z61: -630 | AA61: -630 | AB61: -700 | AC61: -700 | AD61: -790 | AE61: -790 | AF61: -880 | AG61: -880 | AH61: -1010 | AI61: -1010 | AJ61: -1170 | AK61: -1170 | AL61: -1350 | AM61: -1350 | AN61: -1580 | AO61: -1580 | AP61: -1870 | AQ61: -1870
A62: d12 | B62: -20 | C62: -20 | D62: -30 | E62: -40 | F62: -50 | G62: -50 | H62: -65 | I62: -65 | J62: -80 | K62: -80 | L62: -100 | M62: -100 | N62: -120 | O62: -120 | P62: -145 | Q62: -145 | R62: -145 | S62: -170 | T62: -170 | U62: -170 | V62: -190 | W62: -190 | X62: -210 | Y62: -210 | Z62: -230 | AA62: -230 | AB62: 0 | AC62: 0 | AD62: 0 | AE62: 0 | AF62: 0 | AG62: 0 | AH62: 0 | AI62: 0 | AJ62: 0 | AK62: 0 | AL62: 0 | AM62: 0 | AN62: 0 | AO62: 0 | AP62: 0 | AQ62: 0
B63: -120 | C63: -120 | D63: -150 | E63: -190 | F63: -230 | G63: -230 | H63: -275 | I63: -275 | J63: -330 | K63: -330 | L63: -400 | M63: -400 | N63: -470 | O63: -470 | P63: -545 | Q63: -545 | R63: -545 | S63: -630 | T63: -630 | U63: -630 | V63: -710 | W63: -710 | X63: -780 | Y63: -780 | Z63: -860 | AA63: -860 | AB63: 0 | AC63: 0 | AD63: 0 | AE63: 0 | AF63: 0 | AG63: 0 | AH63: 0 | AI63: 0 | AJ63: 0 | AK63: 0 | AL63: 0 | AM63: 0 | AN63: 0 | AO63: 0 | AP63: 0 | AQ63: 0
A64: d13 | B64: -20 | C64: -20 | D64: -30 | E64: -40 | F64: -50 | G64: -50 | H64: -65 | I64: -65 | J64: -80 | K64: -80 | L64: -100 | M64: -100 | N64: -120 | O64: -120 | P64: -145 | Q64: -145 | R64: -145 | S64: -170 | T64: -170 | U64: -170 | V64: -190 | W64: -190 | X64: -210 | Y64: -210 | Z64: -230 | AA64: -230 | AB64: 0 | AC64: 0 | AD64: 0 | AE64: 0 | AF64: 0 | AG64: 0 | AH64: 0 | AI64: 0 | AJ64: 0 | AK64: 0 | AL64: 0 | AM64: 0 | AN64: 0 | AO64: 0 | AP64: 0 | AQ64: 0
B65: -160 | C65: -160 | D65: -210 | E65: -260 | F65: -320 | G65: -320 | H65: -395 | I65: -395 | J65: -470 | K65: -470 | L65: -560 | M65: -560 | N65: -660 | O65: -660 | P65: -775 | Q65: -775 | R65: -775 | S65: -890 | T65: -890 | U65: -890 | V65: -1000 | W65: -1000 | X65: -1100 | Y65: -1100 | Z65: -1200 | AA65: -1200 | AB65: 0 | AC65: 0 | AD65: 0 | AE65: 0 | AF65: 0 | AG65: 0 | AH65: 0 | AI65: 0 | AJ65: 0 | AK65: 0 | AL65: 0 | AM65: 0 | AN65: 0 | AO65: 0 | AP65: 0 | AQ65: 0
A66: e5 | B66: -14 | C66: -14 | D66: -20 | E66: -25 | F66: -32 | G66: -32 | H66: -40 | I66: -40 | J66: -50 | K66: -50 | L66: -60 | M66: -60 | N66: -72 | O66: -72 | P66: -85 | Q66: -85 | R66: -85 | S66: -100 | T66: -100 | U66: -100 | V66: -110 | W66: -110 | X66: -125 | Y66: -125 | Z66: -135 | AA66: -135 | AB66: 0 | AC66: 0 | AD66: 0 | AE66: 0 | AF66: 0 | AG66: 0 | AH66: 0 | AI66: 0 | AJ66: 0 | AK66: 0 | AL66: 0 | AM66: 0 | AN66: 0 | AO66: 0 | AP66: 0 | AQ66: 0
B67: -18 | C67: -18 | D67: -25 | E67: -31 | F67: -40 | G67: -40 | H67: -49 | I67: -49 | J67: -61 | K67: -61 | L67: -73 | M67: -73 | N67: -87 | O67: -87 | P67: -103 | Q67: -103 | R67: -103 | S67: -120 | T67: -120 | U67: -120 | V67: -133 | W67: -133 | X67: -150 | Y67: -150 | Z67: -162 | AA67: -162 | AB67: 0 | AC67: 0 | AD67: 0 | AE67: 0 | AF67: 0 | AG67: 0 | AH67: 0 | AI67: 0 | AJ67: 0 | AK67: 0 | AL67: 0 | AM67: 0 | AN67: 0 | AO67: 0 | AP67: 0 | AQ67: 0
A68: e6 | B68: -14 | C68: -14 | D68: -20 | E68: -25 | F68: -32 | G68: -32 | H68: -40 | I68: -40 | J68: -50 | K68: -50 | L68: -60 | M68: -60 | N68: -72 | O68: -72 | P68: -85 | Q68: -85 | R68: -85 | S68: -100 | T68: -100 | U68: -100 | V68: -110 | W68: -110 | X68: -125 | Y68: -125 | Z68: -135 | AA68: -135 | AB68: -145 | AC68: -145 | AD68: -160 | AE68: -160 | AF68: -170 | AG68: -170 | AH68: -195 | AI68: -195 | AJ68: -220 | AK68: -220 | AL68: -240 | AM68: -240 | AN68: -260 | AO68: -260 | AP68: -290 | AQ68: -290
B69: -20 | C69: -20 | D69: -28 | E69: -34 | F69: -43 | G69: -43 | H69: -53 | I69: -53 | J69: -66 | K69: -66 | L69: -79 | M69: -79 | N69: -94 | O69: -94 | P69: -110 | Q69: -110 | R69: -110 | S69: -129 | T69: -129 | U69: -129 | V69: -142 | W69: -142 | X69: -161 | Y69: -161 | Z69: -175 | AA69: -175 | AB69: -189 | AC69: -189 | AD69: -210 | AE69: -210 | AF69: -226 | AG69: -226 | AH69: -261 | AI69: -261 | AJ69: -298 | AK69: -298 | AL69: -332 | AM69: -332 | AN69: -370 | AO69: -370 | AP69: -425 | AQ69: -425
A70: e7 | B70: -14 | C70: -14 | D70: -20 | E70: -25 | F70: -32 | G70: -32 | H70: -40 | I70: -40 | J70: -50 | K70: -50 | L70: -60 | M70: -60 | N70: -72 | O70: -72 | P70: -85 | Q70: -85 | R70: -85 | S70: -100 | T70: -100 | U70: -100 | V70: -110 | W70: -110 | X70: -125 | Y70: -125 | Z70: -135 | AA70: -135 | AB70: -145 | AC70: -145 | AD70: -160 | AE70: -160 | AF70: -170 | AG70: -170 | AH70: -195 | AI70: -195 | AJ70: -220 | AK70: -220 | AL70: -240 | AM70: -240 | AN70: -260 | AO70: -260 | AP70: -290 | AQ70: -290
B71: -24 | C71: -24 | D71: -32 | E71: -40 | F71: -50 | G71: -50 | H71: -61 | I71: -61 | J71: -75 | K71: -75 | L71: -90 | M71: -90 | N71: -107 | O71: -107 | P71: -125 | Q71: -125 | R71: -125 | S71: -146 | T71: -146 | U71: -146 | V71: -162 | W71: -162 | X71: -182 | Y71: -182 | Z71: -198 | AA71: -198 | AB71: -215 | AC71: -215 | AD71: -240 | AE71: -240 | AF71: -260 | AG71: -260 | AH71: -300 | AI71: -300 | AJ71: -345 | AK71: -345 | AL71: -390 | AM71: -390 | AN71: -435 | AO71: -435 | AP71: -500 | AQ71: -500
A72: e8 | B72: -14 | C72: -14 | D72: -20 | E72: -25 | F72: -32 | G72: -32 | H72: -40 | I72: -40 | J72: -50 | K72: -50 | L72: -60 | M72: -60 | N72: -72 | O72: -72 | P72: -85 | Q72: -85 | R72: -85 | S72: -100 | T72: -100 | U72: -100 | V72: -110 | W72: -110 | X72: -125 | Y72: -125 | Z72: -135 | AA72: -135 | AB72: -145 | AC72: -145 | AD72: -160 | AE72: -160 | AF72: -170 | AG72: -170 | AH72: -195 | AI72: -195 | AJ72: -220 | AK72: -220 | AL72: -240 | AM72: -240 | AN72: -260 | AO72: -260 | AP72: -290 | AQ72: -290
B73: -28 | C73: -28 | D73: -38 | E73: -47 | F73: -59 | G73: -59 | H73: -73 | I73: -73 | J73: -89 | K73: -89 | L73: -106 | M73: -106 | N73: -126 | O73: -126 | P73: -148 | Q73: -148 | R73: -148 | S73: -172 | T73: -172 | U73: -172 | V73: -191 | W73: -191 | X73: -214 | Y73: -214 | Z73: -232 | AA73: -232 | AB73: -255 | AC73: -255 | AD73: -285 | AE73: -285 | AF73: -310 | AG73: -310 | AH73: -360 | AI73: -360 | AJ73: -415 | AK73: -415 | AL73: -470 | AM73: -470 | AN73: -540 | AO73: -540 | AP73: -620 | AQ73: -620
A74: e9 | B74: -14 | C74: -14 | D74: -20 | E74: -25 | F74: -32 | G74: -32 | H74: -40 | I74: -40 | J74: -50 | K74: -50 | L74: -60 | M74: -60 | N74: -72 | O74: -72 | P74: -85 | Q74: -85 | R74: -85 | S74: -100 | T74: -100 | U74: -100 | V74: -110 | W74: -110 | X74: -125 | Y74: -125 | Z74: -135 | AA74: -135 | AB74: -145 | AC74: -145 | AD74: -160 | AE74: -160 | AF74: -170 | AG74: -170 | AH74: -195 | AI74: -195 | AJ74: -220 | AK74: -220 | AL74: -240 | AM74: -240 | AN74: -260 | AO74: -260 | AP74: -290 | AQ74: -290
B75: -39 | C75: -39 | D75: -50 | E75: -61 | F75: -75 | G75: -75 | H75: -92 | I75: -92 | J75: -112 | K75: -112 | L75: -134 | M75: -134 | N75: -159 | O75: -159 | P75: -185 | Q75: -185 | R75: -185 | S75: -215 | T75: -215 | U75: -215 | V75: -240 | W75: -240 | X75: -265 | Y75: -265 | Z75: -290 | AA75: -290 | AB75: -320 | AC75: -320 | AD75: -360 | AE75: -360 | AF75: -400 | AG75: -400 | AH75: -455 | AI75: -455 | AJ75: -530 | AK75: -530 | AL75: -610 | AM75: -610 | AN75: -700 | AO75: -700 | AP75: -830 | AQ75: -830
A76: e10 | B76: -14 | C76: -14 | D76: -20 | E76: -25 | F76: -32 | G76: -32 | H76: -40 | I76: -40 | J76: -50 | K76: -50 | L76: -60 | M76: -60 | N76: -72 | O76: -72 | P76: -85 | Q76: -85 | R76: -85 | S76: -100 | T76: -100 | U76: -100 | V76: -110 | W76: -110 | X76: -125 | Y76: -125 | Z76: -135 | AA76: -135 | AB76: -145 | AC76: -145 | AD76: -160 | AE76: -160 | AF76: -170 | AG76: -170 | AH76: -195 | AI76: -195 | AJ76: -220 | AK76: -220 | AL76: -240 | AM76: -240 | AN76: -260 | AO76: -260 | AP76: -290 | AQ76: -290
B77: -54 | C77: -54 | D77: -68 | E77: -83 | F77: -102 | G77: -102 | H77: -124 | I77: -124 | J77: -150 | K77: -150 | L77: -180 | M77: -180 | N77: -212 | O77: -212 | P77: -245 | Q77: -245 | R77: -245 | S77: -285 | T77: -285 | U77: -285 | V77: -320 | W77: -320 | X77: -355 | Y77: -355 | Z77: -385 | AA77: -385 | AB77: -425 | AC77: -425 | AD77: -480 | AE77: -480 | AF77: -530 | AG77: -530 | AH77: -615 | AI77: -615 | AJ77: -720 | AK77: -720 | AL77: -840 | AM77: -840 | AN77: -960 | AO77: -960 | AP77: -1150 | AQ77: -1150
A78: ef3 | B78: -10 | C78: -10 | D78: -14 | E78: -18 | F78: 0 | G78: 0 | H78: 0 | I78: 0 | J78: 0 | K78: 0 | L78: 0 | M78: 0 | N78: 0 | O78: 0 | P78: 0 | Q78: 0 | R78: 0 | S78: 0 | T78: 0 | U78: 0 | V78: 0 | W78: 0 | X78: 0 | Y78: 0 | Z78: 0 | AA78: 0 | AB78: 0 | AC78: 0 | AD78: 0 | AE78: 0 | AF78: 0 | AG78: 0 | AH78: 0 | AI78: 0 | AJ78: 0 | AK78: 0 | AL78: 0 | AM78: 0 | AN78: 0 | AO78: 0 | AP78: 0 | AQ78: 0
B79: -12 | C79: -12 | D79: -16.5 | E79: -20.5 | F79: 0 | G79: 0 | H79: 0 | I79: 0 | J79: 0 | K79: 0 | L79: 0 | M79: 0 | N79: 0 | O79: 0 | P79: 0 | Q79: 0 | R79: 0 | S79: 0 | T79: 0 | U79: 0 | V79: 0 | W79: 0 | X79: 0 | Y79: 0 | Z79: 0 | AA79: 0 | AB79: 0 | AC79: 0 | AD79: 0 | AE79: 0 | AF79: 0 | AG79: 0 | AH79: 0 | AI79: 0 | AJ79: 0 | AK79: 0 | AL79: 0 | AM79: 0 | AN79: 0 | AO79: 0 | AP79: 0 | AQ79: 0
A80: ef4 | B80: -10 | C80: -10 | D80: -14 | E80: -18 | F80: 0 | G80: 0 | H80: 0 | I80: 0 | J80: 0 | K80: 0 | L80: 0 | M80: 0 | N80: 0 | O80: 0 | P80: 0 | Q80: 0 | R80: 0 | S80: 0 | T80: 0 | U80: 0 | V80: 0 | W80: 0 | X80: 0 | Y80: 0 | Z80: 0 | AA80: 0 | AB80: 0 | AC80: 0 | AD80: 0 | AE80: 0 | AF80: 0 | AG80: 0 | AH80: 0 | AI80: 0 | AJ80: 0 | AK80: 0 | AL80: 0 | AM80: 0 | AN80: 0 | AO80: 0 | AP80: 0 | AQ80: 0
B81: -13 | C81: -13 | D81: -18 | E81: -22 | F81: 0 | G81: 0 | H81: 0 | I81: 0 | J81: 0 | K81: 0 | L81: 0 | M81: 0 | N81: 0 | O81: 0 | P81: 0 | Q81: 0 | R81: 0 | S81: 0 | T81: 0 | U81: 0 | V81: 0 | W81: 0 | X81: 0 | Y81: 0 | Z81: 0 | AA81: 0 | AB81: 0 | AC81: 0 | AD81: 0 | AE81: 0 | AF81: 0 | AG81: 0 | AH81: 0 | AI81: 0 | AJ81: 0 | AK81: 0 | AL81: 0 | AM81: 0 | AN81: 0 | AO81: 0 | AP81: 0 | AQ81: 0
A82: ef5 | B82: -10 | C82: -10 | D82: -14 | E82: -18 | F82: 0 | G82: 0 | H82: 0 | I82: 0 | J82: 0 | K82: 0 | L82: 0 | M82: 0 | N82: 0 | O82: 0 | P82: 0 | Q82: 0 | R82: 0 | S82: 0 | T82: 0 | U82: 0 | V82: 0 | W82: 0 | X82: 0 | Y82: 0 | Z82: 0 | AA82: 0 | AB82: 0 | AC82: 0 | AD82: 0 | AE82: 0 | AF82: 0 | AG82: 0 | AH82: 0 | AI82: 0 | AJ82: 0 | AK82: 0 | AL82: 0 | AM82: 0 | AN82: 0 | AO82: 0 | AP82: 0 | AQ82: 0
B83: -14 | C83: -14 | D83: -19 | E83: -24 | F83: 0 | G83: 0 | H83: 0 | I83: 0 | J83: 0 | K83: 0 | L83: 0 | M83: 0 | N83: 0 | O83: 0 | P83: 0 | Q83: 0 | R83: 0 | S83: 0 | T83: 0 | U83: 0 | V83: 0 | W83: 0 | X83: 0 | Y83: 0 | Z83: 0 | AA83: 0 | AB83: 0 | AC83: 0 | AD83: 0 | AE83: 0 | AF83: 0 | AG83: 0 | AH83: 0 | AI83: 0 | AJ83: 0 | AK83: 0 | AL83: 0 | AM83: 0 | AN83: 0 | AO83: 0 | AP83: 0 | AQ83: 0
A84: ef6 | B84: -10 | C84: -10 | D84: -14 | E84: -18 | F84: 0 | G84: 0 | H84: 0 | I84: 0 | J84: 0 | K84: 0 | L84: 0 | M84: 0 | N84: 0 | O84: 0 | P84: 0 | Q84: 0 | R84: 0 | S84: 0 | T84: 0 | U84: 0 | V84: 0 | W84: 0 | X84: 0 | Y84: 0 | Z84: 0 | AA84: 0 | AB84: 0 | AC84: 0 | AD84: 0 | AE84: 0 | AF84: 0 | AG84: 0 | AH84: 0 | AI84: 0 | AJ84: 0 | AK84: 0 | AL84: 0 | AM84: 0 | AN84: 0 | AO84: 0 | AP84: 0 | AQ84: 0
B85: -16 | C85: -16 | D85: -22 | E85: -27 | F85: 0 | G85: 0 | H85: 0 | I85: 0 | J85: 0 | K85: 0 | L85: 0 | M85: 0 | N85: 0 | O85: 0 | P85: 0 | Q85: 0 | R85: 0 | S85: 0 | T85: 0 | U85: 0 | V85: 0 | W85: 0 | X85: 0 | Y85: 0 | Z85: 0 | AA85: 0 | AB85: 0 | AC85: 0 | AD85: 0 | AE85: 0 | AF85: 0 | AG85: 0 | AH85: 0 | AI85: 0 | AJ85: 0 | AK85: 0 | AL85: 0 | AM85: 0 | AN85: 0 | AO85: 0 | AP85: 0 | AQ85: 0
A86: ef7 | B86: -10 | C86: -10 | D86: -14 | E86: -18 | F86: 0 | G86: 0 | H86: 0 | I86: 0 | J86: 0 | K86: 0 | L86: 0 | M86: 0 | N86: 0 | O86: 0 | P86: 0 | Q86: 0 | R86: 0 | S86: 0 | T86: 0 | U86: 0 | V86: 0 | W86: 0 | X86: 0 | Y86: 0 | Z86: 0 | AA86: 0 | AB86: 0 | AC86: 0 | AD86: 0 | AE86: 0 | AF86: 0 | AG86: 0 | AH86: 0 | AI86: 0 | AJ86: 0 | AK86: 0 | AL86: 0 | AM86: 0 | AN86: 0 | AO86: 0 | AP86: 0 | AQ86: 0
B87: -20 | C87: -20 | D87: -26 | E87: -33 | F87: 0 | G87: 0 | H87: 0 | I87: 0 | J87: 0 | K87: 0 | L87: 0 | M87: 0 | N87: 0 | O87: 0 | P87: 0 | Q87: 0 | R87: 0 | S87: 0 | T87: 0 | U87: 0 | V87: 0 | W87: 0 | X87: 0 | Y87: 0 | Z87: 0 | AA87: 0 | AB87: 0 | AC87: 0 | AD87: 0 | AE87: 0 | AF87: 0 | AG87: 0 | AH87: 0 | AI87: 0 | AJ87: 0 | AK87: 0 | AL87: 0 | AM87: 0 | AN87: 0 | AO87: 0 | AP87: 0 | AQ87: 0
A88: ef8 | B88: -10 | C88: -10 | D88: -14 | E88: -18 | F88: 0 | G88: 0 | H88: 0 | I88: 0 | J88: 0 | K88: 0 | L88: 0 | M88: 0 | N88: 0 | O88: 0 | P88: 0 | Q88: 0 | R88: 0 | S88: 0 | T88: 0 | U88: 0 | V88: 0 | W88: 0 | X88: 0 | Y88: 0 | Z88: 0 | AA88: 0 | AB88: 0 | AC88: 0 | AD88: 0 | AE88: 0 | AF88: 0 | AG88: 0 | AH88: 0 | AI88: 0 | AJ88: 0 | AK88: 0 | AL88: 0 | AM88: 0 | AN88: 0 | AO88: 0 | AP88: 0 | AQ88: 0
B89: -24 | C89: -24 | D89: -32 | E89: -40 | F89: 0 | G89: 0 | H89: 0 | I89: 0 | J89: 0 | K89: 0 | L89: 0 | M89: 0 | N89: 0 | O89: 0 | P89: 0 | Q89: 0 | R89: 0 | S89: 0 | T89: 0 | U89: 0 | V89: 0 | W89: 0 | X89: 0 | Y89: 0 | Z89: 0 | AA89: 0 | AB89: 0 | AC89: 0 | AD89: 0 | AE89: 0 | AF89: 0 | AG89: 0 | AH89: 0 | AI89: 0 | AJ89: 0 | AK89: 0 | AL89: 0 | AM89: 0 | AN89: 0 | AO89: 0 | AP89: 0 | AQ89: 0
A90: ef9 | B90: -10 | C90: -10 | D90: -14 | E90: -18 | F90: 0 | G90: 0 | H90: 0 | I90: 0 | J90: 0 | K90: 0 | L90: 0 | M90: 0 | N90: 0 | O90: 0 | P90: 0 | Q90: 0 | R90: 0 | S90: 0 | T90: 0 | U90: 0 | V90: 0 | W90: 0 | X90: 0 | Y90: 0 | Z90: 0 | AA90: 0 | AB90: 0 | AC90: 0 | AD90: 0 | AE90: 0 | AF90: 0 | AG90: 0 | AH90: 0 | AI90: 0 | AJ90: 0 | AK90: 0 | AL90: 0 | AM90: 0 | AN90: 0 | AO90: 0 | AP90: 0 | AQ90: 0
B91: -35 | C91: -35 | D91: -44 | E91: -54 | F91: 0 | G91: 0 | H91: 0 | I91: 0 | J91: 0 | K91: 0 | L91: 0 | M91: 0 | N91: 0 | O91: 0 | P91: 0 | Q91: 0 | R91: 0 | S91: 0 | T91: 0 | U91: 0 | V91: 0 | W91: 0 | X91: 0 | Y91: 0 | Z91: 0 | AA91: 0 | AB91: 0 | AC91: 0 | AD91: 0 | AE91: 0 | AF91: 0 | AG91: 0 | AH91: 0 | AI91: 0 | AJ91: 0 | AK91: 0 | AL91: 0 | AM91: 0 | AN91: 0 | AO91: 0 | AP91: 0 | AQ91: 0
A92: ef10 | B92: -10 | C92: -10 | D92: -14 | E92: -18 | F92: 0 | G92: 0 | H92: 0 | I92: 0 | J92: 0 | K92: 0 | L92: 0 | M92: 0 | N92: 0 | O92: 0 | P92: 0 | Q92: 0 | R92: 0 | S92: 0 | T92: 0 | U92: 0 | V92: 0 | W92: 0 | X92: 0 | Y92: 0 | Z92: 0 | AA92: 0 | AB92: 0 | AC92: 0 | AD92: 0 | AE92: 0 | AF92: 0 | AG92: 0 | AH92: 0 | AI92: 0 | AJ92: 0 | AK92: 0 | AL92: 0 | AM92: 0 | AN92: 0 | AO92: 0 | AP92: 0 | AQ92: 0
B93: -50 | C93: -50 | D93: -62 | E93: -76 | F93: 0 | G93: 0 | H93: 0 | I93: 0 | J93: 0 | K93: 0 | L93: 0 | M93: 0 | N93: 0 | O93: 0 | P93: 0 | Q93: 0 | R93: 0 | S93: 0 | T93: 0 | U93: 0 | V93: 0 | W93: 0 | X93: 0 | Y93: 0 | Z93: 0 | AA93: 0 | AB93: 0 | AC93: 0 | AD93: 0 | AE93: 0 | AF93: 0 | AG93: 0 | AH93: 0 | AI93: 0 | AJ93: 0 | AK93: 0 | AL93: 0 | AM93: 0 | AN93: 0 | AO93: 0 | AP93: 0 | AQ93: 0
A94: f3 | B94: -6 | C94: -6 | D94: -10 | E94: -13 | F94: -16 | G94: -16 | H94: -20 | I94: -20 | J94: -25 | K94: -25 | L94: 0 | M94: 0 | N94: 0 | O94: 0 | P94: 0 | Q94: 0 | R94: 0 | S94: 0 | T94: 0 | U94: 0 | V94: 0 | W94: 0 | X94: 0 | Y94: 0 | Z94: 0 | AA94: 0 | AB94: 0 | AC94: 0 | AD94: 0 | AE94: 0 | AF94: 0 | AG94: 0 | AH94: 0 | AI94: 0 | AJ94: 0 | AK94: 0 | AL94: 0 | AM94: 0 | AN94: 0 | AO94: 0 | AP94: 0 | AQ94: 0
B95: -8 | C95: -8 | D95: -12.5 | E95: -15.5 | F95: -19 | G95: -19 | H95: -24 | I95: -24 | J95: -29 | K95: -29 | L95: 0 | M95: 0 | N95: 0 | O95: 0 | P95: 0 | Q95: 0 | R95: 0 | S95: 0 | T95: 0 | U95: 0 | V95: 0 | W95: 0 | X95: 0 | Y95: 0 | Z95: 0 | AA95: 0 | AB95: 0 | AC95: 0 | AD95: 0 | AE95: 0 | AF95: 0 | AG95: 0 | AH95: 0 | AI95: 0 | AJ95: 0 | AK95: 0 | AL95: 0 | AM95: 0 | AN95: 0 | AO95: 0 | AP95: 0 | AQ95: 0
A96: f4 | B96: -6 | C96: -6 | D96: -10 | E96: -13 | F96: -16 | G96: -16 | H96: -20 | I96: -20 | J96: -25 | K96: -25 | L96: -30 | M96: -30 | N96: -36 | O96: -36 | P96: -43 | Q96: -43 | R96: -43 | S96: -50 | T96: -50 | U96: -50 | V96: -56 | W96: -56 | X96: -62 | Y96: -62 | Z96: -68 | AA96: -68 | AB96: 0 | AC96: 0 | AD96: 0 | AE96: 0 | AF96: 0 | AG96: 0 | AH96: 0 | AI96: 0 | AJ96: 0 | AK96: 0 | AL96: 0 | AM96: 0 | AN96: 0 | AO96: 0 | AP96: 0 | AQ96: 0
B97: -9 | C97: -9 | D97: -14 | E97: -17 | F97: -21 | G97: -21 | H97: -26 | I97: -26 | J97: -32 | K97: -32 | L97: -38 | M97: -38 | N97: -46 | O97: -46 | P97: -55 | Q97: -55 | R97: -55 | S97: -64 | T97: -64 | U97: -64 | V97: -72 | W97: -72 | X97: -80 | Y97: -80 | Z97: -88 | AA97: -88 | AB97: 0 | AC97: 0 | AD97: 0 | AE97: 0 | AF97: 0 | AG97: 0 | AH97: 0 | AI97: 0 | AJ97: 0 | AK97: 0 | AL97: 0 | AM97: 0 | AN97: 0 | AO97: 0 | AP97: 0 | AQ97: 0
A98: f5 | B98: -6 | C98: -6 | D98: -10 | E98: -13 | F98: -16 | G98: -16 | H98: -20 | I98: -20 | J98: -25 | K98: -25 | L98: -30 | M98: -30 | N98: -36 | O98: -36 | P98: -43 | Q98: -43 | R98: -43 | S98: -50 | T98: -50 | U98: -50 | V98: -56 | W98: -56 | X98: -62 | Y98: -62 | Z98: -68 | AA98: -68 | AB98: 0 | AC98: 0 | AD98: 0 | AE98: 0 | AF98: 0 | AG98: 0 | AH98: 0 | AI98: 0 | AJ98: 0 | AK98: 0 | AL98: 0 | AM98: 0 | AN98: 0 | AO98: 0 | AP98: 0 | AQ98: 0
B99: -10 | C99: -10 | D99: -15 | E99: -19 | F99: -24 | G99: -24 | H99: -29 | I99: -29 | J99: -36 | K99: -36 | L99: -43 | M99: -43 | N99: -51 | O99: -51 | P99: -61 | Q99: -61 | R99: -61 | S99: -70 | T99: -70 | U99: -70 | V99: -79 | W99: -79 | X99: -87 | Y99: -87 | Z99: -95 | AA99: -95 | AB99: 0 | AC99: 0 | AD99: 0 | AE99: 0 | AF99: 0 | AG99: 0 | AH99: 0 | AI99: 0 | AJ99: 0 | AK99: 0 | AL99: 0 | AM99: 0 | AN99: 0 | AO99: 0 | AP99: 0 | AQ99: 0
A100: f6 | B100: -6 | C100: -6 | D100: -10 | E100: -13 | F100: -16 | G100: -16 | H100: -20 | I100: -20 | J100: -25 | K100: -25 | L100: -30 | M100: -30 | N100: -36 | O100: -36 | P100: -43 | Q100: -43 | R100: -43 | S100: -50 | T100: -50 | U100: -50 | V100: -56 | W100: -56 | X100: -62 | Y100: -62 | Z100: -68 | AA100: -68 | AB100: -76 | AC100: -76 | AD100: -80 | AE100: -80 | AF100: -86 | AG100: -86 | AH100: -98 | AI100: -98 | AJ100: -110 | AK100: -110 | AL100: -120 | AM100: -120 | AN100: -130 | AO100: -130 | AP100: -145 | AQ100: -145
B101: -12 | C101: -12 | D101: -18 | E101: -22 | F101: -27 | G101: -27 | H101: -33 | I101: -33 | J101: -41 | K101: -41 | L101: -49 | M101: -49 | N101: -58 | O101: -58 | P101: -68 | Q101: -68 | R101: -68 | S101: -79 | T101: -79 | U101: -79 | V101: -88 | W101: -88 | X101: -98 | Y101: -98 | Z101: -108 | AA101: -108 | AB101: -120 | AC101: -120 | AD101: -130 | AE101: -130 | AF101: -142 | AG101: -142 | AH101: -164 | AI101: -164 | AJ101: -188 | AK101: -188 | AL101: -212 | AM101: -212 | AN101: -240 | AO101: -240 | AP101: -280 | AQ101: -280
A102: f7 | B102: -6 | C102: -6 | D102: -10 | E102: -13 | F102: -16 | G102: -16 | H102: -20 | I102: -20 | J102: -25 | K102: -25 | L102: -30 | M102: -30 | N102: -36 | O102: -36 | P102: -43 | Q102: -43 | R102: -43 | S102: -50 | T102: -50 | U102: -50 | V102: -56 | W102: -56 | X102: -62 | Y102: -62 | Z102: -68 | AA102: -68 | AB102: -76 | AC102: -76 | AD102: -80 | AE102: -80 | AF102: -86 | AG102: -86 | AH102: -98 | AI102: -98 | AJ102: -110 | AK102: -110 | AL102: -120 | AM102: -120 | AN102: -130 | AO102: -130 | AP102: -145 | AQ102: -145
B103: -16 | C103: -16 | D103: -22 | E103: -28 | F103: -34 | G103: -34 | H103: -41 | I103: -41 | J103: -50 | K103: -50 | L103: -60 | M103: -60 | N103: -71 | O103: -71 | P103: -83 | Q103: -83 | R103: -83 | S103: -96 | T103: -96 | U103: -96 | V103: -108 | W103: -108 | X103: -119 | Y103: -119 | Z103: -131 | AA103: -131 | AB103: -146 | AC103: -146 | AD103: -160 | AE103: -160 | AF103: -176 | AG103: -176 | AH103: -203 | AI103: -203 | AJ103: -235 | AK103: -235 | AL103: -270 | AM103: -270 | AN103: -305 | AO103: -305 | AP103: -355 | AQ103: -355
A104: f8 | B104: -6 | C104: -6 | D104: -10 | E104: -13 | F104: -16 | G104: -16 | H104: -20 | I104: -20 | J104: -25 | K104: -25 | L104: -30 | M104: -30 | N104: -36 | O104: -36 | P104: -43 | Q104: -43 | R104: -43 | S104: -50 | T104: -50 | U104: -50 | V104: -56 | W104: -56 | X104: -62 | Y104: -62 | Z104: -68 | AA104: -68 | AB104: -76 | AC104: -76 | AD104: -80 | AE104: -80 | AF104: -86 | AG104: -86 | AH104: -98 | AI104: -98 | AJ104: -110 | AK104: -110 | AL104: -120 | AM104: -120 | AN104: -130 | AO104: -130 | AP104: -145 | AQ104: -145
B105: -20 | C105: -20 | D105: -28 | E105: -35 | F105: -43 | G105: -43 | H105: -53 | I105: -53 | J105: -64 | K105: -64 | L105: -76 | M105: -76 | N105: -90 | O105: -90 | P105: -106 | Q105: -106 | R105: -106 | S105: -122 | T105: -122 | U105: -122 | V105: -137 | W105: -137 | X105: -151 | Y105: -151 | Z105: -165 | AA105: -165 | AB105: -186 | AC105: -186 | AD105: -205 | AE105: -205 | AF105: -226 | AG105: -226 | AH105: -263 | AI105: -263 | AJ105: -305 | AK105: -305 | AL105: -350 | AM105: -350 | AN105: -410 | AO105: -410 | AP105: -475 | AQ105: -475
A106: f9 | B106: -6 | C106: -6 | D106: -10 | E106: -13 | F106: -16 | G106: -16 | H106: -20 | I106: -20 | J106: -25 | K106: -25 | L106: -30 | M106: -30 | N106: -36 | O106: -36 | P106: -43 | Q106: -43 | R106: -43 | S106: -50 | T106: -50 | U106: -50 | V106: -56 | W106: -56 | X106: -62 | Y106: -62 | Z106: -68 | AA106: -68 | AB106: -76 | AC106: -76 | AD106: -80 | AE106: -80 | AF106: -86 | AG106: -86 | AH106: -98 | AI106: -98 | AJ106: -110 | AK106: -110 | AL106: -120 | AM106: -120 | AN106: -130 | AO106: -130 | AP106: -145 | AQ106: -145
B107: -31 | C107: -31 | D107: -40 | E107: -49 | F107: -59 | G107: -59 | H107: -72 | I107: -72 | J107: -87 | K107: -87 | L107: -104 | M107: -104 | N107: -123 | O107: -123 | P107: -143 | Q107: -143 | R107: -143 | S107: -165 | T107: -165 | U107: -165 | V107: -186 | W107: -186 | X107: -202 | Y107: -202 | Z107: -223 | AA107: -223 | AB107: -251 | AC107: -251 | AD107: -280 | AE107: -280 | AF107: -316 | AG107: -316 | AH107: -358 | AI107: -358 | AJ107: -420 | AK107: -420 | AL107: -490 | AM107: -490 | AN107: -570 | AO107: -570 | AP107: -685 | AQ107: -685
A108: f10 | B108: -6 | C108: -6 | D108: -10 | E108: -13 | F108: -16 | G108: -16 | H108: -20 | I108: -20 | J108: -25 | K108: -25 | L108: 0 | M108: 0 | N108: 0 | O108: 0 | P108: 0 | Q108: 0 | R108: 0 | S108: 0 | T108: 0 | U108: 0 | V108: 0 | W108: 0 | X108: 0 | Y108: 0 | Z108: 0 | AA108: 0 | AB108: 0 | AC108: 0 | AD108: 0 | AE108: 0 | AF108: 0 | AG108: 0 | AH108: 0 | AI108: 0 | AJ108: 0 | AK108: 0 | AL108: 0 | AM108: 0 | AN108: 0 | AO108: 0 | AP108: 0 | AQ108: 0
B109: -46 | C109: -46 | D109: -58 | E109: -71 | F109: -86 | G109: -86 | H109: -104 | I109: -104 | J109: -125 | K109: -125 | L109: 0 | M109: 0 | N109: 0 | O109: 0 | P109: 0 | Q109: 0 | R109: 0 | S109: 0 | T109: 0 | U109: 0 | V109: 0 | W109: 0 | X109: 0 | Y109: 0 | Z109: 0 | AA109: 0 | AB109: 0 | AC109: 0 | AD109: 0 | AE109: 0 | AF109: 0 | AG109: 0 | AH109: 0 | AI109: 0 | AJ109: 0 | AK109: 0 | AL109: 0 | AM109: 0 | AN109: 0 | AO109: 0 | AP109: 0 | AQ109: 0
A110: fg3 | B110: -4 | C110: -4 | D110: -6 | E110: -8 | F110: 0 | G110: 0 | H110: 0 | I110: 0 | J110: 0 | K110: 0 | L110: 0 | M110: 0 | N110: 0 | O110: 0 | P110: 0 | Q110: 0 | R110: 0 | S110: 0 | T110: 0 | U110: 0 | V110: 0 | W110: 0 | X110: 0 | Y110: 0 | Z110: 0 | AA110: 0 | AB110: 0 | AC110: 0 | AD110: 0 | AE110: 0 | AF110: 0 | AG110: 0 | AH110: 0 | AI110: 0 | AJ110: 0 | AK110: 0 | AL110: 0 | AM110: 0 | AN110: 0 | AO110: 0 | AP110: 0 | AQ110: 0
B111: -6 | C111: -6 | D111: -8.5 | E111: -10.5 | F111: 0 | G111: 0 | H111: 0 | I111: 0 | J111: 0 | K111: 0 | L111: 0 | M111: 0 | N111: 0 | O111: 0 | P111: 0 | Q111: 0 | R111: 0 | S111: 0 | T111: 0 | U111: 0 | V111: 0 | W111: 0 | X111: 0 | Y111: 0 | Z111: 0 | AA111: 0 | AB111: 0 | AC111: 0 | AD111: 0 | AE111: 0 | AF111: 0 | AG111: 0 | AH111: 0 | AI111: 0 | AJ111: 0 | AK111: 0 | AL111: 0 | AM111: 0 | AN111: 0 | AO111: 0 | AP111: 0 | AQ111: 0
A112: fg4 | B112: -4 | C112: -4 | D112: -6 | E112: -8 | F112: 0 | G112: 0 | H112: 0 | I112: 0 | J112: 0 | K112: 0 | L112: 0 | M112: 0 | N112: 0 | O112: 0 | P112: 0 | Q112: 0 | R112: 0 | S112: 0 | T112: 0 | U112: 0 | V112: 0 | W112: 0 | X112: 0 | Y112: 0 | Z112: 0 | AA112: 0 | AB112: 0 | AC112: 0 | AD112: 0 | AE112: 0 | AF112: 0 | AG112: 0 | AH112: 0 | AI112: 0 | AJ112: 0 | AK112: 0 | AL112: 0 | AM112: 0 | AN112: 0 | AO112: 0 | AP112: 0 | AQ112: 0
B113: -7 | C113: -7 | D113: -10 | E113: -12 | F113: 0 | G113: 0 | H113: 0 | I113: 0 | J113: 0 | K113: 0 | L113: 0 | M113: 0 | N113: 0 | O113: 0 | P113: 0 | Q113: 0 | R113: 0 | S113: 0 | T113: 0 | U113: 0 | V113: 0 | W113: 0 | X113: 0 | Y113: 0 | Z113: 0 | AA113: 0 | AB113: 0 | AC113: 0 | AD113: 0 | AE113: 0 | AF113: 0 | AG113: 0 | AH113: 0 | AI113: 0 | AJ113: 0 | AK113: 0 | AL113: 0 | AM113: 0 | AN113: 0 | AO113: 0 | AP113: 0 | AQ113: 0
A114: fg5 | B114: -4 | C114: -4 | D114: -6 | E114: -8 | F114: 0 | G114: 0 | H114: 0 | I114: 0 | J114: 0 | K114: 0 | L114: 0 | M114: 0 | N114: 0 | O114: 0 | P114: 0 | Q114: 0 | R114: 0 | S114: 0 | T114: 0 | U114: 0 | V114: 0 | W114: 0 | X114: 0 | Y114: 0 | Z114: 0 | AA114: 0 | AB114: 0 | AC114: 0 | AD114: 0 | AE114: 0 | AF114: 0 | AG114: 0 | AH114: 0 | AI114: 0 | AJ114: 0 | AK114: 0 | AL114: 0 | AM114: 0 | AN114: 0 | AO114: 0 | AP114: 0 | AQ114: 0
B115: -8 | C115: -8 | D115: -11 | E115: -14 | F115: 0 | G115: 0 | H115: 0 | I115: 0 | J115: 0 | K115: 0 | L115: 0 | M115: 0 | N115: 0 | O115: 0 | P115: 0 | Q115: 0 | R115: 0 | S115: 0 | T115: 0 | U115: 0 | V115: 0 | W115: 0 | X115: 0 | Y115: 0 | Z115: 0 | AA115: 0 | AB115: 0 | AC115: 0 | AD115: 0 | AE115: 0 | AF115: 0 | AG115: 0 | AH115: 0 | AI115: 0 | AJ115: 0 | AK115: 0 | AL115: 0 | AM115: 0 | AN115: 0 | AO115: 0 | AP115: 0 | AQ115: 0
A116: fg6 | B116: -4 | C116: -4 | D116: -6 | E116: -8 | F116: 0 | G116: 0 | H116: 0 | I116: 0 | J116: 0 | K116: 0 | L116: 0 | M116: 0 | N116: 0 | O116: 0 | P116: 0 | Q116: 0 | R116: 0 | S116: 0 | T116: 0 | U116: 0 | V116: 0 | W116: 0 | X116: 0 | Y116: 0 | Z116: 0 | AA116: 0 | AB116: 0 | AC116: 0 | AD116: 0 | AE116: 0 | AF116: 0 | AG116: 0 | AH116: 0 | AI116: 0 | AJ116: 0 | AK116: 0 | AL116: 0 | AM116: 0 | AN116: 0 | AO116: 0 | AP116: 0 | AQ116: 0
B117: -10 | C117: -10 | D117: -14 | E117: -17 | F117: 0 | G117: 0 | H117: 0 | I117: 0 | J117: 0 | K117: 0 | L117: 0 | M117: 0 | N117: 0 | O117: 0 | P117: 0 | Q117: 0 | R117: 0 | S117: 0 | T117: 0 | U117: 0 | V117: 0 | W117: 0 | X117: 0 | Y117: 0 | Z117: 0 | AA117: 0 | AB117: 0 | AC117: 0 | AD117: 0 | AE117: 0 | AF117: 0 | AG117: 0 | AH117: 0 | AI117: 0 | AJ117: 0 | AK117: 0 | AL117: 0 | AM117: 0 | AN117: 0 | AO117: 0 | AP117: 0 | AQ117: 0
A118: fg7 | B118: -4 | C118: -4 | D118: -6 | E118: -8 | F118: 0 | G118: 0 | H118: 0 | I118: 0 | J118: 0 | K118: 0 | L118: 0 | M118: 0 | N118: 0 | O118: 0 | P118: 0 | Q118: 0 | R118: 0 | S118: 0 | T118: 0 | U118: 0 | V118: 0 | W118: 0 | X118: 0 | Y118: 0 | Z118: 0 | AA118: 0 | AB118: 0 | AC118: 0 | AD118: 0 | AE118: 0 | AF118: 0 | AG118: 0 | AH118: 0 | AI118: 0 | AJ118: 0 | AK118: 0 | AL118: 0 | AM118: 0 | AN118: 0 | AO118: 0 | AP118: 0 | AQ118: 0
B119: -14 | C119: -14 | D119: -18 | E119: -23 | F119: 0 | G119: 0 | H119: 0 | I119: 0 | J119: 0 | K119: 0 | L119: 0 | M119: 0 | N119: 0 | O119: 0 | P119: 0 | Q119: 0 | R119: 0 | S119: 0 | T119: 0 | U119: 0 | V119: 0 | W119: 0 | X119: 0 | Y119: 0 | Z119: 0 | AA119: 0 | AB119: 0 | AC119: 0 | AD119: 0 | AE119: 0 | AF119: 0 | AG119: 0 | AH119: 0 | AI119: 0 | AJ119: 0 | AK119: 0 | AL119: 0 | AM119: 0 | AN119: 0 | AO119: 0 | AP119: 0 | AQ119: 0
A120: fg8 | B120: -4 | C120: -4 | D120: -6 | E120: -8 | F120: 0 | G120: 0 | H120: 0 | I120: 0 | J120: 0 | K120: 0 | L120: 0 | M120: 0 | N120: 0 | O120: 0 | P120: 0 | Q120: 0 | R120: 0 | S120: 0 | T120: 0 | U120: 0 | V120: 0 | W120: 0 | X120: 0 | Y120: 0 | Z120: 0 | AA120: 0 | AB120: 0 | AC120: 0 | AD120: 0 | AE120: 0 | AF120: 0 | AG120: 0 | AH120: 0 | AI120: 0 | AJ120: 0 | AK120: 0 | AL120: 0 | AM120: 0 | AN120: 0 | AO120: 0 | AP120: 0 | AQ120: 0
B121: -18 | C121: -18 | D121: -24 | E121: -30 | F121: 0 | G121: 0 | H121: 0 | I121: 0 | J121: 0 | K121: 0 | L121: 0 | M121: 0 | N121: 0 | O121: 0 | P121: 0 | Q121: 0 | R121: 0 | S121: 0 | T121: 0 | U121: 0 | V121: 0 | W121: 0 | X121: 0 | Y121: 0 | Z121: 0 | AA121: 0 | AB121: 0 | AC121: 0 | AD121: 0 | AE121: 0 | AF121: 0 | AG121: 0 | AH121: 0 | AI121: 0 | AJ121: 0 | AK121: 0 | AL121: 0 | AM121: 0 | AN121: 0 | AO121: 0 | AP121: 0 | AQ121: 0
A122: fg9 | B122: -4 | C122: -4 | D122: -6 | E122: -8 | F122: 0 | G122: 0 | H122: 0 | I122: 0 | J122: 0 | K122: 0 | L122: 0 | M122: 0 | N122: 0 | O122: 0 | P122: 0 | Q122: 0 | R122: 0 | S122: 0 | T122: 0 | U122: 0 | V122: 0 | W122: 0 | X122: 0 | Y122: 0 | Z122: 0 | AA122: 0 | AB122: 0 | AC122: 0 | AD122: 0 | AE122: 0 | AF122: 0 | AG122: 0 | AH122: 0 | AI122: 0 | AJ122: 0 | AK122: 0 | AL122: 0 | AM122: 0 | AN122: 0 | AO122: 0 | AP122: 0 | AQ122: 0
B123: -29 | C123: -29 | D123: -36 | E123: -44 | F123: 0 | G123: 0 | H123: 0 | I123: 0 | J123: 0 | K123: 0 | L123: 0 | M123: 0 | N123: 0 | O123: 0 | P123: 0 | Q123: 0 | R123: 0 | S123: 0 | T123: 0 | U123: 0 | V123: 0 | W123: 0 | X123: 0 | Y123: 0 | Z123: 0 | AA123: 0 | AB123: 0 | AC123: 0 | AD123: 0 | AE123: 0 | AF123: 0 | AG123: 0 | AH123: 0 | AI123: 0 | AJ123: 0 | AK123: 0 | AL123: 0 | AM123: 0 | AN123: 0 | AO123: 0 | AP123: 0 | AQ123: 0
A124: fg10 | B124: -4 | C124: -4 | D124: -6 | E124: -8 | F124: 0 | G124: 0 | H124: 0 | I124: 0 | J124: 0 | K124: 0 | L124: 0 | M124: 0 | N124: 0 | O124: 0 | P124: 0 | Q124: 0 | R124: 0 | S124: 0 | T124: 0 | U124: 0 | V124: 0 | W124: 0 | X124: 0 | Y124: 0 | Z124: 0 | AA124: 0 | AB124: 0 | AC124: 0 | AD124: 0 | AE124: 0 | AF124: 0 | AG124: 0 | AH124: 0 | AI124: 0 | AJ124: 0 | AK124: 0 | AL124: 0 | AM124: 0 | AN124: 0 | AO124: 0 | AP124: 0 | AQ124: 0
B125: -44 | C125: -44 | D125: -54 | E125: -66 | F125: 0 | G125: 0 | H125: 0 | I125: 0 | J125: 0 | K125: 0 | L125: 0 | M125: 0 | N125: 0 | O125: 0 | P125: 0 | Q125: 0 | R125: 0 | S125: 0 | T125: 0 | U125: 0 | V125: 0 | W125: 0 | X125: 0 | Y125: 0 | Z125: 0 | AA125: 0 | AB125: 0 | AC125: 0 | AD125: 0 | AE125: 0 | AF125: 0 | AG125: 0 | AH125: 0 | AI125: 0 | AJ125: 0 | AK125: 0 | AL125: 0 | AM125: 0 | AN125: 0 | AO125: 0 | AP125: 0 | AQ125: 0
A126: g3 | B126: -2 | C126: -2 | D126: -4 | E126: -5 | F126: -6 | G126: -6 | H126: -7 | I126: -7 | J126: -9 | K126: -9 | L126: 0 | M126: 0 | N126: 0 | O126: 0 | P126: 0 | Q126: 0 | R126: 0 | S126: 0 | T126: 0 | U126: 0 | V126: 0 | W126: 0 | X126: 0 | Y126: 0 | Z126: 0 | AA126: 0 | AB126: 0 | AC126: 0 | AD126: 0 | AE126: 0 | AF126: 0 | AG126: 0 | AH126: 0 | AI126: 0 | AJ126: 0 | AK126: 0 | AL126: 0 | AM126: 0 | AN126: 0 | AO126: 0 | AP126: 0 | AQ126: 0
B127: -4 | C127: -4 | D127: -6.5 | E127: -7.5 | F127: -9 | G127: -9 | H127: -11 | I127: -11 | J127: -13 | K127: -13 | L127: 0 | M127: 0 | N127: 0 | O127: 0 | P127: 0 | Q127: 0 | R127: 0 | S127: 0 | T127: 0 | U127: 0 | V127: 0 | W127: 0 | X127: 0 | Y127: 0 | Z127: 0 | AA127: 0 | AB127: 0 | AC127: 0 | AD127: 0 | AE127: 0 | AF127: 0 | AG127: 0 | AH127: 0 | AI127: 0 | AJ127: 0 | AK127: 0 | AL127: 0 | AM127: 0 | AN127: 0 | AO127: 0 | AP127: 0 | AQ127: 0
A128: g4 | B128: -2 | C128: -2 | D128: -4 | E128: -5 | F128: -6 | G128: -6 | H128: -7 | I128: -7 | J128: -9 | K128: -9 | L128: -10 | M128: -10 | N128: -12 | O128: -12 | P128: -14 | Q128: -14 | R128: -14 | S128: -15 | T128: -15 | U128: -15 | V128: -17 | W128: -17 | X128: -18 | Y128: -18 | Z128: -20 | AA128: -20 | AB128: 0 | AC128: 0 | AD128: 0 | AE128: 0 | AF128: 0 | AG128: 0 | AH128: 0 | AI128: 0 | AJ128: 0 | AK128: 0 | AL128: 0 | AM128: 0 | AN128: 0 | AO128: 0 | AP128: 0 | AQ128: 0
B129: -5 | C129: -5 | D129: -8 | E129: -9 | F129: -11 | G129: -11 | H129: -13 | I129: -13 | J129: -16 | K129: -16 | L129: -18 | M129: -18 | N129: -22 | O129: -22 | P129: -26 | Q129: -26 | R129: -26 | S129: -29 | T129: -29 | U129: -29 | V129: -33 | W129: -33 | X129: -36 | Y129: -36 | Z129: -40 | AA129: -40 | AB129: 0 | AC129: 0 | AD129: 0 | AE129: 0 | AF129: 0 | AG129: 0 | AH129: 0 | AI129: 0 | AJ129: 0 | AK129: 0 | AL129: 0 | AM129: 0 | AN129: 0 | AO129: 0 | AP129: 0 | AQ129: 0
A130: g5 | B130: -2 | C130: -2 | D130: -4 | E130: -5 | F130: -6 | G130: -6 | H130: -7 | I130: -7 | J130: -9 | K130: -9 | L130: -10 | M130: -10 | N130: -12 | O130: -12 | P130: -14 | Q130: -14 | R130: -14 | S130: -15 | T130: -15 | U130: -15 | V130: -17 | W130: -17 | X130: -18 | Y130: -18 | Z130: -20 | AA130: -20 | AB130: 0 | AC130: 0 | AD130: 0 | AE130: 0 | AF130: 0 | AG130: 0 | AH130: 0 | AI130: 0 | AJ130: 0 | AK130: 0 | AL130: 0 | AM130: 0 | AN130: 0 | AO130: 0 | AP130: 0 | AQ130: 0
B131: -6 | C131: -6 | D131: -9 | E131: -11 | F131: -14 | G131: -14 | H131: -16 | I131: -16 | J131: -20 | K131: -20 | L131: -23 | M131: -23 | N131: -27 | O131: -27 | P131: -32 | Q131: -32 | R131: -32 | S131: -35 | T131: -35 | U131: -35 | V131: -40 | W131: -40 | X131: -43 | Y131: -43 | Z131: -47 | AA131: -47 | AB131: 0 | AC131: 0 | AD131: 0 | AE131: 0 | AF131: 0 | AG131: 0 | AH131: 0 | AI131: 0 | AJ131: 0 | AK131: 0 | AL131: 0 | AM131: 0 | AN131: 0 | AO131: 0 | AP131: 0 | AQ131: 0
A132: g6 | B132: -2 | C132: -2 | D132: -4 | E132: -5 | F132: -6 | G132: -6 | H132: -7 | I132: -7 | J132: -9 | K132: -9 | L132: -10 | M132: -10 | N132: -12 | O132: -12 | P132: -14 | Q132: -14 | R132: -14 | S132: -15 | T132: -15 | U132: -15 | V132: -17 | W132: -17 | X132: -18 | Y132: -18 | Z132: -20 | AA132: -20 | AB132: -22 | AC132: -22 | AD132: -24 | AE132: -24 | AF132: -26 | AG132: -26 | AH132: -28 | AI132: -28 | AJ132: -30 | AK132: -30 | AL132: -32 | AM132: -32 | AN132: -34 | AO132: -34 | AP132: -38 | AQ132: -38
B133: -8 | C133: -8 | D133: -12 | E133: -14 | F133: -17 | G133: -17 | H133: -20 | I133: -20 | J133: -25 | K133: -25 | L133: -29 | M133: -29 | N133: -34 | O133: -34 | P133: -39 | Q133: -39 | R133: -39 | S133: -44 | T133: -44 | U133: -44 | V133: -49 | W133: -49 | X133: -54 | Y133: -54 | Z133: -60 | AA133: -60 | AB133: -66 | AC133: -66 | AD133: -74 | AE133: -74 | AF133: -82 | AG133: -82 | AH133: -94 | AI133: -94 | AJ133: -108 | AK133: -108 | AL133: -124 | AM133: -124 | AN133: -144 | AO133: -144 | AP133: -173 | AQ133: -173
A134: g7 | B134: -2 | C134: -2 | D134: -4 | E134: -5 | F134: -6 | G134: -6 | H134: -7 | I134: -7 | J134: -9 | K134: -9 | L134: -10 | M134: -10 | N134: -12 | O134: -12 | P134: -14 | Q134: -14 | R134: -14 | S134: -15 | T134: -15 | U134: -15 | V134: -17 | W134: -17 | X134: -18 | Y134: -18 | Z134: -20 | AA134: -20 | AB134: -22 | AC134: -22 | AD134: -24 | AE134: -24 | AF134: -26 | AG134: -26 | AH134: -28 | AI134: -28 | AJ134: -30 | AK134: -30 | AL134: -32 | AM134: -32 | AN134: -34 | AO134: -34 | AP134: -38 | AQ134: -38
B135: -12 | C135: -12 | D135: -16 | E135: -20 | F135: -24 | G135: -24 | H135: -28 | I135: -28 | J135: -34 | K135: -34 | L135: -40 | M135: -40 | N135: -47 | O135: -47 | P135: -54 | Q135: -54 | R135: -54 | S135: -61 | T135: -61 | U135: -61 | V135: -69 | W135: -69 | X135: -75 | Y135: -75 | Z135: -83 | AA135: -83 | AB135: -92 | AC135: -92 | AD135: -104 | AE135: -104 | AF135: -116 | AG135: -116 | AH135: -133 | AI135: -133 | AJ135: -155 | AK135: -155 | AL135: -182 | AM135: -182 | AN135: -209 | AO135: -209 | AP135: -248 | AQ135: -248
A136: g8 | B136: -2 | C136: -2 | D136: -4 | E136: -5 | F136: -6 | G136: -6 | H136: -7 | I136: -7 | J136: -9 | K136: -9 | L136: -10 | M136: -10 | N136: -12 | O136: -12 | P136: -14 | Q136: -14 | R136: -14 | S136: -15 | T136: -15 | U136: -15 | V136: -17 | W136: -17 | X136: -18 | Y136: -18 | Z136: -20 | AA136: -20 | AB136: -22 | AC136: -22 | AD136: -24 | AE136: -24 | AF136: -26 | AG136: -26 | AH136: -28 | AI136: -28 | AJ136: -30 | AK136: -30 | AL136: -32 | AM136: -32 | AN136: -34 | AO136: -34 | AP136: -38 | AQ136: -38
B137: -16 | C137: -16 | D137: -22 | E137: -27 | F137: -33 | G137: -33 | H137: -40 | I137: -40 | J137: -48 | K137: -48 | L137: -56 | M137: -56 | N137: -66 | O137: -66 | P137: -77 | Q137: -77 | R137: -77 | S137: -87 | T137: -87 | U137: -87 | V137: -98 | W137: -98 | X137: -107 | Y137: -107 | Z137: -117 | AA137: -117 | AB137: -132 | AC137: -132 | AD137: -149 | AE137: -149 | AF137: -166 | AG137: -166 | AH137: -193 | AI137: -193 | AJ137: -225 | AK137: -225 | AL137: -262 | AM137: -262 | AN137: -314 | AO137: -314 | AP137: -368 | AQ137: -368
A138: g9 | B138: -2 | C138: -2 | D138: -4 | E138: -5 | F138: -6 | G138: -6 | H138: -7 | I138: -7 | J138: -9 | K138: -9 | L138: 0 | M138: 0 | N138: 0 | O138: 0 | P138: 0 | Q138: 0 | R138: 0 | S138: 0 | T138: 0 | U138: 0 | V138: 0 | W138: 0 | X138: 0 | Y138: 0 | Z138: 0 | AA138: 0 | AB138: 0 | AC138: 0 | AD138: 0 | AE138: 0 | AF138: 0 | AG138: 0 | AH138: 0 | AI138: 0 | AJ138: 0 | AK138: 0 | AL138: 0 | AM138: 0 | AN138: 0 | AO138: 0 | AP138: 0 | AQ138: 0
B139: -27 | C139: -27 | D139: -34 | E139: -41 | F139: -49 | G139: -49 | H139: -59 | I139: -59 | J139: -71 | K139: -71 | L139: 0 | M139: 0 | N139: 0 | O139: 0 | P139: 0 | Q139: 0 | R139: 0 | S139: 0 | T139: 0 | U139: 0 | V139: 0 | W139: 0 | X139: 0 | Y139: 0 | Z139: 0 | AA139: 0 | AB139: 0 | AC139: 0 | AD139: 0 | AE139: 0 | AF139: 0 | AG139: 0 | AH139: 0 | AI139: 0 | AJ139: 0 | AK139: 0 | AL139: 0 | AM139: 0 | AN139: 0 | AO139: 0 | AP139: 0 | AQ139: 0
A140: g10 | B140: -2 | C140: -2 | D140: -4 | E140: -5 | F140: -6 | G140: -6 | H140: -7 | I140: -7 | J140: -9 | K140: -9 | L140: 0 | M140: 0 | N140: 0 | O140: 0 | P140: 0 | Q140: 0 | R140: 0 | S140: 0 | T140: 0 | U140: 0 | V140: 0 | W140: 0 | X140: 0 | Y140: 0 | Z140: 0 | AA140: 0 | AB140: 0 | AC140: 0 | AD140: 0 | AE140: 0 | AF140: 0 | AG140: 0 | AH140: 0 | AI140: 0 | AJ140: 0 | AK140: 0 | AL140: 0 | AM140: 0 | AN140: 0 | AO140: 0 | AP140: 0 | AQ140: 0
B141: -42 | C141: -42 | D141: -52 | E141: -63 | F141: -76 | G141: -76 | H141: -91 | I141: -91 | J141: -109 | K141: -109 | L141: 0 | M141: 0 | N141: 0 | O141: 0 | P141: 0 | Q141: 0 | R141: 0 | S141: 0 | T141: 0 | U141: 0 | V141: 0 | W141: 0 | X141: 0 | Y141: 0 | Z141: 0 | AA141: 0 | AB141: 0 | AC141: 0 | AD141: 0 | AE141: 0 | AF141: 0 | AG141: 0 | AH141: 0 | AI141: 0 | AJ141: 0 | AK141: 0 | AL141: 0 | AM141: 0 | AN141: 0 | AO141: 0 | AP141: 0 | AQ141: 0
A142: h1 | B142: 0 | C142: 0 | D142: 0 | E142: 0 | F142: 0 | G142: 0 | H142: 0 | I142: 0 | J142: 0 | K142: 0 | L142: 0 | M142: 0 | N142: 0 | O142: 0 | P142: 0 | Q142: 0 | R142: 0 | S142: 0 | T142: 0 | U142: 0 | V142: 0 | W142: 0 | X142: 0 | Y142: 0 | Z142: 0 | AA142: 0 | AB142: 0 | AC142: 0 | AD142: 0 | AE142: 0 | AF142: 0 | AG142: 0 | AH142: 0 | AI142: 0 | AJ142: 0 | AK142: 0 | AL142: 0 | AM142: 0 | AN142: 0 | AO142: 0 | AP142: 0 | AQ142: 0
B143: -0.8 | C143: -0.8 | D143: -1 | E143: -1 | F143: -1.2 | G143: -1.2 | H143: -1.5 | I143: -1.5 | J143: -1.5 | K143: -1.5 | L143: -2 | M143: -2 | N143: -2.5 | O143: -2.5 | P143: -3.5 | Q143: -3.5 | R143: -3.5 | S143: -4.5 | T143: -4.5 | U143: -4.5 | V143: -6 | W143: -6 | X143: -7 | Y143: -7 | Z143: -8 | AA143: -8 | AB143: -9 | AC143: -9 | AD143: -10 | AE143: -10 | AF143: -11 | AG143: -11 | AH143: -13 | AI143: -13 | AJ143: -15 | AK143: -15 | AL143: -18 | AM143: -18 | AN143: -22 | AO143: -22 | AP143: -26 | AQ143: -26
A144: h2 | B144: 0 | C144: 0 | D144: 0 | E144: 0 | F144: 0 | G144: 0 | H144: 0 | I144: 0 | J144: 0 | K144: 0 | L144: 0 | M144: 0 | N144: 0 | O144: 0 | P144: 0 | Q144: 0 | R144: 0 | S144: 0 | T144: 0 | U144: 0 | V144: 0 | W144: 0 | X144: 0 | Y144: 0 | Z144: 0 | AA144: 0 | AB144: 0 | AC144: 0 | AD144: 0 | AE144: 0 | AF144: 0 | AG144: 0 | AH144: 0 | AI144: 0 | AJ144: 0 | AK144: 0 | AL144: 0 | AM144: 0 | AN144: 0 | AO144: 0 | AP144: 0 | AQ144: 0
B145: -1.2 | C145: -1.2 | D145: -1.5 | E145: -1.5 | F145: -2 | G145: -2 | H145: -2.5 | I145: -2.5 | J145: -2.5 | K145: -2.5 | L145: -3 | M145: -3 | N145: -4 | O145: -4 | P145: -5 | Q145: -5 | R145: -5 | S145: -7 | T145: -7 | U145: -7 | V145: -8 | W145: -8 | X145: -9 | Y145: -9 | Z145: -10 | AA145: -10 | AB145: -11 | AC145: -11 | AD145: -13 | AE145: -13 | AF145: -15 | AG145: -15 | AH145: -18 | AI145: -18 | AJ145: -21 | AK145: -21 | AL145: -25 | AM145: -25 | AN145: -30 | AO145: -30 | AP145: -36 | AQ145: -36
A146: h3 | B146: 0 | C146: 0 | D146: 0 | E146: 0 | F146: 0 | G146: 0 | H146: 0 | I146: 0 | J146: 0 | K146: 0 | L146: 0 | M146: 0 | N146: 0 | O146: 0 | P146: 0 | Q146: 0 | R146: 0 | S146: 0 | T146: 0 | U146: 0 | V146: 0 | W146: 0 | X146: 0 | Y146: 0 | Z146: 0 | AA146: 0 | AB146: 0 | AC146: 0 | AD146: 0 | AE146: 0 | AF146: 0 | AG146: 0 | AH146: 0 | AI146: 0 | AJ146: 0 | AK146: 0 | AL146: 0 | AM146: 0 | AN146: 0 | AO146: 0 | AP146: 0 | AQ146: 0
B147: -2 | C147: -2 | D147: -2.5 | E147: -2.5 | F147: -3 | G147: -3 | H147: -4 | I147: -4 | J147: -4 | K147: -4 | L147: -5 | M147: -5 | N147: -6 | O147: -6 | P147: -8 | Q147: -8 | R147: -8 | S147: -10 | T147: -10 | U147: -10 | V147: -12 | W147: -12 | X147: -13 | Y147: -13 | Z147: -15 | AA147: -15 | AB147: -16 | AC147: -16 | AD147: -18 | AE147: -18 | AF147: -21 | AG147: -21 | AH147: -24 | AI147: -24 | AJ147: -29 | AK147: -29 | AL147: -35 | AM147: -35 | AN147: -41 | AO147: -41 | AP147: -50 | AQ147: -50
A148: h4 | B148: 0 | C148: 0 | D148: 0 | E148: 0 | F148: 0 | G148: 0 | H148: 0 | I148: 0 | J148: 0 | K148: 0 | L148: 0 | M148: 0 | N148: 0 | O148: 0 | P148: 0 | Q148: 0 | R148: 0 | S148: 0 | T148: 0 | U148: 0 | V148: 0 | W148: 0 | X148: 0 | Y148: 0 | Z148: 0 | AA148: 0 | AB148: 0 | AC148: 0 | AD148: 0 | AE148: 0 | AF148: 0 | AG148: 0 | AH148: 0 | AI148: 0 | AJ148: 0 | AK148: 0 | AL148: 0 | AM148: 0 | AN148: 0 | AO148: 0 | AP148: 0 | AQ148: 0
B149: -3 | C149: -3 | D149: -4 | E149: -4 | F149: -5 | G149: -5 | H149: -6 | I149: -6 | J149: -7 | K149: -7 | L149: -8 | M149: -8 | N149: -10 | O149: -10 | P149: -12 | Q149: -12 | R149: -12 | S149: -14 | T149: -14 | U149: -14 | V149: -16 | W149: -16 | X149: -18 | Y149: -18 | Z149: -20 | AA149: -20 | AB149: -22 | AC149: -22 | AD149: -25 | AE149: -25 | AF149: -28 | AG149: -28 | AH149: -33 | AI149: -33 | AJ149: -39 | AK149: -39 | AL149: -46 | AM149: -46 | AN149: -55 | AO149: -55 | AP149: -68 | AQ149: -68
A150: h5 | B150: 0 | C150: 0 | D150: 0 | E150: 0 | F150: 0 | G150: 0 | H150: 0 | I150: 0 | J150: 0 | K150: 0 | L150: 0 | M150: 0 | N150: 0 | O150: 0 | P150: 0 | Q150: 0 | R150: 0 | S150: 0 | T150: 0 | U150: 0 | V150: 0 | W150: 0 | X150: 0 | Y150: 0 | Z150: 0 | AA150: 0 | AB150: 0 | AC150: 0 | AD150: 0 | AE150: 0 | AF150: 0 | AG150: 0 | AH150: 0 | AI150: 0 | AJ150: 0 | AK150: 0 | AL150: 0 | AM150: 0 | AN150: 0 | AO150: 0 | AP150: 0 | AQ150: 0
B151: -4 | C151: -4 | D151: -5 | E151: -6 | F151: -8 | G151: -8 | H151: -9 | I151: -9 | J151: -11 | K151: -11 | L151: -13 | M151: -13 | N151: -15 | O151: -15 | P151: -18 | Q151: -18 | R151: -18 | S151: -20 | T151: -20 | U151: -20 | V151: -23 | W151: -23 | X151: -25 | Y151: -25 | Z151: -27 | AA151: -27 | AB151: -32 | AC151: -32 | AD151: -36 | AE151: -36 | AF151: -40 | AG151: -40 | AH151: -47 | AI151: -47 | AJ151: -55 | AK151: -55 | AL151: -65 | AM151: -65 | AN151: -78 | AO151: -78 | AP151: -96 | AQ151: -96
A152: h6 | B152: 0 | C152: 0 | D152: 0 | E152: 0 | F152: 0 | G152: 0 | H152: 0 | I152: 0 | J152: 0 | K152: 0 | L152: 0 | M152: 0 | N152: 0 | O152: 0 | P152: 0 | Q152: 0 | R152: 0 | S152: 0 | T152: 0 | U152: 0 | V152: 0 | W152: 0 | X152: 0 | Y152: 0 | Z152: 0 | AA152: 0 | AB152: 0 | AC152: 0 | AD152: 0 | AE152: 0 | AF152: 0 | AG152: 0 | AH152: 0 | AI152: 0 | AJ152: 0 | AK152: 0 | AL152: 0 | AM152: 0 | AN152: 0 | AO152: 0 | AP152: 0 | AQ152: 0
B153: -6 | C153: -6 | D153: -8 | E153: -9 | F153: -11 | G153: -11 | H153: -13 | I153: -13 | J153: -16 | K153: -16 | L153: -19 | M153: -19 | N153: -22 | O153: -22 | P153: -25 | Q153: -25 | R153: -25 | S153: -29 | T153: -29 | U153: -29 | V153: -32 | W153: -32 | X153: -36 | Y153: -36 | Z153: -40 | AA153: -40 | AB153: -44 | AC153: -44 | AD153: -50 | AE153: -50 | AF153: -56 | AG153: -56 | AH153: -66 | AI153: -66 | AJ153: -78 | AK153: -78 | AL153: -92 | AM153: -92 | AN153: -110 | AO153: -110 | AP153: -135 | AQ153: -135
A154: h7 | B154: 0 | C154: 0 | D154: 0 | E154: 0 | F154: 0 | G154: 0 | H154: 0 | I154: 0 | J154: 0 | K154: 0 | L154: 0 | M154: 0 | N154: 0 | O154: 0 | P154: 0 | Q154: 0 | R154: 0 | S154: 0 | T154: 0 | U154: 0 | V154: 0 | W154: 0 | X154: 0 | Y154: 0 | Z154: 0 | AA154: 0 | AB154: 0 | AC154: 0 | AD154: 0 | AE154: 0 | AF154: 0 | AG154: 0 | AH154: 0 | AI154: 0 | AJ154: 0 | AK154: 0 | AL154: 0 | AM154: 0 | AN154: 0 | AO154: 0 | AP154: 0 | AQ154: 0
B155: -10 | C155: -10 | D155: -12 | E155: -15 | F155: -18 | G155: -18 | H155: -21 | I155: -21 | J155: -25 | K155: -25 | L155: -30 | M155: -30 | N155: -35 | O155: -35 | P155: -40 | Q155: -40 | R155: -40 | S155: -46 | T155: -46 | U155: -46 | V155: -52 | W155: -52 | X155: -57 | Y155: -57 | Z155: -63 | AA155: -63 | AB155: -70 | AC155: -70 | AD155: -80 | AE155: -80 | AF155: -90 | AG155: -90 | AH155: -105 | AI155: -105 | AJ155: -125 | AK155: -125 | AL155: -150 | AM155: -150 | AN155: -175 | AO155: -175 | AP155: -210 | AQ155: -210
A156: h8 | B156: 0 | C156: 0 | D156: 0 | E156: 0 | F156: 0 | G156: 0 | H156: 0 | I156: 0 | J156: 0 | K156: 0 | L156: 0 | M156: 0 | N156: 0 | O156: 0 | P156: 0 | Q156: 0 | R156: 0 | S156: 0 | T156: 0 | U156: 0 | V156: 0 | W156: 0 | X156: 0 | Y156: 0 | Z156: 0 | AA156: 0 | AB156: 0 | AC156: 0 | AD156: 0 | AE156: 0 | AF156: 0 | AG156: 0 | AH156: 0 | AI156: 0 | AJ156: 0 | AK156: 0 | AL156: 0 | AM156: 0 | AN156: 0 | AO156: 0 | AP156: 0 | AQ156: 0
B157: -14 | C157: -14 | D157: -18 | E157: -22 | F157: -27 | G157: -27 | H157: -33 | I157: -33 | J157: -39 | K157: -39 | L157: -46 | M157: -46 | N157: -54 | O157: -54 | P157: -63 | Q157: -63 | R157: -63 | S157: -72 | T157: -72 | U157: -72 | V157: -81 | W157: -81 | X157: -89 | Y157: -89 | Z157: -97 | AA157: -97 | AB157: -110 | AC157: -110 | AD157: -125 | AE157: -125 | AF157: -140 | AG157: -140 | AH157: -165 | AI157: -165 | AJ157: -195 | AK157: -195 | AL157: -230 | AM157: -230 | AN157: -280 | AO157: -280 | AP157: -330 | AQ157: -330
A158: h9 | B158: 0 | C158: 0 | D158: 0 | E158: 0 | F158: 0 | G158: 0 | H158: 0 | I158: 0 | J158: 0 | K158: 0 | L158: 0 | M158: 0 | N158: 0 | O158: 0 | P158: 0 | Q158: 0 | R158: 0 | S158: 0 | T158: 0 | U158: 0 | V158: 0 | W158: 0 | X158: 0 | Y158: 0 | Z158: 0 | AA158: 0 | AB158: 0 | AC158: 0 | AD158: 0 | AE158: 0 | AF158: 0 | AG158: 0 | AH158: 0 | AI158: 0 | AJ158: 0 | AK158: 0 | AL158: 0 | AM158: 0 | AN158: 0 | AO158: 0 | AP158: 0 | AQ158: 0
B159: -25 | C159: -25 | D159: -30 | E159: -36 | F159: -43 | G159: -43 | H159: -52 | I159: -52 | J159: -62 | K159: -62 | L159: -74 | M159: -74 | N159: -87 | O159: -87 | P159: -100 | Q159: -100 | R159: -100 | S159: -115 | T159: -115 | U159: -115 | V159: -130 | W159: -130 | X159: -140 | Y159: -140 | Z159: -155 | AA159: -155 | AB159: -175 | AC159: -175 | AD159: -200 | AE159: -200 | AF159: -230 | AG159: -230 | AH159: -260 | AI159: -260 | AJ159: -310 | AK159: -310 | AL159: -370 | AM159: -370 | AN159: -440 | AO159: -440 | AP159: -540 | AQ159: -540
A160: h10 | B160: 0 | C160: 0 | D160: 0 | E160: 0 | F160: 0 | G160: 0 | H160: 0 | I160: 0 | J160: 0 | K160: 0 | L160: 0 | M160: 0 | N160: 0 | O160: 0 | P160: 0 | Q160: 0 | R160: 0 | S160: 0 | T160: 0 | U160: 0 | V160: 0 | W160: 0 | X160: 0 | Y160: 0 | Z160: 0 | AA160: 0 | AB160: 0 | AC160: 0 | AD160: 0 | AE160: 0 | AF160: 0 | AG160: 0 | AH160: 0 | AI160: 0 | AJ160: 0 | AK160: 0 | AL160: 0 | AM160: 0 | AN160: 0 | AO160: 0 | AP160: 0 | AQ160: 0
B161: -40 | C161: -40 | D161: -48 | E161: -58 | F161: -70 | G161: -70 | H161: -84 | I161: -84 | J161: -100 | K161: -100 | L161: -120 | M161: -120 | N161: -140 | O161: -140 | P161: -160 | Q161: -160 | R161: -160 | S161: -185 | T161: -185 | U161: -185 | V161: -210 | W161: -210 | X161: -230 | Y161: -230 | Z161: -250 | AA161: -250 | AB161: -280 | AC161: -280 | AD161: -320 | AE161: -320 | AF161: -360 | AG161: -360 | AH161: -420 | AI161: -420 | AJ161: -500 | AK161: -500 | AL161: -600 | AM161: -600 | AN161: -700 | AO161: -700 | AP161: -860 | AQ161: -860
A162: h11 | B162: 0 | C162: 0 | D162: 0 | E162: 0 | F162: 0 | G162: 0 | H162: 0 | I162: 0 | J162: 0 | K162: 0 | L162: 0 | M162: 0 | N162: 0 | O162: 0 | P162: 0 | Q162: 0 | R162: 0 | S162: 0 | T162: 0 | U162: 0 | V162: 0 | W162: 0 | X162: 0 | Y162: 0 | Z162: 0 | AA162: 0 | AB162: 0 | AC162: 0 | AD162: 0 | AE162: 0 | AF162: 0 | AG162: 0 | AH162: 0 | AI162: 0 | AJ162: 0 | AK162: 0 | AL162: 0 | AM162: 0 | AN162: 0 | AO162: 0 | AP162: 0 | AQ162: 0
B163: -60 | C163: -60 | D163: -75 | E163: -90 | F163: -110 | G163: -110 | H163: -130 | I163: -130 | J163: -160 | K163: -160 | L163: -190 | M163: -190 | N163: -220 | O163: -220 | P163: -250 | Q163: -250 | R163: -250 | S163: -290 | T163: -290 | U163: -290 | V163: -320 | W163: -320 | X163: -360 | Y163: -360 | Z163: -400 | AA163: -400 | AB163: -440 | AC163: -440 | AD163: -500 | AE163: -500 | AF163: -560 | AG163: -560 | AH163: -660 | AI163: -660 | AJ163: -780 | AK163: -780 | AL163: -920 | AM163: -920 | AN163: -1100 | AO163: -1100 | AP163: -1350 | AQ163: -1350
A164: h12 | B164: 0 | C164: 0 | D164: 0 | E164: 0 | F164: 0 | G164: 0 | H164: 0 | I164: 0 | J164: 0 | K164: 0 | L164: 0 | M164: 0 | N164: 0 | O164: 0 | P164: 0 | Q164: 0 | R164: 0 | S164: 0 | T164: 0 | U164: 0 | V164: 0 | W164: 0 | X164: 0 | Y164: 0 | Z164: 0 | AA164: 0 | AB164: 0 | AC164: 0 | AD164: 0 | AE164: 0 | AF164: 0 | AG164: 0 | AH164: 0 | AI164: 0 | AJ164: 0 | AK164: 0 | AL164: 0 | AM164: 0 | AN164: 0 | AO164: 0 | AP164: 0 | AQ164: 0
B165: -100 | C165: -100 | D165: -120 | E165: -150 | F165: -180 | G165: -180 | H165: -210 | I165: -210 | J165: -250 | K165: -250 | L165: -300 | M165: -300 | N165: -350 | O165: -350 | P165: -400 | Q165: -400 | R165: -400 | S165: -460 | T165: -460 | U165: -460 | V165: -520 | W165: -520 | X165: -570 | Y165: -570 | Z165: -630 | AA165: -630 | AB165: -700 | AC165: -700 | AD165: -800 | AE165: -800 | AF165: -900 | AG165: -900 | AH165: -1050 | AI165: -1050 | AJ165: -1250 | AK165: -1250 | AL165: -1500 | AM165: -1500 | AN165: -1750 | AO165: -1750 | AP165: -2100 | AQ165: -2100
A166: h13 | B166: 0 | C166: 0 | D166: 0 | E166: 0 | F166: 0 | G166: 0 | H166: 0 | I166: 0 | J166: 0 | K166: 0 | L166: 0 | M166: 0 | N166: 0 | O166: 0 | P166: 0 | Q166: 0 | R166: 0 | S166: 0 | T166: 0 | U166: 0 | V166: 0 | W166: 0 | X166: 0 | Y166: 0 | Z166: 0 | AA166: 0 | AB166: 0 | AC166: 0 | AD166: 0 | AE166: 0 | AF166: 0 | AG166: 0 | AH166: 0 | AI166: 0 | AJ166: 0 | AK166: 0 | AL166: 0 | AM166: 0 | AN166: 0 | AO166: 0 | AP166: 0 | AQ166: 0
B167: -140 | C167: -140 | D167: -180 | E167: -220 | F167: -270 | G167: -270 | H167: -330 | I167: -330 | J167: -390 | K167: -390 | L167: -460 | M167: -460 | N167: -540 | O167: -540 | P167: -630 | Q167: -630 | R167: -630 | S167: -720 | T167: -720 | U167: -720 | V167: -810 | W167: -810 | X167: -890 | Y167: -890 | Z167: -970 | AA167: -970 | AB167: -1100 | AC167: -1100 | AD167: -1250 | AE167: -1250 | AF167: -1400 | AG167: -1400 | AH167: -1650 | AI167: -1650 | AJ167: -1950 | AK167: -1950 | AL167: -2300 | AM167: -2300 | AN167: -2800 | AO167: -2800 | AP167: -3300 | AQ167: -3300
A168: h14 | B168: 0 | C168: 0 | D168: 0 | E168: 0 | F168: 0 | G168: 0 | H168: 0 | I168: 0 | J168: 0 | K168: 0 | L168: 0 | M168: 0 | N168: 0 | O168: 0 | P168: 0 | Q168: 0 | R168: 0 | S168: 0 | T168: 0 | U168: 0 | V168: 0 | W168: 0 | X168: 0 | Y168: 0 | Z168: 0 | AA168: 0 | AB168: 0 | AC168: 0 | AD168: 0 | AE168: 0 | AF168: 0 | AG168: 0 | AH168: 0 | AI168: 0 | AJ168: 0 | AK168: 0 | AL168: 0 | AM168: 0 | AN168: 0 | AO168: 0 | AP168: 0 | AQ168: 0
B169: 0 | C169: -250 | D169: -300 | E169: -360 | F169: -430 | G169: -430 | H169: -520 | I169: -520 | J169: -620 | K169: -620 | L169: -740 | M169: -740 | N169: -870 | O169: -870 | P169: -1000 | Q169: -1000 | R169: -1000 | S169: -1150 | T169: -1150 | U169: -1150 | V169: -1300 | W169: -1300 | X169: -1400 | Y169: -1400 | Z169: -1550 | AA169: -1550 | AB169: -1750 | AC169: -1750 | AD169: -2000 | AE169: -2000 | AF169: -2300 | AG169: -2300 | AH169: -2600 | AI169: -2600 | AJ169: -3100 | AK169: -3100 | AL169: -3700 | AM169: -3700 | AN169: -4400 | AO169: -4400 | AP169: -5400 | AQ169: -5400
A170: h15 | B170: 0 | C170: 0 | D170: 0 | E170: 0 | F170: 0 | G170: 0 | H170: 0 | I170: 0 | J170: 0 | K170: 0 | L170: 0 | M170: 0 | N170: 0 | O170: 0 | P170: 0 | Q170: 0 | R170: 0 | S170: 0 | T170: 0 | U170: 0 | V170: 0 | W170: 0 | X170: 0 | Y170: 0 | Z170: 0 | AA170: 0 | AB170: 0 | AC170: 0 | AD170: 0 | AE170: 0 | AF170: 0 | AG170: 0 | AH170: 0 | AI170: 0 | AJ170: 0 | AK170: 0 | AL170: 0 | AM170: 0 | AN170: 0 | AO170: 0 | AP170: 0 | AQ170: 0
B171: 0 | C171: -400 | D171: -480 | E171: -580 | F171: -700 | G171: -700 | H171: -840 | I171: -840 | J171: -1000 | K171: -1000 | L171: -1200 | M171: -1200 | N171: -1400 | O171: -1400 | P171: -1600 | Q171: -1600 | R171: -1600 | S171: -1850 | T171: -1850 | U171: -1850 | V171: -2100 | W171: -2100 | X171: -2300 | Y171: -2300 | Z171: -2500 | AA171: -2500 | AB171: -2800 | AC171: -2800 | AD171: -3200 | AE171: -3200 | AF171: -3600 | AG171: -3600 | AH171: -4200 | AI171: -4200 | AJ171: -5000 | AK171: -5000 | AL171: -6000 | AM171: -6000 | AN171: -7000 | AO171: -7000 | AP171: -8600 | AQ171: -8600
A172: h16 | B172: 0 | C172: 0 | D172: 0 | E172: 0 | F172: 0 | G172: 0 | H172: 0 | I172: 0 | J172: 0 | K172: 0 | L172: 0 | M172: 0 | N172: 0 | O172: 0 | P172: 0 | Q172: 0 | R172: 0 | S172: 0 | T172: 0 | U172: 0 | V172: 0 | W172: 0 | X172: 0 | Y172: 0 | Z172: 0 | AA172: 0 | AB172: 0 | AC172: 0 | AD172: 0 | AE172: 0 | AF172: 0 | AG172: 0 | AH172: 0 | AI172: 0 | AJ172: 0 | AK172: 0 | AL172: 0 | AM172: 0 | AN172: 0 | AO172: 0 | AP172: 0 | AQ172: 0
B173: 0 | C173: -600 | D173: -750 | E173: -900 | F173: -1100 | G173: -1100 | H173: -1300 | I173: -1300 | J173: -1600 | K173: -1600 | L173: -1900 | M173: -1900 | N173: -2200 | O173: -2200 | P173: -2500 | Q173: -2500 | R173: -2500 | S173: -2900 | T173: -2900 | U173: -2900 | V173: -3200 | W173: -3200 | X173: -3600 | Y173: -3600 | Z173: -4000 | AA173: -4000 | AB173: -4400 | AC173: -4400 | AD173: -5000 | AE173: -5000 | AF173: -5600 | AG173: -5600 | AH173: -6600 | AI173: -6600 | AJ173: -7800 | AK173: -7800 | AL173: -9200 | AM173: -9200 | AN173: -11000 | AO173: -11000 | AP173: -13500 | AQ173: -13500
A174: h17 | B174: 0 | C174: 0 | D174: 0 | E174: 0 | F174: 0 | G174: 0 | H174: 0 | I174: 0 | J174: 0 | K174: 0 | L174: 0 | M174: 0 | N174: 0 | O174: 0 | P174: 0 | Q174: 0 | R174: 0 | S174: 0 | T174: 0 | U174: 0 | V174: 0 | W174: 0 | X174: 0 | Y174: 0 | Z174: 0 | AA174: 0 | AB174: 0 | AC174: 0 | AD174: 0 | AE174: 0 | AF174: 0 | AG174: 0 | AH174: 0 | AI174: 0 | AJ174: 0 | AK174: 0 | AL174: 0 | AM174: 0 | AN174: 0 | AO174: 0 | AP174: 0 | AQ174: 0
B175: 0 | C175: 0 | D175: -1200 | E175: -1500 | F175: -1800 | G175: -1800 | H175: -2100 | I175: -2100 | J175: -2500 | K175: -2500 | L175: -3000 | M175: -3000 | N175: -3500 | O175: -3500 | P175: -4000 | Q175: -4000 | R175: -4000 | S175: -4600 | T175: -4600 | U175: -4600 | V175: -5200 | W175: -5200 | X175: -5700 | Y175: -5700 | Z175: -6300 | AA175: -6300 | AB175: -7000 | AC175: -7000 | AD175: -8000 | AE175: -8000 | AF175: -9000 | AG175: -9000 | AH175: -10500 | AI175: -10500 | AJ175: -12500 | AK175: -12500 | AL175: -15000 | AM175: -15000 | AN175: -17500 | AO175: -17500 | AP175: -21000 | AQ175: -21000
A176: h18 | B176: 0 | C176: 0 | D176: 0 | E176: 0 | F176: 0 | G176: 0 | H176: 0 | I176: 0 | J176: 0 | K176: 0 | L176: 0 | M176: 0 | N176: 0 | O176: 0 | P176: 0 | Q176: 0 | R176: 0 | S176: 0 | T176: 0 | U176: 0 | V176: 0 | W176: 0 | X176: 0 | Y176: 0 | Z176: 0 | AA176: 0 | AB176: 0 | AC176: 0 | AD176: 0 | AE176: 0 | AF176: 0 | AG176: 0 | AH176: 0 | AI176: 0 | AJ176: 0 | AK176: 0 | AL176: 0 | AM176: 0 | AN176: 0 | AO176: 0 | AP176: 0 | AQ176: 0
B177: 0 | C177: 0 | D177: -1800 | E177: -2200 | F177: -2700 | G177: -2700 | H177: -3300 | I177: -3300 | J177: -3900 | K177: -3900 | L177: -4600 | M177: -4600 | N177: -5400 | O177: -5400 | P177: -6300 | Q177: -6300 | R177: -6300 | S177: -7200 | T177: -7200 | U177: -7200 | V177: -8100 | W177: -8100 | X177: -8900 | Y177: -8900 | Z177: -9700 | AA177: -9700 | AB177: -11000 | AC177: -11000 | AD177: -12500 | AE177: -12500 | AF177: -14000 | AG177: -14000 | AH177: -16500 | AI177: -16500 | AJ177: -19500 | AK177: -19500 | AL177: -23000 | AM177: -23000 | AN177: -28000 | AO177: -28000 | AP177: -33000 | AQ177: -33000
A178: js1 | B178: 0.4 | C178: 0.4 | D178: 0.5 | E178: 0.5 | F178: 0.6 | G178: 0.6 | H178: 0.75 | I178: 0.75 | J178: 0.75 | K178: 0.75 | L178: 1 | M178: 1 | N178: 1.25 | O178: 1.25 | P178: 1.75 | Q178: 1.75 | R178: 1.75 | S178: 2.25 | T178: 2.25 | U178: 2.25 | V178: 3 | W178: 3 | X178: 3.5 | Y178: 3.5 | Z178: 4 | AA178: 4 | AB178: 4.5 | AC178: 4.5 | AD178: 5 | AE178: 5 | AF178: 5.5 | AG178: 5.5 | AH178: 6.5 | AI178: 6.5 | AJ178: 7.5 | AK178: 7.5 | AL178: 9 | AM178: 9 | AN178: 11 | AO178: 11 | AP178: 13 | AQ178: 13
B179: -0.4 | C179: -0.4 | D179: -0.5 | E179: -0.5 | F179: -0.6 | G179: -0.6 | H179: -0.75 | I179: -0.75 | J179: -0.75 | K179: -0.75 | L179: -1 | M179: -1 | N179: -1.25 | O179: -1.25 | P179: -1.75 | Q179: -1.75 | R179: -1.75 | S179: -2.25 | T179: -2.25 | U179: -2.25 | V179: -3 | W179: -3 | X179: -3.5 | Y179: -3.5 | Z179: -4 | AA179: -4 | AB179: -4.5 | AC179: -4.5 | AD179: -5 | AE179: -5 | AF179: -5.5 | AG179: -5.5 | AH179: -6.5 | AI179: -6.5 | AJ179: -7.5 | AK179: -7.5 | AL179: -9 | AM179: -9 | AN179: -11 | AO179: -11 | AP179: -13 | AQ179: -13
A180: js2 | B180: 0.6 | C180: 0.6 | D180: 0.75 | E180: 0.75 | F180: 1 | G180: 1 | H180: 1.25 | I180: 1.25 | J180: 1.25 | K180: 1.25 | L180: 1.5 | M180: 1.5 | N180: 2 | O180: 2 | P180: 2.5 | Q180: 2.5 | R180: 2.5 | S180: 3.5 | T180: 3.5 | U180: 3.5 | V180: 4 | W180: 4 | X180: 4.5 | Y180: 4.5 | Z180: 5 | AA180: 5 | AB180: 5.5 | AC180: 5.5 | AD180: 6.5 | AE180: 6.5 | AF180: 7.5 | AG180: 7.5 | AH180: 9 | AI180: 9 | AJ180: 10.5 | AK180: 10.5 | AL180: 12.5 | AM180: 12.5 | AN180: 15 | AO180: 15 | AP180: 18 | AQ180: 18
B181: -0.6 | C181: -0.6 | D181: -0.75 | E181: -0.75 | F181: -1 | G181: -1 | H181: -1.25 | I181: -1.25 | J181: -1.25 | K181: -1.25 | L181: -1.5 | M181: -1.5 | N181: -2 | O181: -2 | P181: -2.5 | Q181: -2.5 | R181: -2.5 | S181: -3.5 | T181: -3.5 | U181: -3.5 | V181: -4 | W181: -4 | X181: -4.5 | Y181: -4.5 | Z181: -5 | AA181: -5 | AB181: -5.5 | AC181: -5.5 | AD181: -6.5 | AE181: -6.5 | AF181: -7.5 | AG181: -7.5 | AH181: -9 | AI181: -9 | AJ181: -10.5 | AK181: -10.5 | AL181: -12.5 | AM181: -12.5 | AN181: -15 | AO181: -15 | AP181: -18 | AQ181: -18
A182: js3 | B182: 1 | C182: 1 | D182: 1.25 | E182: 1.25 | F182: 1.5 | G182: 1.5 | H182: 2 | I182: 2 | J182: 2 | K182: 2 | L182: 2.5 | M182: 2.5 | N182: 3 | O182: 3 | P182: 4 | Q182: 4 | R182: 4 | S182: 5 | T182: 5 | U182: 5 | V182: 6 | W182: 6 | X182: 6.5 | Y182: 6.5 | Z182: 7.5 | AA182: 7.5 | AB182: 8 | AC182: 8 | AD182: 9 | AE182: 9 | AF182: 10.5 | AG182: 10.5 | AH182: 12 | AI182: 12 | AJ182: 14.5 | AK182: 14.5 | AL182: 17.5 | AM182: 17.5 | AN182: 20.5 | AO182: 20.5 | AP182: 25 | AQ182: 25
B183: -1 | C183: -1 | D183: -1.25 | E183: -1.25 | F183: -1.5 | G183: -1.5 | H183: -2 | I183: -2 | J183: -2 | K183: -2 | L183: -2.5 | M183: -2.5 | N183: -3 | O183: -3 | P183: -4 | Q183: -4 | R183: -4 | S183: -5 | T183: -5 | U183: -5 | V183: -6 | W183: -6 | X183: -6.5 | Y183: -6.5 | Z183: -7.5 | AA183: -7.5 | AB183: -8 | AC183: -8 | AD183: -9 | AE183: -9 | AF183: -10.5 | AG183: -10.5 | AH183: -12 | AI183: -12 | AJ183: -14.5 | AK183: -14.5 | AL183: -17.5 | AM183: -17.5 | AN183: -20.5 | AO183: -20.5 | AP183: -25 | AQ183: -25
A184: js4 | B184: 1.5 | C184: 1.5 | D184: 2 | E184: 2 | F184: 2.5 | G184: 2.5 | H184: 3 | I184: 3 | J184: 3.5 | K184: 3.5 | L184: 4 | M184: 4 | N184: 5 | O184: 5 | P184: 6 | Q184: 6 | R184: 6 | S184: 7 | T184: 7 | U184: 7 | V184: 8 | W184: 8 | X184: 9 | Y184: 9 | Z184: 10 | AA184: 10 | AB184: 11 | AC184: 11 | AD184: 12.5 | AE184: 12.5 | AF184: 14 | AG184: 14 | AH184: 16.5 | AI184: 16.5 | AJ184: 19.5 | AK184: 19.5 | AL184: 23 | AM184: 23 | AN184: 27.5 | AO184: 27.5 | AP184: 34 | AQ184: 34
B185: -1.5 | C185: -1.5 | D185: -2 | E185: -2 | F185: -2.5 | G185: -2.5 | H185: -3 | I185: -3 | J185: -3.5 | K185: -3.5 | L185: -4 | M185: -4 | N185: -5 | O185: -5 | P185: -6 | Q185: -6 | R185: -6 | S185: -7 | T185: -7 | U185: -7 | V185: -8 | W185: -8 | X185: -9 | Y185: -9 | Z185: -10 | AA185: -10 | AB185: -11 | AC185: -11 | AD185: -12.5 | AE185: -12.5 | AF185: -14 | AG185: -14 | AH185: -16.5 | AI185: -16.5 | AJ185: -19.5 | AK185: -19.5 | AL185: -23 | AM185: -23 | AN185: -27.5 | AO185: -27.5 | AP185: -34 | AQ185: -34
A186: js5 | B186: 2 | C186: 2 | D186: 2.5 | E186: 3 | F186: 4 | G186: 4 | H186: 4.5 | I186: 4.5 | J186: 5.5 | K186: 5.5 | L186: 6.5 | M186: 6.5 | N186: 7.5 | O186: 7.5 | P186: 9 | Q186: 9 | R186: 9 | S186: 10 | T186: 10 | U186: 10 | V186: 11.5 | W186: 11.5 | X186: 12.5 | Y186: 12.5 | Z186: 13.5 | AA186: 13.5 | AB186: 16 | AC186: 16 | AD186: 18 | AE186: 18 | AF186: 20 | AG186: 20 | AH186: 23.5 | AI186: 23.5 | AJ186: 27.5 | AK186: 27.5 | AL186: 32.5 | AM186: 32.5 | AN186: 39 | AO186: 39 | AP186: 48 | AQ186: 48
B187: -2 | C187: -2 | D187: -2.5 | E187: -3 | F187: -4 | G187: -4 | H187: -4.5 | I187: -4.5 | J187: -5.5 | K187: -5.5 | L187: -6.5 | M187: -6.5 | N187: -7.5 | O187: -7.5 | P187: -9 | Q187: -9 | R187: -9 | S187: -10 | T187: -10 | U187: -10 | V187: -11.5 | W187: -11.5 | X187: -12.5 | Y187: -12.5 | Z187: -13.5 | AA187: -13.5 | AB187: -16 | AC187: -16 | AD187: -18 | AE187: -18 | AF187: -20 | AG187: -20 | AH187: -23.5 | AI187: -23.5 | AJ187: -27.5 | AK187: -27.5 | AL187: -32.5 | AM187: -32.5 | AN187: -39 | AO187: -39 | AP187: -48 | AQ187: -48
A188: js6 | B188: 3 | C188: 3 | D188: 4 | E188: 4.5 | F188: 5.5 | G188: 5.5 | H188: 6.5 | I188: 6.5 | J188: 8 | K188: 8 | L188: 9.5 | M188: 9.5 | N188: 11 | O188: 11 | P188: 12.5 | Q188: 12.5 | R188: 12.5 | S188: 14.5 | T188: 14.5 | U188: 14.5 | V188: 16 | W188: 16 | X188: 18 | Y188: 18 | Z188: 20 | AA188: 20 | AB188: 22 | AC188: 22 | AD188: 25 | AE188: 25 | AF188: 28 | AG188: 28 | AH188: 33 | AI188: 33 | AJ188: 39 | AK188: 39 | AL188: 46 | AM188: 46 | AN188: 55 | AO188: 55 | AP188: 67.5 | AQ188: 67.5
B189: -3 | C189: -3 | D189: -4 | E189: -4.5 | F189: -5.5 | G189: -5.5 | H189: -6.5 | I189: -6.5 | J189: -8 | K189: -8 | L189: -9.5 | M189: -9.5 | N189: -11 | O189: -11 | P189: -12.5 | Q189: -12.5 | R189: -12.5 | S189: -14.5 | T189: -14.5 | U189: -14.5 | V189: -16 | W189: -16 | X189: -18 | Y189: -18 | Z189: -20 | AA189: -20 | AB189: -22 | AC189: -22 | AD189: -25 | AE189: -25 | AF189: -28 | AG189: -28 | AH189: -33 | AI189: -33 | AJ189: -39 | AK189: -39 | AL189: -46 | AM189: -46 | AN189: -55 | AO189: -55 | AP189: -67.5 | AQ189: -67.5
A190: js7 | B190: 5 | C190: 5 | D190: 6 | E190: 7.5 | F190: 9 | G190: 9 | H190: 10.5 | I190: 10.5 | J190: 12.5 | K190: 12.5 | L190: 15 | M190: 15 | N190: 17.5 | O190: 17.5 | P190: 20 | Q190: 20 | R190: 20 | S190: 23 | T190: 23 | U190: 23 | V190: 26 | W190: 26 | X190: 28.5 | Y190: 28.5 | Z190: 31.5 | AA190: 31.5 | AB190: 35 | AC190: 35 | AD190: 40 | AE190: 40 | AF190: 45 | AG190: 45 | AH190: 52.5 | AI190: 52.5 | AJ190: 62.5 | AK190: 62.5 | AL190: 75 | AM190: 75 | AN190: 87.5 | AO190: 87.5 | AP190: 105 | AQ190: 105
B191: -5 | C191: -5 | D191: -6 | E191: -7.5 | F191: -9 | G191: -9 | H191: -10.5 | I191: -10.5 | J191: -12.5 | K191: -12.5 | L191: -15 | M191: -15 | N191: -17.5 | O191: -17.5 | P191: -20 | Q191: -20 | R191: -20 | S191: -23 | T191: -23 | U191: -23 | V191: -26 | W191: -26 | X191: -28.5 | Y191: -28.5 | Z191: -31.5 | AA191: -31.5 | AB191: -35 | AC191: -35 | AD191: -40 | AE191: -40 | AF191: -45 | AG191: -45 | AH191: -52.5 | AI191: -52.5 | AJ191: -62.5 | AK191: -62.5 | AL191: -75 | AM191: -75 | AN191: -87.5 | AO191: -87.5 | AP191: -105 | AQ191: -105
A192: js8 | B192: 7 | C192: 7 | D192: 9 | E192: 11 | F192: 13.5 | G192: 13.5 | H192: 16.5 | I192: 16.5 | J192: 19.5 | K192: 19.5 | L192: 23 | M192: 23 | N192: 27 | O192: 27 | P192: 31.5 | Q192: 31.5 | R192: 31.5 | S192: 36 | T192: 36 | U192: 36 | V192: 40.5 | W192: 40.5 | X192: 44.5 | Y192: 44.5 | Z192: 48.5 | AA192: 48.5 | AB192: 55 | AC192: 55 | AD192: 62.5 | AE192: 62.5 | AF192: 70 | AG192: 70 | AH192: 82.5 | AI192: 82.5 | AJ192: 97.5 | AK192: 97.5 | AL192: 115 | AM192: 115 | AN192: 140 | AO192: 140 | AP192: 165 | AQ192: 165
B193: -7 | C193: -7 | D193: -9 | E193: -11 | F193: -13.5 | G193: -13.5 | H193: -16.5 | I193: -16.5 | J193: -19.5 | K193: -19.5 | L193: -23 | M193: -23 | N193: -27 | O193: -27 | P193: -31.5 | Q193: -31.5 | R193: -31.5 | S193: -36 | T193: -36 | U193: -36 | V193: -40.5 | W193: -40.5 | X193: -44.5 | Y193: -44.5 | Z193: -48.5 | AA193: -48.5 | AB193: -55 | AC193: -55 | AD193: -62.5 | AE193: -62.5 | AF193: -70 | AG193: -70 | AH193: -82.5 | AI193: -82.5 | AJ193: -97.5 | AK193: -97.5 | AL193: -115 | AM193: -115 | AN193: -140 | AO193: -140 | AP193: -165 | AQ193: -165
A194: js9 | B194: 12.5 | C194: 12.5 | D194: 15 | E194: 18 | F194: 21.5 | G194: 21.5 | H194: 26 | I194: 26 | J194: 31 | K194: 31 | L194: 37 | M194: 37 | N194: 43.5 | O194: 43.5 | P194: 50 | Q194: 50 | R194: 50 | S194: 57.5 | T194: 57.5 | U194: 57.5 | V194: 65 | W194: 65 | X194: 70 | Y194: 70 | Z194: 77.5 | AA194: 77.5 | AB194: 87.5 | AC194: 87.5 | AD194: 100 | AE194: 100 | AF194: 115 | AG194: 115 | AH194: 130 | AI194: 130 | AJ194: 155 | AK194: 155 | AL194: 185 | AM194: 185 | AN194: 220 | AO194: 220 | AP194: 270 | AQ194: 270
B195: -12.5 | C195: -12.5 | D195: -15 | E195: -18 | F195: -21.5 | G195: -21.5 | H195: -26 | I195: -26 | J195: -31 | K195: -31 | L195: -37 | M195: -37 | N195: -43.5 | O195: -43.5 | P195: -50 | Q195: -50 | R195: -50 | S195: -57.5 | T195: -57.5 | U195: -57.5 | V195: -65 | W195: -65 | X195: -70 | Y195: -70 | Z195: -77.5 | AA195: -77.5 | AB195: -87.5 | AC195: -87.5 | AD195: -100 | AE195: -100 | AF195: -115 | AG195: -115 | AH195: -130 | AI195: -130 | AJ195: -155 | AK195: -155 | AL195: -185 | AM195: -185 | AN195: -220 | AO195: -220 | AP195: -270 | AQ195: -270
A196: js10 | B196: 20 | C196: 20 | D196: 24 | E196: 29 | F196: 35 | G196: 35 | H196: 42 | I196: 42 | J196: 50 | K196: 50 | L196: 60 | M196: 60 | N196: 70 | O196: 70 | P196: 80 | Q196: 80 | R196: 80 | S196: 92.5 | T196: 92.5 | U196: 92.5 | V196: 105 | W196: 105 | X196: 115 | Y196: 115 | Z196: 125 | AA196: 125 | AB196: 140 | AC196: 140 | AD196: 160 | AE196: 160 | AF196: 180 | AG196: 180 | AH196: 210 | AI196: 210 | AJ196: 250 | AK196: 250 | AL196: 300 | AM196: 300 | AN196: 350 | AO196: 350 | AP196: 430 | AQ196: 430
B197: -20 | C197: -20 | D197: -24 | E197: -29 | F197: -35 | G197: -35 | H197: -42 | I197: -42 | J197: -50 | K197: -50 | L197: -60 | M197: -60 | N197: -70 | O197: -70 | P197: -80 | Q197: -80 | R197: -80 | S197: -92.5 | T197: -92.5 | U197: -92.5 | V197: -105 | W197: -105 | X197: -115 | Y197: -115 | Z197: -125 | AA197: -125 | AB197: -140 | AC197: -140 | AD197: -160 | AE197: -160 | AF197: -180 | AG197: -180 | AH197: -210 | AI197: -210 | AJ197: -250 | AK197: -250 | AL197: -300 | AM197: -300 | AN197: -350 | AO197: -350 | AP197: -430 | AQ197: -430
A198: js11 | B198: 30 | C198: 30 | D198: 37.5 | E198: 45 | F198: 55 | G198: 55 | H198: 65 | I198: 65 | J198: 80 | K198: 80 | L198: 95 | M198: 95 | N198: 110 | O198: 110 | P198: 125 | Q198: 125 | R198: 125 | S198: 145 | T198: 145 | U198: 145 | V198: 160 | W198: 160 | X198: 180 | Y198: 180 | Z198: 200 | AA198: 200 | AB198: 220 | AC198: 220 | AD198: 250 | AE198: 250 | AF198: 280 | AG198: 280 | AH198: 330 | AI198: 330 | AJ198: 390 | AK198: 390 | AL198: 460 | AM198: 460 | AN198: 550 | AO198: 550 | AP198: 675 | AQ198: 675
B199: -30 | C199: -30 | D199: -37.5 | E199: -45 | F199: -55 | G199: -55 | H199: -65 | I199: -65 | J199: -80 | K199: -80 | L199: -95 | M199: -95 | N199: -110 | O199: -110 | P199: -125 | Q199: -125 | R199: -125 | S199: -145 | T199: -145 | U199: -145 | V199: -160 | W199: -160 | X199: -180 | Y199: -180 | Z199: -200 | AA199: -200 | AB199: -220 | AC199: -220 | AD199: -250 | AE199: -250 | AF199: -280 | AG199: -280 | AH199: -330 | AI199: -330 | AJ199: -390 | AK199: -390 | AL199: -460 | AM199: -460 | AN199: -550 | AO199: -550 | AP199: -675 | AQ199: -675
A200: js12 | B200: 50 | C200: 50 | D200: 60 | E200: 75 | F200: 90 | G200: 90 | H200: 105 | I200: 105 | J200: 125 | K200: 125 | L200: 150 | M200: 150 | N200: 175 | O200: 175 | P200: 200 | Q200: 200 | R200: 200 | S200: 230 | T200: 230 | U200: 230 | V200: 260 | W200: 260 | X200: 285 | Y200: 285 | Z200: 315 | AA200: 315 | AB200: 350 | AC200: 350 | AD200: 400 | AE200: 400 | AF200: 450 | AG200: 450 | AH200: 525 | AI200: 525 | AJ200: 625 | AK200: 625 | AL200: 750 | AM200: 750 | AN200: 875 | AO200: 875 | AP200: 1050 | AQ200: 1050
... 637 more rows

Sheet Ex1 AFC Linéaire
C1: Chaînes de cotes (à partir d'Excel 2013) | G1: Aide | I1: N° | J1: Rév. | K1: Nom | N1: Date
C2: Projet : | D2: Formation | I2: 1 | J2: 1 | K2: JY JACOTIN | N2: 46183
A32: Fonction : | C32: Ex1 : Demi-cote sur cylindre
A33: Calcul retenu | C33: Param. | D33: Exigence fonctionnelle CFmin | H33: CFmin | I33: Calcmin | J33: Exigence fonctionnelle CFmax | N33: CFmax | O33: Calcmax
A34: Proba. Monte Carlo | C34: =IFERROR(IF(INDEX(E52:E56,MATCH(A34,A52:A56,0))="","Aucun",INDEX(E52:E56,MATCH(A34,A52:A56,0))),"") -> 2700 | D34: Risque de contact | H34: 0.1 | I34: =IFERROR(INDEX(N52:N56,MATCH(A34,A52:A56,0)),"") -> 1.300170105 | J34: Fuite | N34: 11.2 | O34: =IFERROR(INDEX(O52:O56,MATCH(A34,A52:A56,0)),"") -> 9.099829895
A36: Maillon | B36: Pièce | C36: Description cote | D36: Nom. | E36: Ajust. | F36: Tol min | G36: Tol max | H36: Sens | I36: Sensib. | J36: Moy. | K36: ITx|S| | L36: (ITxS)² | M36: ±δμ adm. | N36: C. Arith. | O36: C. Quad | P36: S. Orient | Q36: Déport | R36: Appui/2 | S36: S. CAO | T36: CF moy. | U36: Delta | V36: CF(delta)
A37: A3 | B37: A | C37: Hauteur/appui | D37: 49 | F37: =-Tab_Maillons_AFC_217[[#This Row],[Tol max]] -> -1.5 | G37: 1.5 | H37: - | I37: =IF(Tab_Maillons_AFC_217[[#This Row],[Sens]]="+",1,IF(Tab_Maillons_AFC_217[[#This Row],[Sens]]="-",-1,IF(Tab_Maillons_AFC_217[[#This Row],[Sens]]="+½ cote",0.5,IF(Tab_Maillons_AFC_217[[#This Row],[Sens]]="-½ cote",-0.5,IF(Tab_Maillons_AFC_217[[#This Row],[Sens]]="S Orient",Tab_Maillons_AFC_217[[#This Row],[S. Orient]],IF(Tab_Maillons_AFC_217[[#This Row],[Sens]]="S CAO",ABS(Tab_Maillons_AFC_217[[#This Row],[S. CAO]]),IF(Tab_Maillons_AFC_217[[#This Row],[Sens]]="",0,"Erreur"))))))) -> -1 | J37: =IF(Tab_Maillons_AFC_217[[#This Row],[Sens]]<>"S CAO",(Tab_Maillons_AFC_217[[#This Row],[Nom.]]+(Tab_Maillons_AFC_217[[#This Row],[Tol min]]+Tab_Maillons_AFC_217[[#This Row],[Tol max]])/2)*Tab_Maillons_AFC_217[[#This Row],[Sensib.]],(Tab_Maillons_AFC_217[[#This Row],[Nom.]]+(Tab_Maillons_AFC_217[[#This Row],[Tol min]]+Tab_Maillons_AFC_217[[#This Row],[Tol max]])/2)) -> -49 | K37: =ABS(Tab_Maillons_AFC_217[[#This Row],[Tol max]]-Tab_Maillons_AFC_217[[#This Row],[Tol min]])*ABS(Tab_Maillons_AFC_217[[#This Row],[Sensib.]]) -> 3 | L37: =Tab_Maillons_AFC_217[[#This Row],[ITx|S|]]^2 -> 9 | M37: =IF(Decentrage_admis,Tab_Maillons_AFC_217[[#This Row],[ITx|S|]]/Decentrage_admis,0) -> 0.375 | N37: =IF(Tab_Maillons_AFC_217[[#Totals],[ITx|S|]],Tab_Maillons_AFC_217[[#This Row],[ITx|S|]]/Tab_Maillons_AFC_217[[#Totals],[ITx|S|]],0) -> 0.3333333333 | O37: =IF(Tab_Maillons_AFC_217[[#Totals],[(ITxS)²]],Tab_Maillons_AFC_217[[#This Row],[(ITxS)²]]/Tab_Maillons_AFC_217[[#Totals],[(ITxS)²]],0) -> 0.3272727273 | P37: =IF(Tab_Maillons_AFC_217[[#This Row],[Appui/2]]<>0,Tab_Maillons_AFC_217[[#This Row],[Déport]]/Tab_Maillons_AFC_217[[#This Row],[Appui/2]],1) -> 1 | S37: =IF(Tab_Maillons_AFC_217[[#This Row],[Delta]]<>0,(Tab_Maillons_AFC_217[[#This Row],[CF(delta)]]-Tab_Maillons_AFC_217[[#This Row],[CF moy.]])/Tab_Maillons_AFC_217[[#This Row],[Delta]],1) -> 1 | T37: 0 | U37: 0 | V37: 0
A38: B2 | B38: B | C38: Hauteur/appui | D38: 78.75 | F38: =-Tab_Maillons_AFC_217[[#This Row],[Tol max]] -> -1.75 | G38: 1.75 | H38: + | I38: =IF(Tab_Maillons_AFC_217[[#This Row],[Sens]]="+",1,IF(Tab_Maillons_AFC_217[[#This Row],[Sens]]="-",-1,IF(Tab_Maillons_AFC_217[[#This Row],[Sens]]="+½ cote",0.5,IF(Tab_Maillons_AFC_217[[#This Row],[Sens]]="-½ cote",-0.5,IF(Tab_Maillons_AFC_217[[#This Row],[Sens]]="S Orient",Tab_Maillons_AFC_217[[#This Row],[S. Orient]],IF(Tab_Maillons_AFC_217[[#This Row],[Sens]]="S CAO",ABS(Tab_Maillons_AFC_217[[#This Row],[S. CAO]]),IF(Tab_Maillons_AFC_217[[#This Row],[Sens]]="",0,"Erreur"))))))) -> 1 | J38: =IF(Tab_Maillons_AFC_217[[#This Row],[Sens]]<>"S CAO",(Tab_Maillons_AFC_217[[#This Row],[Nom.]]+(Tab_Maillons_AFC_217[[#This Row],[Tol min]]+Tab_Maillons_AFC_217[[#This Row],[Tol max]])/2)*Tab_Maillons_AFC_217[[#This Row],[Sensib.]],(Tab_Maillons_AFC_217[[#This Row],[Nom.]]+(Tab_Maillons_AFC_217[[#This Row],[Tol min]]+Tab_Maillons_AFC_217[[#This Row],[Tol max]])/2)) -> 78.75 | K38: =ABS(Tab_Maillons_AFC_217[[#This Row],[Tol max]]-Tab_Maillons_AFC_217[[#This Row],[Tol min]])*ABS(Tab_Maillons_AFC_217[[#This Row],[Sensib.]]) -> 3.5 | L38: =Tab_Maillons_AFC_217[[#This Row],[ITx|S|]]^2 -> 12.25 | M38: =IF(Decentrage_admis,Tab_Maillons_AFC_217[[#This Row],[ITx|S|]]/Decentrage_admis,0) -> 0.4375 | N38: =IF(Tab_Maillons_AFC_217[[#Totals],[ITx|S|]],Tab_Maillons_AFC_217[[#This Row],[ITx|S|]]/Tab_Maillons_AFC_217[[#Totals],[ITx|S|]],0) -> 0.3888888889 | O38: =IF(Tab_Maillons_AFC_217[[#Totals],[(ITxS)²]],Tab_Maillons_AFC_217[[#This Row],[(ITxS)²]]/Tab_Maillons_AFC_217[[#Totals],[(ITxS)²]],0) -> 0.4454545455 | P38: =IF(Tab_Maillons_AFC_217[[#This Row],[Appui/2]]<>0,Tab_Maillons_AFC_217[[#This Row],[Déport]]/Tab_Maillons_AFC_217[[#This Row],[Appui/2]],1) -> 1 | S38: =IF(Tab_Maillons_AFC_217[[#This Row],[Delta]]<>0,(Tab_Maillons_AFC_217[[#This Row],[CF(delta)]]-Tab_Maillons_AFC_217[[#This Row],[CF moy.]])/Tab_Maillons_AFC_217[[#This Row],[Delta]],1) -> 1 | T38: =IF(Tab_Maillons_AFC_217[[#This Row],[Maillon]]=Tab_Maillons_AFC_217[[#This Row],[Maillon]], INDEX(Tab_Maillons_AFC_217[CF moy.],1), "") -> 0
A39: B1 | B39: B | C39: Rayon cylindre | D39: 49.1 | F39: =-Tab_Maillons_AFC_217[[#This Row],[Tol max]] -> -2.5 | G39: 2.5 | H39: -½ cote | I39: =IF(Tab_Maillons_AFC_217[[#This Row],[Sens]]="+",1,IF(Tab_Maillons_AFC_217[[#This Row],[Sens]]="-",-1,IF(Tab_Maillons_AFC_217[[#This Row],[Sens]]="+½ cote",0.5,IF(Tab_Maillons_AFC_217[[#This Row],[Sens]]="-½ cote",-0.5,IF(Tab_Maillons_AFC_217[[#This Row],[Sens]]="S Orient",Tab_Maillons_AFC_217[[#This Row],[S. Orient]],IF(Tab_Maillons_AFC_217[[#This Row],[Sens]]="S CAO",ABS(Tab_Maillons_AFC_217[[#This Row],[S. CAO]]),IF(Tab_Maillons_AFC_217[[#This Row],[Sens]]="",0,"Erreur"))))))) -> -0.5 | J39: =IF(Tab_Maillons_AFC_217[[#This Row],[Sens]]<>"S CAO",(Tab_Maillons_AFC_217[[#This Row],[Nom.]]+(Tab_Maillons_AFC_217[[#This Row],[Tol min]]+Tab_Maillons_AFC_217[[#This Row],[Tol max]])/2)*Tab_Maillons_AFC_217[[#This Row],[Sensib.]],(Tab_Maillons_AFC_217[[#This Row],[Nom.]]+(Tab_Maillons_AFC_217[[#This Row],[Tol min]]+Tab_Maillons_AFC_217[[#This Row],[Tol max]])/2)) -> -24.55 | K39: =ABS(Tab_Maillons_AFC_217[[#This Row],[Tol max]]-Tab_Maillons_AFC_217[[#This Row],[Tol min]])*ABS(Tab_Maillons_AFC_217[[#This Row],[Sensib.]]) -> 2.5 | L39: =Tab_Maillons_AFC_217[[#This Row],[ITx|S|]]^2 -> 6.25 | M39: =IF(Decentrage_admis,Tab_Maillons_AFC_217[[#This Row],[ITx|S|]]/Decentrage_admis,0) -> 0.3125 | N39: =IF(Tab_Maillons_AFC_217[[#Totals],[ITx|S|]],Tab_Maillons_AFC_217[[#This Row],[ITx|S|]]/Tab_Maillons_AFC_217[[#Totals],[ITx|S|]],0) -> 0.2777777778 | O39: =IF(Tab_Maillons_AFC_217[[#Totals],[(ITxS)²]],Tab_Maillons_AFC_217[[#This Row],[(ITxS)²]]/Tab_Maillons_AFC_217[[#Totals],[(ITxS)²]],0) -> 0.2272727273 | P39: =IF(Tab_Maillons_AFC_217[[#This Row],[Appui/2]]<>0,Tab_Maillons_AFC_217[[#This Row],[Déport]]/Tab_Maillons_AFC_217[[#This Row],[Appui/2]],1) -> 1 | S39: =IF(Tab_Maillons_AFC_217[[#This Row],[Delta]]<>0,(Tab_Maillons_AFC_217[[#This Row],[CF(delta)]]-Tab_Maillons_AFC_217[[#This Row],[CF moy.]])/Tab_Maillons_AFC_217[[#This Row],[Delta]],1) -> 1 | T39: =IF(Tab_Maillons_AFC_217[[#This Row],[Maillon]]=Tab_Maillons_AFC_217[[#This Row],[Maillon]], INDEX(Tab_Maillons_AFC_217[CF moy.],1), "") -> 0
I40: =IF(Tab_Maillons_AFC_217[[#This Row],[Sens]]="+",1,IF(Tab_Maillons_AFC_217[[#This Row],[Sens]]="-",-1,IF(Tab_Maillons_AFC_217[[#This Row],[Sens]]="+½ cote",0.5,IF(Tab_Maillons_AFC_217[[#This Row],[Sens]]="-½ cote",-0.5,IF(Tab_Maillons_AFC_217[[#This Row],[Sens]]="S Orient",Tab_Maillons_AFC_217[[#This Row],[S. Orient]],IF(Tab_Maillons_AFC_217[[#This Row],[Sens]]="S CAO",ABS(Tab_Maillons_AFC_217[[#This Row],[S. CAO]]),IF(Tab_Maillons_AFC_217[[#This Row],[Sens]]="",0,"Erreur"))))))) -> 0 | J40: =IF(Tab_Maillons_AFC_217[[#This Row],[Sens]]<>"S CAO",(Tab_Maillons_AFC_217[[#This Row],[Nom.]]+(Tab_Maillons_AFC_217[[#This Row],[Tol min]]+Tab_Maillons_AFC_217[[#This Row],[Tol max]])/2)*Tab_Maillons_AFC_217[[#This Row],[Sensib.]],(Tab_Maillons_AFC_217[[#This Row],[Nom.]]+(Tab_Maillons_AFC_217[[#This Row],[Tol min]]+Tab_Maillons_AFC_217[[#This Row],[Tol max]])/2)) -> 0 | K40: =ABS(Tab_Maillons_AFC_217[[#This Row],[Tol max]]-Tab_Maillons_AFC_217[[#This Row],[Tol min]])*ABS(Tab_Maillons_AFC_217[[#This Row],[Sensib.]]) -> 0 | L40: =Tab_Maillons_AFC_217[[#This Row],[ITx|S|]]^2 -> 0 | M40: =IF(Decentrage_admis,Tab_Maillons_AFC_217[[#This Row],[ITx|S|]]/Decentrage_admis,0) -> 0 | N40: =IF(Tab_Maillons_AFC_217[[#Totals],[ITx|S|]],Tab_Maillons_AFC_217[[#This Row],[ITx|S|]]/Tab_Maillons_AFC_217[[#Totals],[ITx|S|]],0) -> 0 | O40: =IF(Tab_Maillons_AFC_217[[#Totals],[(ITxS)²]],Tab_Maillons_AFC_217[[#This Row],[(ITxS)²]]/Tab_Maillons_AFC_217[[#Totals],[(ITxS)²]],0) -> 0 | P40: =IF(Tab_Maillons_AFC_217[[#This Row],[Appui/2]]<>0,Tab_Maillons_AFC_217[[#This Row],[Déport]]/Tab_Maillons_AFC_217[[#This Row],[Appui/2]],1) -> 1 | S40: =IF(Tab_Maillons_AFC_217[[#This Row],[Delta]]<>0,(Tab_Maillons_AFC_217[[#This Row],[CF(delta)]]-Tab_Maillons_AFC_217[[#This Row],[CF moy.]])/Tab_Maillons_AFC_217[[#This Row],[Delta]],1) -> 1 | T40: =IF(Tab_Maillons_AFC_217[[#This Row],[Maillon]]=Tab_Maillons_AFC_217[[#This Row],[Maillon]], INDEX(Tab_Maillons_AFC_217[CF moy.],1), "") -> 0
I41: =IF(Tab_Maillons_AFC_217[[#This Row],[Sens]]="+",1,IF(Tab_Maillons_AFC_217[[#This Row],[Sens]]="-",-1,IF(Tab_Maillons_AFC_217[[#This Row],[Sens]]="+½ cote",0.5,IF(Tab_Maillons_AFC_217[[#This Row],[Sens]]="-½ cote",-0.5,IF(Tab_Maillons_AFC_217[[#This Row],[Sens]]="S Orient",Tab_Maillons_AFC_217[[#This Row],[S. Orient]],IF(Tab_Maillons_AFC_217[[#This Row],[Sens]]="S CAO",ABS(Tab_Maillons_AFC_217[[#This Row],[S. CAO]]),IF(Tab_Maillons_AFC_217[[#This Row],[Sens]]="",0,"Erreur"))))))) -> 0 | J41: =IF(Tab_Maillons_AFC_217[[#This Row],[Sens]]<>"S CAO",(Tab_Maillons_AFC_217[[#This Row],[Nom.]]+(Tab_Maillons_AFC_217[[#This Row],[Tol min]]+Tab_Maillons_AFC_217[[#This Row],[Tol max]])/2)*Tab_Maillons_AFC_217[[#This Row],[Sensib.]],(Tab_Maillons_AFC_217[[#This Row],[Nom.]]+(Tab_Maillons_AFC_217[[#This Row],[Tol min]]+Tab_Maillons_AFC_217[[#This Row],[Tol max]])/2)) -> 0 | K41: =ABS(Tab_Maillons_AFC_217[[#This Row],[Tol max]]-Tab_Maillons_AFC_217[[#This Row],[Tol min]])*ABS(Tab_Maillons_AFC_217[[#This Row],[Sensib.]]) -> 0 | L41: =Tab_Maillons_AFC_217[[#This Row],[ITx|S|]]^2 -> 0 | M41: =IF(Decentrage_admis,Tab_Maillons_AFC_217[[#This Row],[ITx|S|]]/Decentrage_admis,0) -> 0 | N41: =IF(Tab_Maillons_AFC_217[[#Totals],[ITx|S|]],Tab_Maillons_AFC_217[[#This Row],[ITx|S|]]/Tab_Maillons_AFC_217[[#Totals],[ITx|S|]],0) -> 0 | O41: =IF(Tab_Maillons_AFC_217[[#Totals],[(ITxS)²]],Tab_Maillons_AFC_217[[#This Row],[(ITxS)²]]/Tab_Maillons_AFC_217[[#Totals],[(ITxS)²]],0) -> 0 | P41: =IF(Tab_Maillons_AFC_217[[#This Row],[Appui/2]]<>0,Tab_Maillons_AFC_217[[#This Row],[Déport]]/Tab_Maillons_AFC_217[[#This Row],[Appui/2]],1) -> 1 | S41: =IF(Tab_Maillons_AFC_217[[#This Row],[Delta]]<>0,(Tab_Maillons_AFC_217[[#This Row],[CF(delta)]]-Tab_Maillons_AFC_217[[#This Row],[CF moy.]])/Tab_Maillons_AFC_217[[#This Row],[Delta]],1) -> 1 | T41: =IF(Tab_Maillons_AFC_217[[#This Row],[Maillon]]=Tab_Maillons_AFC_217[[#This Row],[Maillon]], INDEX(Tab_Maillons_AFC_217[CF moy.],1), "") -> 0
I42: =IF(Tab_Maillons_AFC_217[[#This Row],[Sens]]="+",1,IF(Tab_Maillons_AFC_217[[#This Row],[Sens]]="-",-1,IF(Tab_Maillons_AFC_217[[#This Row],[Sens]]="+½ cote",0.5,IF(Tab_Maillons_AFC_217[[#This Row],[Sens]]="-½ cote",-0.5,IF(Tab_Maillons_AFC_217[[#This Row],[Sens]]="S Orient",Tab_Maillons_AFC_217[[#This Row],[S. Orient]],IF(Tab_Maillons_AFC_217[[#This Row],[Sens]]="S CAO",ABS(Tab_Maillons_AFC_217[[#This Row],[S. CAO]]),IF(Tab_Maillons_AFC_217[[#This Row],[Sens]]="",0,"Erreur"))))))) -> 0 | J42: =IF(Tab_Maillons_AFC_217[[#This Row],[Sens]]<>"S CAO",(Tab_Maillons_AFC_217[[#This Row],[Nom.]]+(Tab_Maillons_AFC_217[[#This Row],[Tol min]]+Tab_Maillons_AFC_217[[#This Row],[Tol max]])/2)*Tab_Maillons_AFC_217[[#This Row],[Sensib.]],(Tab_Maillons_AFC_217[[#This Row],[Nom.]]+(Tab_Maillons_AFC_217[[#This Row],[Tol min]]+Tab_Maillons_AFC_217[[#This Row],[Tol max]])/2)) -> 0 | K42: =ABS(Tab_Maillons_AFC_217[[#This Row],[Tol max]]-Tab_Maillons_AFC_217[[#This Row],[Tol min]])*ABS(Tab_Maillons_AFC_217[[#This Row],[Sensib.]]) -> 0 | L42: =Tab_Maillons_AFC_217[[#This Row],[ITx|S|]]^2 -> 0 | M42: =IF(Decentrage_admis,Tab_Maillons_AFC_217[[#This Row],[ITx|S|]]/Decentrage_admis,0) -> 0 | N42: =IF(Tab_Maillons_AFC_217[[#Totals],[ITx|S|]],Tab_Maillons_AFC_217[[#This Row],[ITx|S|]]/Tab_Maillons_AFC_217[[#Totals],[ITx|S|]],0) -> 0 | O42: =IF(Tab_Maillons_AFC_217[[#Totals],[(ITxS)²]],Tab_Maillons_AFC_217[[#This Row],[(ITxS)²]]/Tab_Maillons_AFC_217[[#Totals],[(ITxS)²]],0) -> 0 | P42: =IF(Tab_Maillons_AFC_217[[#This Row],[Appui/2]]<>0,Tab_Maillons_AFC_217[[#This Row],[Déport]]/Tab_Maillons_AFC_217[[#This Row],[Appui/2]],1) -> 1 | S42: =IF(Tab_Maillons_AFC_217[[#This Row],[Delta]]<>0,(Tab_Maillons_AFC_217[[#This Row],[CF(delta)]]-Tab_Maillons_AFC_217[[#This Row],[CF moy.]])/Tab_Maillons_AFC_217[[#This Row],[Delta]],1) -> 1 | T42: =IF(Tab_Maillons_AFC_217[[#This Row],[Maillon]]=Tab_Maillons_AFC_217[[#This Row],[Maillon]], INDEX(Tab_Maillons_AFC_217[CF moy.],1), "") -> 0
I43: =IF(Tab_Maillons_AFC_217[[#This Row],[Sens]]="+",1,IF(Tab_Maillons_AFC_217[[#This Row],[Sens]]="-",-1,IF(Tab_Maillons_AFC_217[[#This Row],[Sens]]="+½ cote",0.5,IF(Tab_Maillons_AFC_217[[#This Row],[Sens]]="-½ cote",-0.5,IF(Tab_Maillons_AFC_217[[#This Row],[Sens]]="S Orient",Tab_Maillons_AFC_217[[#This Row],[S. Orient]],IF(Tab_Maillons_AFC_217[[#This Row],[Sens]]="S CAO",ABS(Tab_Maillons_AFC_217[[#This Row],[S. CAO]]),IF(Tab_Maillons_AFC_217[[#This Row],[Sens]]="",0,"Erreur"))))))) -> 0 | J43: =IF(Tab_Maillons_AFC_217[[#This Row],[Sens]]<>"S CAO",(Tab_Maillons_AFC_217[[#This Row],[Nom.]]+(Tab_Maillons_AFC_217[[#This Row],[Tol min]]+Tab_Maillons_AFC_217[[#This Row],[Tol max]])/2)*Tab_Maillons_AFC_217[[#This Row],[Sensib.]],(Tab_Maillons_AFC_217[[#This Row],[Nom.]]+(Tab_Maillons_AFC_217[[#This Row],[Tol min]]+Tab_Maillons_AFC_217[[#This Row],[Tol max]])/2)) -> 0 | K43: =ABS(Tab_Maillons_AFC_217[[#This Row],[Tol max]]-Tab_Maillons_AFC_217[[#This Row],[Tol min]])*ABS(Tab_Maillons_AFC_217[[#This Row],[Sensib.]]) -> 0 | L43: =Tab_Maillons_AFC_217[[#This Row],[ITx|S|]]^2 -> 0 | M43: =IF(Decentrage_admis,Tab_Maillons_AFC_217[[#This Row],[ITx|S|]]/Decentrage_admis,0) -> 0 | N43: =IF(Tab_Maillons_AFC_217[[#Totals],[ITx|S|]],Tab_Maillons_AFC_217[[#This Row],[ITx|S|]]/Tab_Maillons_AFC_217[[#Totals],[ITx|S|]],0) -> 0 | O43: =IF(Tab_Maillons_AFC_217[[#Totals],[(ITxS)²]],Tab_Maillons_AFC_217[[#This Row],[(ITxS)²]]/Tab_Maillons_AFC_217[[#Totals],[(ITxS)²]],0) -> 0 | P43: =IF(Tab_Maillons_AFC_217[[#This Row],[Appui/2]]<>0,Tab_Maillons_AFC_217[[#This Row],[Déport]]/Tab_Maillons_AFC_217[[#This Row],[Appui/2]],1) -> 1 | S43: =IF(Tab_Maillons_AFC_217[[#This Row],[Delta]]<>0,(Tab_Maillons_AFC_217[[#This Row],[CF(delta)]]-Tab_Maillons_AFC_217[[#This Row],[CF moy.]])/Tab_Maillons_AFC_217[[#This Row],[Delta]],1) -> 1 | T43: =IF(Tab_Maillons_AFC_217[[#This Row],[Maillon]]=Tab_Maillons_AFC_217[[#This Row],[Maillon]], INDEX(Tab_Maillons_AFC_217[CF moy.],1), "") -> 0
I44: =IF(Tab_Maillons_AFC_217[[#This Row],[Sens]]="+",1,IF(Tab_Maillons_AFC_217[[#This Row],[Sens]]="-",-1,IF(Tab_Maillons_AFC_217[[#This Row],[Sens]]="+½ cote",0.5,IF(Tab_Maillons_AFC_217[[#This Row],[Sens]]="-½ cote",-0.5,IF(Tab_Maillons_AFC_217[[#This Row],[Sens]]="S Orient",Tab_Maillons_AFC_217[[#This Row],[S. Orient]],IF(Tab_Maillons_AFC_217[[#This Row],[Sens]]="S CAO",ABS(Tab_Maillons_AFC_217[[#This Row],[S. CAO]]),IF(Tab_Maillons_AFC_217[[#This Row],[Sens]]="",0,"Erreur"))))))) -> 0 | J44: =IF(Tab_Maillons_AFC_217[[#This Row],[Sens]]<>"S CAO",(Tab_Maillons_AFC_217[[#This Row],[Nom.]]+(Tab_Maillons_AFC_217[[#This Row],[Tol min]]+Tab_Maillons_AFC_217[[#This Row],[Tol max]])/2)*Tab_Maillons_AFC_217[[#This Row],[Sensib.]],(Tab_Maillons_AFC_217[[#This Row],[Nom.]]+(Tab_Maillons_AFC_217[[#This Row],[Tol min]]+Tab_Maillons_AFC_217[[#This Row],[Tol max]])/2)) -> 0 | K44: =ABS(Tab_Maillons_AFC_217[[#This Row],[Tol max]]-Tab_Maillons_AFC_217[[#This Row],[Tol min]])*ABS(Tab_Maillons_AFC_217[[#This Row],[Sensib.]]) -> 0 | L44: =Tab_Maillons_AFC_217[[#This Row],[ITx|S|]]^2 -> 0 | M44: =IF(Decentrage_admis,Tab_Maillons_AFC_217[[#This Row],[ITx|S|]]/Decentrage_admis,0) -> 0 | N44: =IF(Tab_Maillons_AFC_217[[#Totals],[ITx|S|]],Tab_Maillons_AFC_217[[#This Row],[ITx|S|]]/Tab_Maillons_AFC_217[[#Totals],[ITx|S|]],0) -> 0 | O44: =IF(Tab_Maillons_AFC_217[[#Totals],[(ITxS)²]],Tab_Maillons_AFC_217[[#This Row],[(ITxS)²]]/Tab_Maillons_AFC_217[[#Totals],[(ITxS)²]],0) -> 0 | P44: =IF(Tab_Maillons_AFC_217[[#This Row],[Appui/2]]<>0,Tab_Maillons_AFC_217[[#This Row],[Déport]]/Tab_Maillons_AFC_217[[#This Row],[Appui/2]],1) -> 1 | S44: =IF(Tab_Maillons_AFC_217[[#This Row],[Delta]]<>0,(Tab_Maillons_AFC_217[[#This Row],[CF(delta)]]-Tab_Maillons_AFC_217[[#This Row],[CF moy.]])/Tab_Maillons_AFC_217[[#This Row],[Delta]],1) -> 1 | T44: =IF(Tab_Maillons_AFC_217[[#This Row],[Maillon]]=Tab_Maillons_AFC_217[[#This Row],[Maillon]], INDEX(Tab_Maillons_AFC_217[CF moy.],1), "") -> 0
I45: =IF(Tab_Maillons_AFC_217[[#This Row],[Sens]]="+",1,IF(Tab_Maillons_AFC_217[[#This Row],[Sens]]="-",-1,IF(Tab_Maillons_AFC_217[[#This Row],[Sens]]="+½ cote",0.5,IF(Tab_Maillons_AFC_217[[#This Row],[Sens]]="-½ cote",-0.5,IF(Tab_Maillons_AFC_217[[#This Row],[Sens]]="S Orient",Tab_Maillons_AFC_217[[#This Row],[S. Orient]],IF(Tab_Maillons_AFC_217[[#This Row],[Sens]]="S CAO",ABS(Tab_Maillons_AFC_217[[#This Row],[S. CAO]]),IF(Tab_Maillons_AFC_217[[#This Row],[Sens]]="",0,"Erreur"))))))) -> 0 | J45: =IF(Tab_Maillons_AFC_217[[#This Row],[Sens]]<>"S CAO",(Tab_Maillons_AFC_217[[#This Row],[Nom.]]+(Tab_Maillons_AFC_217[[#This Row],[Tol min]]+Tab_Maillons_AFC_217[[#This Row],[Tol max]])/2)*Tab_Maillons_AFC_217[[#This Row],[Sensib.]],(Tab_Maillons_AFC_217[[#This Row],[Nom.]]+(Tab_Maillons_AFC_217[[#This Row],[Tol min]]+Tab_Maillons_AFC_217[[#This Row],[Tol max]])/2)) -> 0 | K45: =ABS(Tab_Maillons_AFC_217[[#This Row],[Tol max]]-Tab_Maillons_AFC_217[[#This Row],[Tol min]])*ABS(Tab_Maillons_AFC_217[[#This Row],[Sensib.]]) -> 0 | L45: =Tab_Maillons_AFC_217[[#This Row],[ITx|S|]]^2 -> 0 | M45: =IF(Decentrage_admis,Tab_Maillons_AFC_217[[#This Row],[ITx|S|]]/Decentrage_admis,0) -> 0 | N45: =IF(Tab_Maillons_AFC_217[[#Totals],[ITx|S|]],Tab_Maillons_AFC_217[[#This Row],[ITx|S|]]/Tab_Maillons_AFC_217[[#Totals],[ITx|S|]],0) -> 0 | O45: =IF(Tab_Maillons_AFC_217[[#Totals],[(ITxS)²]],Tab_Maillons_AFC_217[[#This Row],[(ITxS)²]]/Tab_Maillons_AFC_217[[#Totals],[(ITxS)²]],0) -> 0 | P45: =IF(Tab_Maillons_AFC_217[[#This Row],[Appui/2]]<>0,Tab_Maillons_AFC_217[[#This Row],[Déport]]/Tab_Maillons_AFC_217[[#This Row],[Appui/2]],1) -> 1 | S45: =IF(Tab_Maillons_AFC_217[[#This Row],[Delta]]<>0,(Tab_Maillons_AFC_217[[#This Row],[CF(delta)]]-Tab_Maillons_AFC_217[[#This Row],[CF moy.]])/Tab_Maillons_AFC_217[[#This Row],[Delta]],1) -> 1 | T45: =IF(Tab_Maillons_AFC_217[[#This Row],[Maillon]]=Tab_Maillons_AFC_217[[#This Row],[Maillon]], INDEX(Tab_Maillons_AFC_217[CF moy.],1), "") -> 0
I46: =IF(Tab_Maillons_AFC_217[[#This Row],[Sens]]="+",1,IF(Tab_Maillons_AFC_217[[#This Row],[Sens]]="-",-1,IF(Tab_Maillons_AFC_217[[#This Row],[Sens]]="+½ cote",0.5,IF(Tab_Maillons_AFC_217[[#This Row],[Sens]]="-½ cote",-0.5,IF(Tab_Maillons_AFC_217[[#This Row],[Sens]]="S Orient",Tab_Maillons_AFC_217[[#This Row],[S. Orient]],IF(Tab_Maillons_AFC_217[[#This Row],[Sens]]="S CAO",ABS(Tab_Maillons_AFC_217[[#This Row],[S. CAO]]),IF(Tab_Maillons_AFC_217[[#This Row],[Sens]]="",0,"Erreur"))))))) -> 0 | J46: =IF(Tab_Maillons_AFC_217[[#This Row],[Sens]]<>"S CAO",(Tab_Maillons_AFC_217[[#This Row],[Nom.]]+(Tab_Maillons_AFC_217[[#This Row],[Tol min]]+Tab_Maillons_AFC_217[[#This Row],[Tol max]])/2)*Tab_Maillons_AFC_217[[#This Row],[Sensib.]],(Tab_Maillons_AFC_217[[#This Row],[Nom.]]+(Tab_Maillons_AFC_217[[#This Row],[Tol min]]+Tab_Maillons_AFC_217[[#This Row],[Tol max]])/2)) -> 0 | K46: =ABS(Tab_Maillons_AFC_217[[#This Row],[Tol max]]-Tab_Maillons_AFC_217[[#This Row],[Tol min]])*ABS(Tab_Maillons_AFC_217[[#This Row],[Sensib.]]) -> 0 | L46: =Tab_Maillons_AFC_217[[#This Row],[ITx|S|]]^2 -> 0 | M46: =IF(Decentrage_admis,Tab_Maillons_AFC_217[[#This Row],[ITx|S|]]/Decentrage_admis,0) -> 0 | N46: =IF(Tab_Maillons_AFC_217[[#Totals],[ITx|S|]],Tab_Maillons_AFC_217[[#This Row],[ITx|S|]]/Tab_Maillons_AFC_217[[#Totals],[ITx|S|]],0) -> 0 | O46: =IF(Tab_Maillons_AFC_217[[#Totals],[(ITxS)²]],Tab_Maillons_AFC_217[[#This Row],[(ITxS)²]]/Tab_Maillons_AFC_217[[#Totals],[(ITxS)²]],0) -> 0 | P46: =IF(Tab_Maillons_AFC_217[[#This Row],[Appui/2]]<>0,Tab_Maillons_AFC_217[[#This Row],[Déport]]/Tab_Maillons_AFC_217[[#This Row],[Appui/2]],1) -> 1 | S46: =IF(Tab_Maillons_AFC_217[[#This Row],[Delta]]<>0,(Tab_Maillons_AFC_217[[#This Row],[CF(delta)]]-Tab_Maillons_AFC_217[[#This Row],[CF moy.]])/Tab_Maillons_AFC_217[[#This Row],[Delta]],1) -> 1 | T46: =IF(Tab_Maillons_AFC_217[[#This Row],[Maillon]]=Tab_Maillons_AFC_217[[#This Row],[Maillon]], INDEX(Tab_Maillons_AFC_217[CF moy.],1), "") -> 0
I47: =IF(Tab_Maillons_AFC_217[[#This Row],[Sens]]="+",1,IF(Tab_Maillons_AFC_217[[#This Row],[Sens]]="-",-1,IF(Tab_Maillons_AFC_217[[#This Row],[Sens]]="+½ cote",0.5,IF(Tab_Maillons_AFC_217[[#This Row],[Sens]]="-½ cote",-0.5,IF(Tab_Maillons_AFC_217[[#This Row],[Sens]]="S Orient",Tab_Maillons_AFC_217[[#This Row],[S. Orient]],IF(Tab_Maillons_AFC_217[[#This Row],[Sens]]="S CAO",ABS(Tab_Maillons_AFC_217[[#This Row],[S. CAO]]),IF(Tab_Maillons_AFC_217[[#This Row],[Sens]]="",0,"Erreur"))))))) -> 0 | J47: =IF(Tab_Maillons_AFC_217[[#This Row],[Sens]]<>"S CAO",(Tab_Maillons_AFC_217[[#This Row],[Nom.]]+(Tab_Maillons_AFC_217[[#This Row],[Tol min]]+Tab_Maillons_AFC_217[[#This Row],[Tol max]])/2)*Tab_Maillons_AFC_217[[#This Row],[Sensib.]],(Tab_Maillons_AFC_217[[#This Row],[Nom.]]+(Tab_Maillons_AFC_217[[#This Row],[Tol min]]+Tab_Maillons_AFC_217[[#This Row],[Tol max]])/2)) -> 0 | K47: =ABS(Tab_Maillons_AFC_217[[#This Row],[Tol max]]-Tab_Maillons_AFC_217[[#This Row],[Tol min]])*ABS(Tab_Maillons_AFC_217[[#This Row],[Sensib.]]) -> 0 | L47: =Tab_Maillons_AFC_217[[#This Row],[ITx|S|]]^2 -> 0 | M47: =IF(Decentrage_admis,Tab_Maillons_AFC_217[[#This Row],[ITx|S|]]/Decentrage_admis,0) -> 0 | N47: =IF(Tab_Maillons_AFC_217[[#Totals],[ITx|S|]],Tab_Maillons_AFC_217[[#This Row],[ITx|S|]]/Tab_Maillons_AFC_217[[#Totals],[ITx|S|]],0) -> 0 | O47: =IF(Tab_Maillons_AFC_217[[#Totals],[(ITxS)²]],Tab_Maillons_AFC_217[[#This Row],[(ITxS)²]]/Tab_Maillons_AFC_217[[#Totals],[(ITxS)²]],0) -> 0 | P47: =IF(Tab_Maillons_AFC_217[[#This Row],[Appui/2]]<>0,Tab_Maillons_AFC_217[[#This Row],[Déport]]/Tab_Maillons_AFC_217[[#This Row],[Appui/2]],1) -> 1 | S47: =IF(Tab_Maillons_AFC_217[[#This Row],[Delta]]<>0,(Tab_Maillons_AFC_217[[#This Row],[CF(delta)]]-Tab_Maillons_AFC_217[[#This Row],[CF moy.]])/Tab_Maillons_AFC_217[[#This Row],[Delta]],1) -> 1 | T47: =IF(Tab_Maillons_AFC_217[[#This Row],[Maillon]]=Tab_Maillons_AFC_217[[#This Row],[Maillon]], INDEX(Tab_Maillons_AFC_217[CF moy.],1), "") -> 0
I48: =IF(Tab_Maillons_AFC_217[[#This Row],[Sens]]="+",1,IF(Tab_Maillons_AFC_217[[#This Row],[Sens]]="-",-1,IF(Tab_Maillons_AFC_217[[#This Row],[Sens]]="+½ cote",0.5,IF(Tab_Maillons_AFC_217[[#This Row],[Sens]]="-½ cote",-0.5,IF(Tab_Maillons_AFC_217[[#This Row],[Sens]]="S Orient",Tab_Maillons_AFC_217[[#This Row],[S. Orient]],IF(Tab_Maillons_AFC_217[[#This Row],[Sens]]="S CAO",ABS(Tab_Maillons_AFC_217[[#This Row],[S. CAO]]),IF(Tab_Maillons_AFC_217[[#This Row],[Sens]]="",0,"Erreur"))))))) -> 0 | J48: =IF(Tab_Maillons_AFC_217[[#This Row],[Sens]]<>"S CAO",(Tab_Maillons_AFC_217[[#This Row],[Nom.]]+(Tab_Maillons_AFC_217[[#This Row],[Tol min]]+Tab_Maillons_AFC_217[[#This Row],[Tol max]])/2)*Tab_Maillons_AFC_217[[#This Row],[Sensib.]],(Tab_Maillons_AFC_217[[#This Row],[Nom.]]+(Tab_Maillons_AFC_217[[#This Row],[Tol min]]+Tab_Maillons_AFC_217[[#This Row],[Tol max]])/2)) -> 0 | K48: =ABS(Tab_Maillons_AFC_217[[#This Row],[Tol max]]-Tab_Maillons_AFC_217[[#This Row],[Tol min]])*ABS(Tab_Maillons_AFC_217[[#This Row],[Sensib.]]) -> 0 | L48: =Tab_Maillons_AFC_217[[#This Row],[ITx|S|]]^2 -> 0 | M48: =IF(Decentrage_admis,Tab_Maillons_AFC_217[[#This Row],[ITx|S|]]/Decentrage_admis,0) -> 0 | N48: =IF(Tab_Maillons_AFC_217[[#Totals],[ITx|S|]],Tab_Maillons_AFC_217[[#This Row],[ITx|S|]]/Tab_Maillons_AFC_217[[#Totals],[ITx|S|]],0) -> 0 | O48: =IF(Tab_Maillons_AFC_217[[#Totals],[(ITxS)²]],Tab_Maillons_AFC_217[[#This Row],[(ITxS)²]]/Tab_Maillons_AFC_217[[#Totals],[(ITxS)²]],0) -> 0 | P48: =IF(Tab_Maillons_AFC_217[[#This Row],[Appui/2]]<>0,Tab_Maillons_AFC_217[[#This Row],[Déport]]/Tab_Maillons_AFC_217[[#This Row],[Appui/2]],1) -> 1 | S48: =IF(Tab_Maillons_AFC_217[[#This Row],[Delta]]<>0,(Tab_Maillons_AFC_217[[#This Row],[CF(delta)]]-Tab_Maillons_AFC_217[[#This Row],[CF moy.]])/Tab_Maillons_AFC_217[[#This Row],[Delta]],1) -> 1 | T48: =IF(Tab_Maillons_AFC_217[[#This Row],[Maillon]]=Tab_Maillons_AFC_217[[#This Row],[Maillon]], INDEX(Tab_Maillons_AFC_217[CF moy.],1), "") -> 0
A49: Total | J49: =IF(COUNTIF(Tab_Maillons_AFC_217[Sens],"S CAO"),INDEX(Tab_Maillons_AFC_217[CF moy.],1),SUM(Tab_Maillons_AFC_217[Moy.])) -> 5.2 | K49: =SUM(Tab_Maillons_AFC_217[ITx|S|]) -> 9 | L49: =SUM(Tab_Maillons_AFC_217[(ITxS)²]) -> 27.5 | M49: =SUM(Tab_Maillons_AFC_217[±δμ adm.]) -> 1.125 | N49: =SUM(Tab_Maillons_AFC_217[C. Arith.]) -> 1 | O49: =SUM(Tab_Maillons_AFC_217[C. Quad]) -> 1
A51: Type de calculs | C51: Formule | D51: Paramètre | F51: Conditions d'application | K51: IT CF | L51: CF résultante | N51: CFmin | O51: CFmax
A52: Arithmétique | D52: Aucun | F52: Pire des cas, bornes correctes si la cible est proche du maxi ou mini matière. | K52: =Tab_Maillons_AFC_217[[#Totals],[ITx|S|]] -> 9 | L52: =FIXED(Tab_Maillons_AFC_217[[#Totals],[Moy.]],3)&" ± "&FIXED($K$52/2,3) -> 5.200 ± 4.500 | N52: =Tab_Maillons_AFC_217[[#Totals],[Moy.]]-$K$52/2 -> 0.7 | O52: =Tab_Maillons_AFC_217[[#Totals],[Moy.]]+$K$52/2 -> 9.7
A53: Quadratique | D53: Aucun | F53: Cible = moyenne, aucun décentrage, ITi indépendants. | K53: =Tab_Maillons_AFC_217[[#Totals],[(ITxS)²]]^0.5 -> 5.244044241 | L53: =FIXED(Tab_Maillons_AFC_217[[#Totals],[Moy.]],3)&" ± "&FIXED($K$53/2,3) -> 5.200 ± 2.622 | N53: =Tab_Maillons_AFC_217[[#Totals],[Moy.]]-$K$53/2 -> 2.57797788 | O53: =Tab_Maillons_AFC_217[[#Totals],[Moy.]]+$K$53/2 -> 7.82202212
A54: Quadratique Décentré | D54: ± ITi / | E54: 8 | F54: Cible = moyenne avec décentrage possible, ppm ITQD = ppm ITi ; ITi indépendants. | K54: =IF(Decentrage_admis,2*(ABS(Tab_Maillons_AFC_217[[#Totals],[±δμ adm.]])+$K$53/2-$K$53/ABS(Decentrage_admis)),$K$53) -> 6.183033181 | L54: =FIXED(Tab_Maillons_AFC_217[[#Totals],[Moy.]],3)&" ± "&FIXED($K$54/2,3) -> 5.200 ± 3.092 | N54: =Tab_Maillons_AFC_217[[#Totals],[Moy.]]-$K$54/2 -> 2.10848341 | O54: =Tab_Maillons_AFC_217[[#Totals],[Moy.]]+$K$54/2 -> 8.29151659
A55: Probabiliste U à nσ | D55: n = | E55: 6 | F55: Loi uniforme, ITi identiques, ≥ 5 maillons, ITi indépendants, peut être > ITA. | K55: =$E$55/(2*3^0.5)*$K$53 -> 9.082951062 | L55: =FIXED(Tab_Maillons_AFC_217[[#Totals],[Moy.]],3)&" ± "&FIXED($K$55/2,3) -> 5.200 ± 4.541 | N55: =Tab_Maillons_AFC_217[[#Totals],[Moy.]]-$K$55/2 -> 0.6585244689 | O55: =Tab_Maillons_AFC_217[[#Totals],[Moy.]]+$K$55/2 -> 9.741475531
A56: Proba. Monte Carlo | C56: Loi uniforme 1 M de tirages | D56: PPM Cible | E56: 2700 | F56: Ignorance statistique pas de cible ; ITi indépendants. | K56: 7.799659789 | L56: =FIXED(Tab_Maillons_AFC_217[[#Totals],[Moy.]],3)&" ± "&FIXED($K$56/2,3) -> 5.200 ± 3.900 | N56: =Tab_Maillons_AFC_217[[#Totals],[Moy.]]-$K$56/2 -> 1.300170105 | O56: =Tab_Maillons_AFC_217[[#Totals],[Moy.]]+$K$56/2 -> 9.099829895
A57: Gain par rapport à : | C57: Arithmétique | D57: ITi | E57: =IF(MCU_IT_CF,$K$52/MCU_IT_CF-1,0) -> 0.1538964831 | F57: =1+E57 -> 1.153896483 | G57: Cond. Fonct. | I57: =IF($K$52,($K$52-MCU_IT_CF)/$K$52,0) -> 0.1333711345
A58: Commentaires :
A59: Optimisation possible avec : - Coefficient de gain pour le calcul Monte Carlo, - Valeur cible ou Solver pour les autres méthodes de calcul.

Sheet Ex2 AFC non linéaire Orient
C1: Chaînes de cotes (à partir d'Excel 2013) | G1: Aide | I1: N° | J1: Rév. | K1: Nom | N1: Date
C2: Projet : | D2: Formation | I2: 2 | J2: 1 | K2: JY JACOTIN | N2: 46183
A32: Fonction : | C32: Ex2 : Sensiblité orientation
A33: Calcul retenu | C33: Param. | D33: Exigence fonctionnelle CFmin | H33: CFmin | I33: Calcmin | J33: Exigence fonctionnelle CFmax | N33: CFmax | O33: Calcmax
A34: Proba. Monte Carlo | C34: =IFERROR(IF(INDEX(E52:E56,MATCH(A34,A52:A56,0))="","Aucun",INDEX(E52:E56,MATCH(A34,A52:A56,0))),"") -> 2700 | D34: Risque de contact | H34: 76 | I34: =IFERROR(INDEX(N52:N56,MATCH(A34,A52:A56,0)),"") -> 76.50982034 | J34: RAS | N34: 84 | O34: =IFERROR(INDEX(O52:O56,MATCH(A34,A52:A56,0)),"") -> 83.49017966
A36: Maillon | B36: Pièce | C36: Description cote | D36: Nom. | E36: Ajust. | F36: Tol min | G36: Tol max | H36: Sens | I36: Sensib. | J36: Moy. | K36: ITx|S| | L36: (ITxS)² | M36: ±δμ adm. | N36: C. Arith. | O36: C. Quad | P36: S. Orient | Q36: Déport | R36: Appui/2 | S36: S. CAO | T36: CF moy. | U36: Delta | V36: CF(delta)
A37: A1 | B37: A | C37: Hauteur | D37: 80 | F37: =-Tab_Maillons_AFC_3[[#This Row],[Tol max]] -> -2 | G37: 2 | H37: + | I37: =IF(Tab_Maillons_AFC_3[[#This Row],[Sens]]="+",1,IF(Tab_Maillons_AFC_3[[#This Row],[Sens]]="-",-1,IF(Tab_Maillons_AFC_3[[#This Row],[Sens]]="+½ cote",0.5,IF(Tab_Maillons_AFC_3[[#This Row],[Sens]]="-½ cote",-0.5,IF(Tab_Maillons_AFC_3[[#This Row],[Sens]]="S Orient",Tab_Maillons_AFC_3[[#This Row],[S. Orient]],IF(Tab_Maillons_AFC_3[[#This Row],[Sens]]="S CAO",ABS(Tab_Maillons_AFC_3[[#This Row],[S. CAO]]),IF(Tab_Maillons_AFC_3[[#This Row],[Sens]]="",0,"Erreur"))))))) -> 1 | J37: =IF(Tab_Maillons_AFC_3[[#This Row],[Sens]]<>"S CAO",(Tab_Maillons_AFC_3[[#This Row],[Nom.]]+(Tab_Maillons_AFC_3[[#This Row],[Tol min]]+Tab_Maillons_AFC_3[[#This Row],[Tol max]])/2)*Tab_Maillons_AFC_3[[#This Row],[Sensib.]],(Tab_Maillons_AFC_3[[#This Row],[Nom.]]+(Tab_Maillons_AFC_3[[#This Row],[Tol min]]+Tab_Maillons_AFC_3[[#This Row],[Tol max]])/2)) -> 80 | K37: =ABS(Tab_Maillons_AFC_3[[#This Row],[Tol max]]-Tab_Maillons_AFC_3[[#This Row],[Tol min]])*ABS(Tab_Maillons_AFC_3[[#This Row],[Sensib.]]) -> 4 | L37: =Tab_Maillons_AFC_3[[#This Row],[ITx|S|]]^2 -> 16 | M37: =IF(Decentrage_admis,Tab_Maillons_AFC_3[[#This Row],[ITx|S|]]/Decentrage_admis,0) -> 0.5 | N37: =IF(Tab_Maillons_AFC_3[[#Totals],[ITx|S|]],Tab_Maillons_AFC_3[[#This Row],[ITx|S|]]/Tab_Maillons_AFC_3[[#Totals],[ITx|S|]],0) -> 0.5 | O37: =IF(Tab_Maillons_AFC_3[[#Totals],[(ITxS)²]],Tab_Maillons_AFC_3[[#This Row],[(ITxS)²]]/Tab_Maillons_AFC_3[[#Totals],[(ITxS)²]],0) -> 0.6666666667 | P37: =IF(Tab_Maillons_AFC_3[[#This Row],[Appui/2]]<>0,Tab_Maillons_AFC_3[[#This Row],[Déport]]/Tab_Maillons_AFC_3[[#This Row],[Appui/2]],1) -> 1 | S37: =IF(Tab_Maillons_AFC_3[[#This Row],[Delta]]<>0,(Tab_Maillons_AFC_3[[#This Row],[CF(delta)]]-Tab_Maillons_AFC_3[[#This Row],[CF moy.]])/Tab_Maillons_AFC_3[[#This Row],[Delta]],1) -> 1 | T37: 0 | U37: 0 | V37: 0
A38: A2 | B38: A | C38: Parallélisme Haut | D38: 0 | F38: =-Tab_Maillons_AFC_3[[#This Row],[Tol max]] -> -0.5 | G38: 0.5 | H38: S Orient | I38: =IF(Tab_Maillons_AFC_3[[#This Row],[Sens]]="+",1,IF(Tab_Maillons_AFC_3[[#This Row],[Sens]]="-",-1,IF(Tab_Maillons_AFC_3[[#This Row],[Sens]]="+½ cote",0.5,IF(Tab_Maillons_AFC_3[[#This Row],[Sens]]="-½ cote",-0.5,IF(Tab_Maillons_AFC_3[[#This Row],[Sens]]="S Orient",Tab_Maillons_AFC_3[[#This Row],[S. Orient]],IF(Tab_Maillons_AFC_3[[#This Row],[Sens]]="S CAO",ABS(Tab_Maillons_AFC_3[[#This Row],[S. CAO]]),IF(Tab_Maillons_AFC_3[[#This Row],[Sens]]="",0,"Erreur"))))))) -> 2 | J38: =IF(Tab_Maillons_AFC_3[[#This Row],[Sens]]<>"S CAO",(Tab_Maillons_AFC_3[[#This Row],[Nom.]]+(Tab_Maillons_AFC_3[[#This Row],[Tol min]]+Tab_Maillons_AFC_3[[#This Row],[Tol max]])/2)*Tab_Maillons_AFC_3[[#This Row],[Sensib.]],(Tab_Maillons_AFC_3[[#This Row],[Nom.]]+(Tab_Maillons_AFC_3[[#This Row],[Tol min]]+Tab_Maillons_AFC_3[[#This Row],[Tol max]])/2)) -> 0 | K38: =ABS(Tab_Maillons_AFC_3[[#This Row],[Tol max]]-Tab_Maillons_AFC_3[[#This Row],[Tol min]])*ABS(Tab_Maillons_AFC_3[[#This Row],[Sensib.]]) -> 2 | L38: =Tab_Maillons_AFC_3[[#This Row],[ITx|S|]]^2 -> 4 | M38: =IF(Decentrage_admis,Tab_Maillons_AFC_3[[#This Row],[ITx|S|]]/Decentrage_admis,0) -> 0.25 | N38: =IF(Tab_Maillons_AFC_3[[#Totals],[ITx|S|]],Tab_Maillons_AFC_3[[#This Row],[ITx|S|]]/Tab_Maillons_AFC_3[[#Totals],[ITx|S|]],0) -> 0.25 | O38: =IF(Tab_Maillons_AFC_3[[#Totals],[(ITxS)²]],Tab_Maillons_AFC_3[[#This Row],[(ITxS)²]]/Tab_Maillons_AFC_3[[#Totals],[(ITxS)²]],0) -> 0.1666666667 | P38: =IF(Tab_Maillons_AFC_3[[#This Row],[Appui/2]]<>0,Tab_Maillons_AFC_3[[#This Row],[Déport]]/Tab_Maillons_AFC_3[[#This Row],[Appui/2]],1) -> 2 | Q38: 40 | R38: 20 | S38: =IF(Tab_Maillons_AFC_3[[#This Row],[Delta]]<>0,(Tab_Maillons_AFC_3[[#This Row],[CF(delta)]]-Tab_Maillons_AFC_3[[#This Row],[CF moy.]])/Tab_Maillons_AFC_3[[#This Row],[Delta]],1) -> 1 | T38: =IF(Tab_Maillons_AFC_3[[#This Row],[Maillon]]=Tab_Maillons_AFC_3[[#This Row],[Maillon]], INDEX(Tab_Maillons_AFC_3[CF moy.],1), "") -> 0
A39: B1 | B39: B | C39: Symétrie | D39: 0 | F39: =-Tab_Maillons_AFC_3[[#This Row],[Tol max]] -> -1 | G39: 1 | H39: + | I39: =IF(Tab_Maillons_AFC_3[[#This Row],[Sens]]="+",1,IF(Tab_Maillons_AFC_3[[#This Row],[Sens]]="-",-1,IF(Tab_Maillons_AFC_3[[#This Row],[Sens]]="+½ cote",0.5,IF(Tab_Maillons_AFC_3[[#This Row],[Sens]]="-½ cote",-0.5,IF(Tab_Maillons_AFC_3[[#This Row],[Sens]]="S Orient",Tab_Maillons_AFC_3[[#This Row],[S. Orient]],IF(Tab_Maillons_AFC_3[[#This Row],[Sens]]="S CAO",ABS(Tab_Maillons_AFC_3[[#This Row],[S. CAO]]),IF(Tab_Maillons_AFC_3[[#This Row],[Sens]]="",0,"Erreur"))))))) -> 1 | J39: =IF(Tab_Maillons_AFC_3[[#This Row],[Sens]]<>"S CAO",(Tab_Maillons_AFC_3[[#This Row],[Nom.]]+(Tab_Maillons_AFC_3[[#This Row],[Tol min]]+Tab_Maillons_AFC_3[[#This Row],[Tol max]])/2)*Tab_Maillons_AFC_3[[#This Row],[Sensib.]],(Tab_Maillons_AFC_3[[#This Row],[Nom.]]+(Tab_Maillons_AFC_3[[#This Row],[Tol min]]+Tab_Maillons_AFC_3[[#This Row],[Tol max]])/2)) -> 0 | K39: =ABS(Tab_Maillons_AFC_3[[#This Row],[Tol max]]-Tab_Maillons_AFC_3[[#This Row],[Tol min]])*ABS(Tab_Maillons_AFC_3[[#This Row],[Sensib.]]) -> 2 | L39: =Tab_Maillons_AFC_3[[#This Row],[ITx|S|]]^2 -> 4 | M39: =IF(Decentrage_admis,Tab_Maillons_AFC_3[[#This Row],[ITx|S|]]/Decentrage_admis,0) -> 0.25 | N39: =IF(Tab_Maillons_AFC_3[[#Totals],[ITx|S|]],Tab_Maillons_AFC_3[[#This Row],[ITx|S|]]/Tab_Maillons_AFC_3[[#Totals],[ITx|S|]],0) -> 0.25 | O39: =IF(Tab_Maillons_AFC_3[[#Totals],[(ITxS)²]],Tab_Maillons_AFC_3[[#This Row],[(ITxS)²]]/Tab_Maillons_AFC_3[[#Totals],[(ITxS)²]],0) -> 0.1666666667 | P39: =IF(Tab_Maillons_AFC_3[[#This Row],[Appui/2]]<>0,Tab_Maillons_AFC_3[[#This Row],[Déport]]/Tab_Maillons_AFC_3[[#This Row],[Appui/2]],1) -> 1 | S39: =IF(Tab_Maillons_AFC_3[[#This Row],[Delta]]<>0,(Tab_Maillons_AFC_3[[#This Row],[CF(delta)]]-Tab_Maillons_AFC_3[[#This Row],[CF moy.]])/Tab_Maillons_AFC_3[[#This Row],[Delta]],1) -> 1 | T39: =IF(Tab_Maillons_AFC_3[[#This Row],[Maillon]]=Tab_Maillons_AFC_3[[#This Row],[Maillon]], INDEX(Tab_Maillons_AFC_3[CF moy.],1), "") -> 0
I40: =IF(Tab_Maillons_AFC_3[[#This Row],[Sens]]="+",1,IF(Tab_Maillons_AFC_3[[#This Row],[Sens]]="-",-1,IF(Tab_Maillons_AFC_3[[#This Row],[Sens]]="+½ cote",0.5,IF(Tab_Maillons_AFC_3[[#This Row],[Sens]]="-½ cote",-0.5,IF(Tab_Maillons_AFC_3[[#This Row],[Sens]]="S Orient",Tab_Maillons_AFC_3[[#This Row],[S. Orient]],IF(Tab_Maillons_AFC_3[[#This Row],[Sens]]="S CAO",ABS(Tab_Maillons_AFC_3[[#This Row],[S. CAO]]),IF(Tab_Maillons_AFC_3[[#This Row],[Sens]]="",0,"Erreur"))))))) -> 0 | J40: =IF(Tab_Maillons_AFC_3[[#This Row],[Sens]]<>"S CAO",(Tab_Maillons_AFC_3[[#This Row],[Nom.]]+(Tab_Maillons_AFC_3[[#This Row],[Tol min]]+Tab_Maillons_AFC_3[[#This Row],[Tol max]])/2)*Tab_Maillons_AFC_3[[#This Row],[Sensib.]],(Tab_Maillons_AFC_3[[#This Row],[Nom.]]+(Tab_Maillons_AFC_3[[#This Row],[Tol min]]+Tab_Maillons_AFC_3[[#This Row],[Tol max]])/2)) -> 0 | K40: =ABS(Tab_Maillons_AFC_3[[#This Row],[Tol max]]-Tab_Maillons_AFC_3[[#This Row],[Tol min]])*ABS(Tab_Maillons_AFC_3[[#This Row],[Sensib.]]) -> 0 | L40: =Tab_Maillons_AFC_3[[#This Row],[ITx|S|]]^2 -> 0 | M40: =IF(Decentrage_admis,Tab_Maillons_AFC_3[[#This Row],[ITx|S|]]/Decentrage_admis,0) -> 0 | N40: =IF(Tab_Maillons_AFC_3[[#Totals],[ITx|S|]],Tab_Maillons_AFC_3[[#This Row],[ITx|S|]]/Tab_Maillons_AFC_3[[#Totals],[ITx|S|]],0) -> 0 | O40: =IF(Tab_Maillons_AFC_3[[#Totals],[(ITxS)²]],Tab_Maillons_AFC_3[[#This Row],[(ITxS)²]]/Tab_Maillons_AFC_3[[#Totals],[(ITxS)²]],0) -> 0 | P40: =IF(Tab_Maillons_AFC_3[[#This Row],[Appui/2]]<>0,Tab_Maillons_AFC_3[[#This Row],[Déport]]/Tab_Maillons_AFC_3[[#This Row],[Appui/2]],1) -> 1 | S40: =IF(Tab_Maillons_AFC_3[[#This Row],[Delta]]<>0,(Tab_Maillons_AFC_3[[#This Row],[CF(delta)]]-Tab_Maillons_AFC_3[[#This Row],[CF moy.]])/Tab_Maillons_AFC_3[[#This Row],[Delta]],1) -> 1 | T40: =IF(Tab_Maillons_AFC_3[[#This Row],[Maillon]]=Tab_Maillons_AFC_3[[#This Row],[Maillon]], INDEX(Tab_Maillons_AFC_3[CF moy.],1), "") -> 0
I41: =IF(Tab_Maillons_AFC_3[[#This Row],[Sens]]="+",1,IF(Tab_Maillons_AFC_3[[#This Row],[Sens]]="-",-1,IF(Tab_Maillons_AFC_3[[#This Row],[Sens]]="+½ cote",0.5,IF(Tab_Maillons_AFC_3[[#This Row],[Sens]]="-½ cote",-0.5,IF(Tab_Maillons_AFC_3[[#This Row],[Sens]]="S Orient",Tab_Maillons_AFC_3[[#This Row],[S. Orient]],IF(Tab_Maillons_AFC_3[[#This Row],[Sens]]="S CAO",ABS(Tab_Maillons_AFC_3[[#This Row],[S. CAO]]),IF(Tab_Maillons_AFC_3[[#This Row],[Sens]]="",0,"Erreur"))))))) -> 0 | J41: =IF(Tab_Maillons_AFC_3[[#This Row],[Sens]]<>"S CAO",(Tab_Maillons_AFC_3[[#This Row],[Nom.]]+(Tab_Maillons_AFC_3[[#This Row],[Tol min]]+Tab_Maillons_AFC_3[[#This Row],[Tol max]])/2)*Tab_Maillons_AFC_3[[#This Row],[Sensib.]],(Tab_Maillons_AFC_3[[#This Row],[Nom.]]+(Tab_Maillons_AFC_3[[#This Row],[Tol min]]+Tab_Maillons_AFC_3[[#This Row],[Tol max]])/2)) -> 0 | K41: =ABS(Tab_Maillons_AFC_3[[#This Row],[Tol max]]-Tab_Maillons_AFC_3[[#This Row],[Tol min]])*ABS(Tab_Maillons_AFC_3[[#This Row],[Sensib.]]) -> 0 | L41: =Tab_Maillons_AFC_3[[#This Row],[ITx|S|]]^2 -> 0 | M41: =IF(Decentrage_admis,Tab_Maillons_AFC_3[[#This Row],[ITx|S|]]/Decentrage_admis,0) -> 0 | N41: =IF(Tab_Maillons_AFC_3[[#Totals],[ITx|S|]],Tab_Maillons_AFC_3[[#This Row],[ITx|S|]]/Tab_Maillons_AFC_3[[#Totals],[ITx|S|]],0) -> 0 | O41: =IF(Tab_Maillons_AFC_3[[#Totals],[(ITxS)²]],Tab_Maillons_AFC_3[[#This Row],[(ITxS)²]]/Tab_Maillons_AFC_3[[#Totals],[(ITxS)²]],0) -> 0 | P41: =IF(Tab_Maillons_AFC_3[[#This Row],[Appui/2]]<>0,Tab_Maillons_AFC_3[[#This Row],[Déport]]/Tab_Maillons_AFC_3[[#This Row],[Appui/2]],1) -> 1 | S41: =IF(Tab_Maillons_AFC_3[[#This Row],[Delta]]<>0,(Tab_Maillons_AFC_3[[#This Row],[CF(delta)]]-Tab_Maillons_AFC_3[[#This Row],[CF moy.]])/Tab_Maillons_AFC_3[[#This Row],[Delta]],1) -> 1 | T41: =IF(Tab_Maillons_AFC_3[[#This Row],[Maillon]]=Tab_Maillons_AFC_3[[#This Row],[Maillon]], INDEX(Tab_Maillons_AFC_3[CF moy.],1), "") -> 0
I42: =IF(Tab_Maillons_AFC_3[[#This Row],[Sens]]="+",1,IF(Tab_Maillons_AFC_3[[#This Row],[Sens]]="-",-1,IF(Tab_Maillons_AFC_3[[#This Row],[Sens]]="+½ cote",0.5,IF(Tab_Maillons_AFC_3[[#This Row],[Sens]]="-½ cote",-0.5,IF(Tab_Maillons_AFC_3[[#This Row],[Sens]]="S Orient",Tab_Maillons_AFC_3[[#This Row],[S. Orient]],IF(Tab_Maillons_AFC_3[[#This Row],[Sens]]="S CAO",ABS(Tab_Maillons_AFC_3[[#This Row],[S. CAO]]),IF(Tab_Maillons_AFC_3[[#This Row],[Sens]]="",0,"Erreur"))))))) -> 0 | J42: =IF(Tab_Maillons_AFC_3[[#This Row],[Sens]]<>"S CAO",(Tab_Maillons_AFC_3[[#This Row],[Nom.]]+(Tab_Maillons_AFC_3[[#This Row],[Tol min]]+Tab_Maillons_AFC_3[[#This Row],[Tol max]])/2)*Tab_Maillons_AFC_3[[#This Row],[Sensib.]],(Tab_Maillons_AFC_3[[#This Row],[Nom.]]+(Tab_Maillons_AFC_3[[#This Row],[Tol min]]+Tab_Maillons_AFC_3[[#This Row],[Tol max]])/2)) -> 0 | K42: =ABS(Tab_Maillons_AFC_3[[#This Row],[Tol max]]-Tab_Maillons_AFC_3[[#This Row],[Tol min]])*ABS(Tab_Maillons_AFC_3[[#This Row],[Sensib.]]) -> 0 | L42: =Tab_Maillons_AFC_3[[#This Row],[ITx|S|]]^2 -> 0 | M42: =IF(Decentrage_admis,Tab_Maillons_AFC_3[[#This Row],[ITx|S|]]/Decentrage_admis,0) -> 0 | N42: =IF(Tab_Maillons_AFC_3[[#Totals],[ITx|S|]],Tab_Maillons_AFC_3[[#This Row],[ITx|S|]]/Tab_Maillons_AFC_3[[#Totals],[ITx|S|]],0) -> 0 | O42: =IF(Tab_Maillons_AFC_3[[#Totals],[(ITxS)²]],Tab_Maillons_AFC_3[[#This Row],[(ITxS)²]]/Tab_Maillons_AFC_3[[#Totals],[(ITxS)²]],0) -> 0 | P42: =IF(Tab_Maillons_AFC_3[[#This Row],[Appui/2]]<>0,Tab_Maillons_AFC_3[[#This Row],[Déport]]/Tab_Maillons_AFC_3[[#This Row],[Appui/2]],1) -> 1 | S42: =IF(Tab_Maillons_AFC_3[[#This Row],[Delta]]<>0,(Tab_Maillons_AFC_3[[#This Row],[CF(delta)]]-Tab_Maillons_AFC_3[[#This Row],[CF moy.]])/Tab_Maillons_AFC_3[[#This Row],[Delta]],1) -> 1 | T42: =IF(Tab_Maillons_AFC_3[[#This Row],[Maillon]]=Tab_Maillons_AFC_3[[#This Row],[Maillon]], INDEX(Tab_Maillons_AFC_3[CF moy.],1), "") -> 0
I43: =IF(Tab_Maillons_AFC_3[[#This Row],[Sens]]="+",1,IF(Tab_Maillons_AFC_3[[#This Row],[Sens]]="-",-1,IF(Tab_Maillons_AFC_3[[#This Row],[Sens]]="+½ cote",0.5,IF(Tab_Maillons_AFC_3[[#This Row],[Sens]]="-½ cote",-0.5,IF(Tab_Maillons_AFC_3[[#This Row],[Sens]]="S Orient",Tab_Maillons_AFC_3[[#This Row],[S. Orient]],IF(Tab_Maillons_AFC_3[[#This Row],[Sens]]="S CAO",ABS(Tab_Maillons_AFC_3[[#This Row],[S. CAO]]),IF(Tab_Maillons_AFC_3[[#This Row],[Sens]]="",0,"Erreur"))))))) -> 0 | J43: =IF(Tab_Maillons_AFC_3[[#This Row],[Sens]]<>"S CAO",(Tab_Maillons_AFC_3[[#This Row],[Nom.]]+(Tab_Maillons_AFC_3[[#This Row],[Tol min]]+Tab_Maillons_AFC_3[[#This Row],[Tol max]])/2)*Tab_Maillons_AFC_3[[#This Row],[Sensib.]],(Tab_Maillons_AFC_3[[#This Row],[Nom.]]+(Tab_Maillons_AFC_3[[#This Row],[Tol min]]+Tab_Maillons_AFC_3[[#This Row],[Tol max]])/2)) -> 0 | K43: =ABS(Tab_Maillons_AFC_3[[#This Row],[Tol max]]-Tab_Maillons_AFC_3[[#This Row],[Tol min]])*ABS(Tab_Maillons_AFC_3[[#This Row],[Sensib.]]) -> 0 | L43: =Tab_Maillons_AFC_3[[#This Row],[ITx|S|]]^2 -> 0 | M43: =IF(Decentrage_admis,Tab_Maillons_AFC_3[[#This Row],[ITx|S|]]/Decentrage_admis,0) -> 0 | N43: =IF(Tab_Maillons_AFC_3[[#Totals],[ITx|S|]],Tab_Maillons_AFC_3[[#This Row],[ITx|S|]]/Tab_Maillons_AFC_3[[#Totals],[ITx|S|]],0) -> 0 | O43: =IF(Tab_Maillons_AFC_3[[#Totals],[(ITxS)²]],Tab_Maillons_AFC_3[[#This Row],[(ITxS)²]]/Tab_Maillons_AFC_3[[#Totals],[(ITxS)²]],0) -> 0 | P43: =IF(Tab_Maillons_AFC_3[[#This Row],[Appui/2]]<>0,Tab_Maillons_AFC_3[[#This Row],[Déport]]/Tab_Maillons_AFC_3[[#This Row],[Appui/2]],1) -> 1 | S43: =IF(Tab_Maillons_AFC_3[[#This Row],[Delta]]<>0,(Tab_Maillons_AFC_3[[#This Row],[CF(delta)]]-Tab_Maillons_AFC_3[[#This Row],[CF moy.]])/Tab_Maillons_AFC_3[[#This Row],[Delta]],1) -> 1 | T43: =IF(Tab_Maillons_AFC_3[[#This Row],[Maillon]]=Tab_Maillons_AFC_3[[#This Row],[Maillon]], INDEX(Tab_Maillons_AFC_3[CF moy.],1), "") -> 0
I44: =IF(Tab_Maillons_AFC_3[[#This Row],[Sens]]="+",1,IF(Tab_Maillons_AFC_3[[#This Row],[Sens]]="-",-1,IF(Tab_Maillons_AFC_3[[#This Row],[Sens]]="+½ cote",0.5,IF(Tab_Maillons_AFC_3[[#This Row],[Sens]]="-½ cote",-0.5,IF(Tab_Maillons_AFC_3[[#This Row],[Sens]]="S Orient",Tab_Maillons_AFC_3[[#This Row],[S. Orient]],IF(Tab_Maillons_AFC_3[[#This Row],[Sens]]="S CAO",ABS(Tab_Maillons_AFC_3[[#This Row],[S. CAO]]),IF(Tab_Maillons_AFC_3[[#This Row],[Sens]]="",0,"Erreur"))))))) -> 0 | J44: =IF(Tab_Maillons_AFC_3[[#This Row],[Sens]]<>"S CAO",(Tab_Maillons_AFC_3[[#This Row],[Nom.]]+(Tab_Maillons_AFC_3[[#This Row],[Tol min]]+Tab_Maillons_AFC_3[[#This Row],[Tol max]])/2)*Tab_Maillons_AFC_3[[#This Row],[Sensib.]],(Tab_Maillons_AFC_3[[#This Row],[Nom.]]+(Tab_Maillons_AFC_3[[#This Row],[Tol min]]+Tab_Maillons_AFC_3[[#This Row],[Tol max]])/2)) -> 0 | K44: =ABS(Tab_Maillons_AFC_3[[#This Row],[Tol max]]-Tab_Maillons_AFC_3[[#This Row],[Tol min]])*ABS(Tab_Maillons_AFC_3[[#This Row],[Sensib.]]) -> 0 | L44: =Tab_Maillons_AFC_3[[#This Row],[ITx|S|]]^2 -> 0 | M44: =IF(Decentrage_admis,Tab_Maillons_AFC_3[[#This Row],[ITx|S|]]/Decentrage_admis,0) -> 0 | N44: =IF(Tab_Maillons_AFC_3[[#Totals],[ITx|S|]],Tab_Maillons_AFC_3[[#This Row],[ITx|S|]]/Tab_Maillons_AFC_3[[#Totals],[ITx|S|]],0) -> 0 | O44: =IF(Tab_Maillons_AFC_3[[#Totals],[(ITxS)²]],Tab_Maillons_AFC_3[[#This Row],[(ITxS)²]]/Tab_Maillons_AFC_3[[#Totals],[(ITxS)²]],0) -> 0 | P44: =IF(Tab_Maillons_AFC_3[[#This Row],[Appui/2]]<>0,Tab_Maillons_AFC_3[[#This Row],[Déport]]/Tab_Maillons_AFC_3[[#This Row],[Appui/2]],1) -> 1 | S44: =IF(Tab_Maillons_AFC_3[[#This Row],[Delta]]<>0,(Tab_Maillons_AFC_3[[#This Row],[CF(delta)]]-Tab_Maillons_AFC_3[[#This Row],[CF moy.]])/Tab_Maillons_AFC_3[[#This Row],[Delta]],1) -> 1 | T44: =IF(Tab_Maillons_AFC_3[[#This Row],[Maillon]]=Tab_Maillons_AFC_3[[#This Row],[Maillon]], INDEX(Tab_Maillons_AFC_3[CF moy.],1), "") -> 0
I45: =IF(Tab_Maillons_AFC_3[[#This Row],[Sens]]="+",1,IF(Tab_Maillons_AFC_3[[#This Row],[Sens]]="-",-1,IF(Tab_Maillons_AFC_3[[#This Row],[Sens]]="+½ cote",0.5,IF(Tab_Maillons_AFC_3[[#This Row],[Sens]]="-½ cote",-0.5,IF(Tab_Maillons_AFC_3[[#This Row],[Sens]]="S Orient",Tab_Maillons_AFC_3[[#This Row],[S. Orient]],IF(Tab_Maillons_AFC_3[[#This Row],[Sens]]="S CAO",ABS(Tab_Maillons_AFC_3[[#This Row],[S. CAO]]),IF(Tab_Maillons_AFC_3[[#This Row],[Sens]]="",0,"Erreur"))))))) -> 0 | J45: =IF(Tab_Maillons_AFC_3[[#This Row],[Sens]]<>"S CAO",(Tab_Maillons_AFC_3[[#This Row],[Nom.]]+(Tab_Maillons_AFC_3[[#This Row],[Tol min]]+Tab_Maillons_AFC_3[[#This Row],[Tol max]])/2)*Tab_Maillons_AFC_3[[#This Row],[Sensib.]],(Tab_Maillons_AFC_3[[#This Row],[Nom.]]+(Tab_Maillons_AFC_3[[#This Row],[Tol min]]+Tab_Maillons_AFC_3[[#This Row],[Tol max]])/2)) -> 0 | K45: =ABS(Tab_Maillons_AFC_3[[#This Row],[Tol max]]-Tab_Maillons_AFC_3[[#This Row],[Tol min]])*ABS(Tab_Maillons_AFC_3[[#This Row],[Sensib.]]) -> 0 | L45: =Tab_Maillons_AFC_3[[#This Row],[ITx|S|]]^2 -> 0 | M45: =IF(Decentrage_admis,Tab_Maillons_AFC_3[[#This Row],[ITx|S|]]/Decentrage_admis,0) -> 0 | N45: =IF(Tab_Maillons_AFC_3[[#Totals],[ITx|S|]],Tab_Maillons_AFC_3[[#This Row],[ITx|S|]]/Tab_Maillons_AFC_3[[#Totals],[ITx|S|]],0) -> 0 | O45: =IF(Tab_Maillons_AFC_3[[#Totals],[(ITxS)²]],Tab_Maillons_AFC_3[[#This Row],[(ITxS)²]]/Tab_Maillons_AFC_3[[#Totals],[(ITxS)²]],0) -> 0 | P45: =IF(Tab_Maillons_AFC_3[[#This Row],[Appui/2]]<>0,Tab_Maillons_AFC_3[[#This Row],[Déport]]/Tab_Maillons_AFC_3[[#This Row],[Appui/2]],1) -> 1 | S45: =IF(Tab_Maillons_AFC_3[[#This Row],[Delta]]<>0,(Tab_Maillons_AFC_3[[#This Row],[CF(delta)]]-Tab_Maillons_AFC_3[[#This Row],[CF moy.]])/Tab_Maillons_AFC_3[[#This Row],[Delta]],1) -> 1 | T45: =IF(Tab_Maillons_AFC_3[[#This Row],[Maillon]]=Tab_Maillons_AFC_3[[#This Row],[Maillon]], INDEX(Tab_Maillons_AFC_3[CF moy.],1), "") -> 0
I46: =IF(Tab_Maillons_AFC_3[[#This Row],[Sens]]="+",1,IF(Tab_Maillons_AFC_3[[#This Row],[Sens]]="-",-1,IF(Tab_Maillons_AFC_3[[#This Row],[Sens]]="+½ cote",0.5,IF(Tab_Maillons_AFC_3[[#This Row],[Sens]]="-½ cote",-0.5,IF(Tab_Maillons_AFC_3[[#This Row],[Sens]]="S Orient",Tab_Maillons_AFC_3[[#This Row],[S. Orient]],IF(Tab_Maillons_AFC_3[[#This Row],[Sens]]="S CAO",ABS(Tab_Maillons_AFC_3[[#This Row],[S. CAO]]),IF(Tab_Maillons_AFC_3[[#This Row],[Sens]]="",0,"Erreur"))))))) -> 0 | J46: =IF(Tab_Maillons_AFC_3[[#This Row],[Sens]]<>"S CAO",(Tab_Maillons_AFC_3[[#This Row],[Nom.]]+(Tab_Maillons_AFC_3[[#This Row],[Tol min]]+Tab_Maillons_AFC_3[[#This Row],[Tol max]])/2)*Tab_Maillons_AFC_3[[#This Row],[Sensib.]],(Tab_Maillons_AFC_3[[#This Row],[Nom.]]+(Tab_Maillons_AFC_3[[#This Row],[Tol min]]+Tab_Maillons_AFC_3[[#This Row],[Tol max]])/2)) -> 0 | K46: =ABS(Tab_Maillons_AFC_3[[#This Row],[Tol max]]-Tab_Maillons_AFC_3[[#This Row],[Tol min]])*ABS(Tab_Maillons_AFC_3[[#This Row],[Sensib.]]) -> 0 | L46: =Tab_Maillons_AFC_3[[#This Row],[ITx|S|]]^2 -> 0 | M46: =IF(Decentrage_admis,Tab_Maillons_AFC_3[[#This Row],[ITx|S|]]/Decentrage_admis,0) -> 0 | N46: =IF(Tab_Maillons_AFC_3[[#Totals],[ITx|S|]],Tab_Maillons_AFC_3[[#This Row],[ITx|S|]]/Tab_Maillons_AFC_3[[#Totals],[ITx|S|]],0) -> 0 | O46: =IF(Tab_Maillons_AFC_3[[#Totals],[(ITxS)²]],Tab_Maillons_AFC_3[[#This Row],[(ITxS)²]]/Tab_Maillons_AFC_3[[#Totals],[(ITxS)²]],0) -> 0 | P46: =IF(Tab_Maillons_AFC_3[[#This Row],[Appui/2]]<>0,Tab_Maillons_AFC_3[[#This Row],[Déport]]/Tab_Maillons_AFC_3[[#This Row],[Appui/2]],1) -> 1 | S46: =IF(Tab_Maillons_AFC_3[[#This Row],[Delta]]<>0,(Tab_Maillons_AFC_3[[#This Row],[CF(delta)]]-Tab_Maillons_AFC_3[[#This Row],[CF moy.]])/Tab_Maillons_AFC_3[[#This Row],[Delta]],1) -> 1 | T46: =IF(Tab_Maillons_AFC_3[[#This Row],[Maillon]]=Tab_Maillons_AFC_3[[#This Row],[Maillon]], INDEX(Tab_Maillons_AFC_3[CF moy.],1), "") -> 0
I47: =IF(Tab_Maillons_AFC_3[[#This Row],[Sens]]="+",1,IF(Tab_Maillons_AFC_3[[#This Row],[Sens]]="-",-1,IF(Tab_Maillons_AFC_3[[#This Row],[Sens]]="+½ cote",0.5,IF(Tab_Maillons_AFC_3[[#This Row],[Sens]]="-½ cote",-0.5,IF(Tab_Maillons_AFC_3[[#This Row],[Sens]]="S Orient",Tab_Maillons_AFC_3[[#This Row],[S. Orient]],IF(Tab_Maillons_AFC_3[[#This Row],[Sens]]="S CAO",ABS(Tab_Maillons_AFC_3[[#This Row],[S. CAO]]),IF(Tab_Maillons_AFC_3[[#This Row],[Sens]]="",0,"Erreur"))))))) -> 0 | J47: =IF(Tab_Maillons_AFC_3[[#This Row],[Sens]]<>"S CAO",(Tab_Maillons_AFC_3[[#This Row],[Nom.]]+(Tab_Maillons_AFC_3[[#This Row],[Tol min]]+Tab_Maillons_AFC_3[[#This Row],[Tol max]])/2)*Tab_Maillons_AFC_3[[#This Row],[Sensib.]],(Tab_Maillons_AFC_3[[#This Row],[Nom.]]+(Tab_Maillons_AFC_3[[#This Row],[Tol min]]+Tab_Maillons_AFC_3[[#This Row],[Tol max]])/2)) -> 0 | K47: =ABS(Tab_Maillons_AFC_3[[#This Row],[Tol max]]-Tab_Maillons_AFC_3[[#This Row],[Tol min]])*ABS(Tab_Maillons_AFC_3[[#This Row],[Sensib.]]) -> 0 | L47: =Tab_Maillons_AFC_3[[#This Row],[ITx|S|]]^2 -> 0 | M47: =IF(Decentrage_admis,Tab_Maillons_AFC_3[[#This Row],[ITx|S|]]/Decentrage_admis,0) -> 0 | N47: =IF(Tab_Maillons_AFC_3[[#Totals],[ITx|S|]],Tab_Maillons_AFC_3[[#This Row],[ITx|S|]]/Tab_Maillons_AFC_3[[#Totals],[ITx|S|]],0) -> 0 | O47: =IF(Tab_Maillons_AFC_3[[#Totals],[(ITxS)²]],Tab_Maillons_AFC_3[[#This Row],[(ITxS)²]]/Tab_Maillons_AFC_3[[#Totals],[(ITxS)²]],0) -> 0 | P47: =IF(Tab_Maillons_AFC_3[[#This Row],[Appui/2]]<>0,Tab_Maillons_AFC_3[[#This Row],[Déport]]/Tab_Maillons_AFC_3[[#This Row],[Appui/2]],1) -> 1 | S47: =IF(Tab_Maillons_AFC_3[[#This Row],[Delta]]<>0,(Tab_Maillons_AFC_3[[#This Row],[CF(delta)]]-Tab_Maillons_AFC_3[[#This Row],[CF moy.]])/Tab_Maillons_AFC_3[[#This Row],[Delta]],1) -> 1 | T47: =IF(Tab_Maillons_AFC_3[[#This Row],[Maillon]]=Tab_Maillons_AFC_3[[#This Row],[Maillon]], INDEX(Tab_Maillons_AFC_3[CF moy.],1), "") -> 0
I48: =IF(Tab_Maillons_AFC_3[[#This Row],[Sens]]="+",1,IF(Tab_Maillons_AFC_3[[#This Row],[Sens]]="-",-1,IF(Tab_Maillons_AFC_3[[#This Row],[Sens]]="+½ cote",0.5,IF(Tab_Maillons_AFC_3[[#This Row],[Sens]]="-½ cote",-0.5,IF(Tab_Maillons_AFC_3[[#This Row],[Sens]]="S Orient",Tab_Maillons_AFC_3[[#This Row],[S. Orient]],IF(Tab_Maillons_AFC_3[[#This Row],[Sens]]="S CAO",ABS(Tab_Maillons_AFC_3[[#This Row],[S. CAO]]),IF(Tab_Maillons_AFC_3[[#This Row],[Sens]]="",0,"Erreur"))))))) -> 0 | J48: =IF(Tab_Maillons_AFC_3[[#This Row],[Sens]]<>"S CAO",(Tab_Maillons_AFC_3[[#This Row],[Nom.]]+(Tab_Maillons_AFC_3[[#This Row],[Tol min]]+Tab_Maillons_AFC_3[[#This Row],[Tol max]])/2)*Tab_Maillons_AFC_3[[#This Row],[Sensib.]],(Tab_Maillons_AFC_3[[#This Row],[Nom.]]+(Tab_Maillons_AFC_3[[#This Row],[Tol min]]+Tab_Maillons_AFC_3[[#This Row],[Tol max]])/2)) -> 0 | K48: =ABS(Tab_Maillons_AFC_3[[#This Row],[Tol max]]-Tab_Maillons_AFC_3[[#This Row],[Tol min]])*ABS(Tab_Maillons_AFC_3[[#This Row],[Sensib.]]) -> 0 | L48: =Tab_Maillons_AFC_3[[#This Row],[ITx|S|]]^2 -> 0 | M48: =IF(Decentrage_admis,Tab_Maillons_AFC_3[[#This Row],[ITx|S|]]/Decentrage_admis,0) -> 0 | N48: =IF(Tab_Maillons_AFC_3[[#Totals],[ITx|S|]],Tab_Maillons_AFC_3[[#This Row],[ITx|S|]]/Tab_Maillons_AFC_3[[#Totals],[ITx|S|]],0) -> 0 | O48: =IF(Tab_Maillons_AFC_3[[#Totals],[(ITxS)²]],Tab_Maillons_AFC_3[[#This Row],[(ITxS)²]]/Tab_Maillons_AFC_3[[#Totals],[(ITxS)²]],0) -> 0 | P48: =IF(Tab_Maillons_AFC_3[[#This Row],[Appui/2]]<>0,Tab_Maillons_AFC_3[[#This Row],[Déport]]/Tab_Maillons_AFC_3[[#This Row],[Appui/2]],1) -> 1 | S48: =IF(Tab_Maillons_AFC_3[[#This Row],[Delta]]<>0,(Tab_Maillons_AFC_3[[#This Row],[CF(delta)]]-Tab_Maillons_AFC_3[[#This Row],[CF moy.]])/Tab_Maillons_AFC_3[[#This Row],[Delta]],1) -> 1 | T48: =IF(Tab_Maillons_AFC_3[[#This Row],[Maillon]]=Tab_Maillons_AFC_3[[#This Row],[Maillon]], INDEX(Tab_Maillons_AFC_3[CF moy.],1), "") -> 0
A49: Total | J49: =IF(COUNTIF(Tab_Maillons_AFC_3[Sens],"S CAO"),INDEX(Tab_Maillons_AFC_3[CF moy.],1),SUM(Tab_Maillons_AFC_3[Moy.])) -> 80 | K49: =SUM(Tab_Maillons_AFC_3[ITx|S|]) -> 8 | L49: =SUM(Tab_Maillons_AFC_3[(ITxS)²]) -> 24 | M49: =SUM(Tab_Maillons_AFC_3[±δμ adm.]) -> 1 | N49: =SUM(Tab_Maillons_AFC_3[C. Arith.]) -> 1 | O49: =SUM(Tab_Maillons_AFC_3[C. Quad]) -> 1
A51: Type de calculs | C51: Formule | D51: Paramètre | F51: Conditions d'application | K51: IT CF | L51: CF résultante | N51: CFmin | O51: CFmax
A52: Arithmétique | D52: Aucun | F52: Pire des cas, bornes correctes si la cible est proche du maxi ou mini matière. | K52: =Tab_Maillons_AFC_3[[#Totals],[ITx|S|]] -> 8 | L52: =FIXED(Tab_Maillons_AFC_3[[#Totals],[Moy.]],3)&" ± "&FIXED($K$52/2,3) -> 80.000 ± 4.000 | N52: =Tab_Maillons_AFC_3[[#Totals],[Moy.]]-$K$52/2 -> 76 | O52: =Tab_Maillons_AFC_3[[#Totals],[Moy.]]+$K$52/2 -> 84
A53: Quadratique | D53: Aucun | F53: Cible = moyenne, aucun décentrage, ITi indépendants. | K53: =Tab_Maillons_AFC_3[[#Totals],[(ITxS)²]]^0.5 -> 4.898979486 | L53: =FIXED(Tab_Maillons_AFC_3[[#Totals],[Moy.]],3)&" ± "&FIXED($K$53/2,3) -> 80.000 ± 2.449 | N53: =Tab_Maillons_AFC_3[[#Totals],[Moy.]]-$K$53/2 -> 77.55051026 | O53: =Tab_Maillons_AFC_3[[#Totals],[Moy.]]+$K$53/2 -> 82.44948974
A54: Quadratique Décentré | D54: ± ITi / | E54: 8 | F54: Cible = moyenne avec décentrage possible, ppm ITQD = ppm ITi ; ITi indépendants. | K54: =IF(Decentrage_admis,2*(ABS(Tab_Maillons_AFC_3[[#Totals],[±δμ adm.]])+$K$53/2-$K$53/ABS(Decentrage_admis)),$K$53) -> 5.674234614 | L54: =FIXED(Tab_Maillons_AFC_3[[#Totals],[Moy.]],3)&" ± "&FIXED($K$54/2,3) -> 80.000 ± 2.837 | N54: =Tab_Maillons_AFC_3[[#Totals],[Moy.]]-$K$54/2 -> 77.16288269 | O54: =Tab_Maillons_AFC_3[[#Totals],[Moy.]]+$K$54/2 -> 82.83711731
A55: Probabiliste U à nσ | D55: n = | E55: 6 | F55: Loi uniforme, ITi identiques, ≥ 5 maillons, ITi indépendants, peut être > ITA. | K55: =$E$55/(2*3^0.5)*$K$53 -> 8.485281374 | L55: =FIXED(Tab_Maillons_AFC_3[[#Totals],[Moy.]],3)&" ± "&FIXED($K$55/2,3) -> 80.000 ± 4.243 | N55: =Tab_Maillons_AFC_3[[#Totals],[Moy.]]-$K$55/2 -> 75.75735931 | O55: =Tab_Maillons_AFC_3[[#Totals],[Moy.]]+$K$55/2 -> 84.24264069
A56: Proba. Monte Carlo | C56: Loi uniforme 1 M de tirages | D56: PPM Cible | E56: 2700 | F56: Ignorance statistique pas de cible ; ITi indépendants. | K56: 6.980359317 | L56: =FIXED(Tab_Maillons_AFC_3[[#Totals],[Moy.]],3)&" ± "&FIXED($K$56/2,3) -> 80.000 ± 3.490 | N56: =Tab_Maillons_AFC_3[[#Totals],[Moy.]]-$K$56/2 -> 76.50982034 | O56: =Tab_Maillons_AFC_3[[#Totals],[Moy.]]+$K$56/2 -> 83.49017966
A57: Gain par rapport à : | C57: Arithmétique | D57: ITi | E57: =IF(MCU_IT_CF,$K$52/MCU_IT_CF-1,0) -> 0.1460728076 | F57: =1+E57 -> 1.146072808 | G57: Cond. Fonct. | I57: =IF($K$52,($K$52-MCU_IT_CF)/$K$52,0) -> 0.1274550854
A58: Commentaires :
A59: Optimisation possible avec : - Coefficient de gain pour le calcul Monte Carlo, - Valeur cible ou Solver pour les autres méthodes de calcul.

Sheet Ex3 AFC non linéaire CAO
C1: Chaînes de cotes (à partir d'Excel 2013) | G1: Aide | I1: N° | J1: Rév. | K1: Nom | N1: Date
C2: Projet : | D2: Formation | I2: 3 | J2: 1 | K2: JY JACOTIN | N2: 46183
A32: Fonction : | C32: Ex3 : Sensibilité CAO
A33: Calcul retenu | C33: Param. | D33: Exigence fonctionnelle CFmin | H33: CFmin | I33: Calcmin | J33: Exigence fonctionnelle CFmax | N33: CFmax | O33: Calcmax
A34: Proba. Monte Carlo | C34: =IFERROR(IF(INDEX(E52:E56,MATCH(A34,A52:A56,0))="","Aucun",INDEX(E52:E56,MATCH(A34,A52:A56,0))),"") -> 2700 | D34: Précision de tir | H34: 194 | I34: =IFERROR(INDEX(N52:N56,MATCH(A34,A52:A56,0)),"") -> 195.9384673 | J34: Précision de tir | N34: 225 | O34: =IFERROR(INDEX(O52:O56,MATCH(A34,A52:A56,0)),"") -> 222.3435947
A36: Maillon | B36: Pièce | C36: Description cote | D36: Nom. | E36: Ajust. | F36: Tol min | G36: Tol max | H36: Sens | I36: Sensib. | J36: Moy. | K36: ITx|S| | L36: (ITxS)² | M36: ±δμ adm. | N36: C. Arith. | O36: C. Quad | P36: S. Orient | Q36: Déport | R36: Appui/2 | S36: S. CAO | T36: CF moy. | U36: Delta | V36: CF(delta)
A37: V1 | B37: Vérin | C37: Longueur | D37: 120 | F37: =-Tab_Maillons_AFC_219[[#This Row],[Tol max]] -> -1 | G37: 1 | H37: S CAO | I37: =IF(Tab_Maillons_AFC_219[[#This Row],[Sens]]="+",1,IF(Tab_Maillons_AFC_219[[#This Row],[Sens]]="-",-1,IF(Tab_Maillons_AFC_219[[#This Row],[Sens]]="+½ cote",0.5,IF(Tab_Maillons_AFC_219[[#This Row],[Sens]]="-½ cote",-0.5,IF(Tab_Maillons_AFC_219[[#This Row],[Sens]]="S Orient",Tab_Maillons_AFC_219[[#This Row],[S. Orient]],IF(Tab_Maillons_AFC_219[[#This Row],[Sens]]="S CAO",ABS(Tab_Maillons_AFC_219[[#This Row],[S. CAO]]),IF(Tab_Maillons_AFC_219[[#This Row],[Sens]]="",0,"Erreur"))))))) -> 5.13378 | J37: =IF(Tab_Maillons_AFC_219[[#This Row],[Sens]]<>"S CAO",(Tab_Maillons_AFC_219[[#This Row],[Nom.]]+(Tab_Maillons_AFC_219[[#This Row],[Tol min]]+Tab_Maillons_AFC_219[[#This Row],[Tol max]])/2)*Tab_Maillons_AFC_219[[#This Row],[Sensib.]],(Tab_Maillons_AFC_219[[#This Row],[Nom.]]+(Tab_Maillons_AFC_219[[#This Row],[Tol min]]+Tab_Maillons_AFC_219[[#This Row],[Tol max]])/2)) -> 120 | K37: =ABS(Tab_Maillons_AFC_219[[#This Row],[Tol max]]-Tab_Maillons_AFC_219[[#This Row],[Tol min]])*ABS(Tab_Maillons_AFC_219[[#This Row],[Sensib.]]) -> 10.26756 | L37: =Tab_Maillons_AFC_219[[#This Row],[ITx|S|]]^2 -> 105.4227884 | M37: =IF(Decentrage_admis,Tab_Maillons_AFC_219[[#This Row],[ITx|S|]]/Decentrage_admis,0) -> 1.283445 | N37: =IF(Tab_Maillons_AFC_219[[#Totals],[ITx|S|]],Tab_Maillons_AFC_219[[#This Row],[ITx|S|]]/Tab_Maillons_AFC_219[[#Totals],[ITx|S|]],0) -> 0.3409618005 | O37: =IF(Tab_Maillons_AFC_219[[#Totals],[(ITxS)²]],Tab_Maillons_AFC_219[[#This Row],[(ITxS)²]]/Tab_Maillons_AFC_219[[#Totals],[(ITxS)²]],0) -> 0.2727332786 | P37: =IF(Tab_Maillons_AFC_219[[#This Row],[Appui/2]]<>0,Tab_Maillons_AFC_219[[#This Row],[Déport]]/Tab_Maillons_AFC_219[[#This Row],[Appui/2]],1) -> 1 | S37: =IF(Tab_Maillons_AFC_219[[#This Row],[Delta]]<>0,(Tab_Maillons_AFC_219[[#This Row],[CF(delta)]]-Tab_Maillons_AFC_219[[#This Row],[CF moy.]])/Tab_Maillons_AFC_219[[#This Row],[Delta]],1) -> 5.13378 | T37: 209.141031 | U37: 0.1 | V37: 209.654409
A38: P1 | B38: Pivot arrière | C38: Longueur | D38: 100 | F38: =-Tab_Maillons_AFC_219[[#This Row],[Tol max]] -> -2 | G38: 2 | H38: S CAO | I38: =IF(Tab_Maillons_AFC_219[[#This Row],[Sens]]="+",1,IF(Tab_Maillons_AFC_219[[#This Row],[Sens]]="-",-1,IF(Tab_Maillons_AFC_219[[#This Row],[Sens]]="+½ cote",0.5,IF(Tab_Maillons_AFC_219[[#This Row],[Sens]]="-½ cote",-0.5,IF(Tab_Maillons_AFC_219[[#This Row],[Sens]]="S Orient",Tab_Maillons_AFC_219[[#This Row],[S. Orient]],IF(Tab_Maillons_AFC_219[[#This Row],[Sens]]="S CAO",ABS(Tab_Maillons_AFC_219[[#This Row],[S. CAO]]),IF(Tab_Maillons_AFC_219[[#This Row],[Sens]]="",0,"Erreur"))))))) -> 4.13831 | J38: =IF(Tab_Maillons_AFC_219[[#This Row],[Sens]]<>"S CAO",(Tab_Maillons_AFC_219[[#This Row],[Nom.]]+(Tab_Maillons_AFC_219[[#This Row],[Tol min]]+Tab_Maillons_AFC_219[[#This Row],[Tol max]])/2)*Tab_Maillons_AFC_219[[#This Row],[Sensib.]],(Tab_Maillons_AFC_219[[#This Row],[Nom.]]+(Tab_Maillons_AFC_219[[#This Row],[Tol min]]+Tab_Maillons_AFC_219[[#This Row],[Tol max]])/2)) -> 100 | K38: =ABS(Tab_Maillons_AFC_219[[#This Row],[Tol max]]-Tab_Maillons_AFC_219[[#This Row],[Tol min]])*ABS(Tab_Maillons_AFC_219[[#This Row],[Sensib.]]) -> 16.55324 | L38: =Tab_Maillons_AFC_219[[#This Row],[ITx|S|]]^2 -> 274.0097545 | M38: =IF(Decentrage_admis,Tab_Maillons_AFC_219[[#This Row],[ITx|S|]]/Decentrage_admis,0) -> 2.069155 | N38: =IF(Tab_Maillons_AFC_219[[#Totals],[ITx|S|]],Tab_Maillons_AFC_219[[#This Row],[ITx|S|]]/Tab_Maillons_AFC_219[[#Totals],[ITx|S|]],0) -> 0.5496946222 | O38: =IF(Tab_Maillons_AFC_219[[#Totals],[(ITxS)²]],Tab_Maillons_AFC_219[[#This Row],[(ITxS)²]]/Tab_Maillons_AFC_219[[#Totals],[(ITxS)²]],0) -> 0.7088749964 | P38: =IF(Tab_Maillons_AFC_219[[#This Row],[Appui/2]]<>0,Tab_Maillons_AFC_219[[#This Row],[Déport]]/Tab_Maillons_AFC_219[[#This Row],[Appui/2]],1) -> 1 | S38: =IF(Tab_Maillons_AFC_219[[#This Row],[Delta]]<>0,(Tab_Maillons_AFC_219[[#This Row],[CF(delta)]]-Tab_Maillons_AFC_219[[#This Row],[CF moy.]])/Tab_Maillons_AFC_219[[#This Row],[Delta]],1) -> -4.13831 | T38: =IF(Tab_Maillons_AFC_219[[#This Row],[Maillon]]=Tab_Maillons_AFC_219[[#This Row],[Maillon]], INDEX(Tab_Maillons_AFC_219[CF moy.],1), "") -> 209.141031 | U38: 0.1 | V38: 208.7272
A39: C1 | B39: Canon | C39: Longueur | D39: 450 | F39: =-Tab_Maillons_AFC_219[[#This Row],[Tol max]] -> -1.5 | G39: 1.5 | H39: S CAO | I39: =IF(Tab_Maillons_AFC_219[[#This Row],[Sens]]="+",1,IF(Tab_Maillons_AFC_219[[#This Row],[Sens]]="-",-1,IF(Tab_Maillons_AFC_219[[#This Row],[Sens]]="+½ cote",0.5,IF(Tab_Maillons_AFC_219[[#This Row],[Sens]]="-½ cote",-0.5,IF(Tab_Maillons_AFC_219[[#This Row],[Sens]]="S Orient",Tab_Maillons_AFC_219[[#This Row],[S. Orient]],IF(Tab_Maillons_AFC_219[[#This Row],[Sens]]="S CAO",ABS(Tab_Maillons_AFC_219[[#This Row],[S. CAO]]),IF(Tab_Maillons_AFC_219[[#This Row],[Sens]]="",0,"Erreur"))))))) -> 0.24254 | J39: =IF(Tab_Maillons_AFC_219[[#This Row],[Sens]]<>"S CAO",(Tab_Maillons_AFC_219[[#This Row],[Nom.]]+(Tab_Maillons_AFC_219[[#This Row],[Tol min]]+Tab_Maillons_AFC_219[[#This Row],[Tol max]])/2)*Tab_Maillons_AFC_219[[#This Row],[Sensib.]],(Tab_Maillons_AFC_219[[#This Row],[Nom.]]+(Tab_Maillons_AFC_219[[#This Row],[Tol min]]+Tab_Maillons_AFC_219[[#This Row],[Tol max]])/2)) -> 450 | K39: =ABS(Tab_Maillons_AFC_219[[#This Row],[Tol max]]-Tab_Maillons_AFC_219[[#This Row],[Tol min]])*ABS(Tab_Maillons_AFC_219[[#This Row],[Sensib.]]) -> 0.72762 | L39: =Tab_Maillons_AFC_219[[#This Row],[ITx|S|]]^2 -> 0.5294308644 | M39: =IF(Decentrage_admis,Tab_Maillons_AFC_219[[#This Row],[ITx|S|]]/Decentrage_admis,0) -> 0.0909525 | N39: =IF(Tab_Maillons_AFC_219[[#Totals],[ITx|S|]],Tab_Maillons_AFC_219[[#This Row],[ITx|S|]]/Tab_Maillons_AFC_219[[#Totals],[ITx|S|]],0) -> 0.02416256884 | O39: =IF(Tab_Maillons_AFC_219[[#Totals],[(ITxS)²]],Tab_Maillons_AFC_219[[#This Row],[(ITxS)²]]/Tab_Maillons_AFC_219[[#Totals],[(ITxS)²]],0) -> 0.001369660371 | P39: =IF(Tab_Maillons_AFC_219[[#This Row],[Appui/2]]<>0,Tab_Maillons_AFC_219[[#This Row],[Déport]]/Tab_Maillons_AFC_219[[#This Row],[Appui/2]],1) -> 1 | S39: =IF(Tab_Maillons_AFC_219[[#This Row],[Delta]]<>0,(Tab_Maillons_AFC_219[[#This Row],[CF(delta)]]-Tab_Maillons_AFC_219[[#This Row],[CF moy.]])/Tab_Maillons_AFC_219[[#This Row],[Delta]],1) -> 0.24254 | T39: =IF(Tab_Maillons_AFC_219[[#This Row],[Maillon]]=Tab_Maillons_AFC_219[[#This Row],[Maillon]], INDEX(Tab_Maillons_AFC_219[CF moy.],1), "") -> 209.141031 | U39: 0.1 | V39: 209.165285
A40: E1 | B40: Entraxe | C40: Longueur | D40: 80 | F40: =-Tab_Maillons_AFC_219[[#This Row],[Tol max]] -> -1 | G40: 1 | H40: S CAO | I40: =IF(Tab_Maillons_AFC_219[[#This Row],[Sens]]="+",1,IF(Tab_Maillons_AFC_219[[#This Row],[Sens]]="-",-1,IF(Tab_Maillons_AFC_219[[#This Row],[Sens]]="+½ cote",0.5,IF(Tab_Maillons_AFC_219[[#This Row],[Sens]]="-½ cote",-0.5,IF(Tab_Maillons_AFC_219[[#This Row],[Sens]]="S Orient",Tab_Maillons_AFC_219[[#This Row],[S. Orient]],IF(Tab_Maillons_AFC_219[[#This Row],[Sens]]="S CAO",ABS(Tab_Maillons_AFC_219[[#This Row],[S. CAO]]),IF(Tab_Maillons_AFC_219[[#This Row],[Sens]]="",0,"Erreur"))))))) -> 1.28255 | J40: =IF(Tab_Maillons_AFC_219[[#This Row],[Sens]]<>"S CAO",(Tab_Maillons_AFC_219[[#This Row],[Nom.]]+(Tab_Maillons_AFC_219[[#This Row],[Tol min]]+Tab_Maillons_AFC_219[[#This Row],[Tol max]])/2)*Tab_Maillons_AFC_219[[#This Row],[Sensib.]],(Tab_Maillons_AFC_219[[#This Row],[Nom.]]+(Tab_Maillons_AFC_219[[#This Row],[Tol min]]+Tab_Maillons_AFC_219[[#This Row],[Tol max]])/2)) -> 80 | K40: =ABS(Tab_Maillons_AFC_219[[#This Row],[Tol max]]-Tab_Maillons_AFC_219[[#This Row],[Tol min]])*ABS(Tab_Maillons_AFC_219[[#This Row],[Sensib.]]) -> 2.5651 | L40: =Tab_Maillons_AFC_219[[#This Row],[ITx|S|]]^2 -> 6.57973801 | M40: =IF(Decentrage_admis,Tab_Maillons_AFC_219[[#This Row],[ITx|S|]]/Decentrage_admis,0) -> 0.3206375 | N40: =IF(Tab_Maillons_AFC_219[[#Totals],[ITx|S|]],Tab_Maillons_AFC_219[[#This Row],[ITx|S|]]/Tab_Maillons_AFC_219[[#Totals],[ITx|S|]],0) -> 0.0851810084 | O40: =IF(Tab_Maillons_AFC_219[[#Totals],[(ITxS)²]],Tab_Maillons_AFC_219[[#This Row],[(ITxS)²]]/Tab_Maillons_AFC_219[[#Totals],[(ITxS)²]],0) -> 0.01702206466 | P40: =IF(Tab_Maillons_AFC_219[[#This Row],[Appui/2]]<>0,Tab_Maillons_AFC_219[[#This Row],[Déport]]/Tab_Maillons_AFC_219[[#This Row],[Appui/2]],1) -> 1 | S40: =IF(Tab_Maillons_AFC_219[[#This Row],[Delta]]<>0,(Tab_Maillons_AFC_219[[#This Row],[CF(delta)]]-Tab_Maillons_AFC_219[[#This Row],[CF moy.]])/Tab_Maillons_AFC_219[[#This Row],[Delta]],1) -> -1.28255 | T40: =IF(Tab_Maillons_AFC_219[[#This Row],[Maillon]]=Tab_Maillons_AFC_219[[#This Row],[Maillon]], INDEX(Tab_Maillons_AFC_219[CF moy.],1), "") -> 209.141031 | U40: 0.1 | V40: 209.012776
I41: =IF(Tab_Maillons_AFC_219[[#This Row],[Sens]]="+",1,IF(Tab_Maillons_AFC_219[[#This Row],[Sens]]="-",-1,IF(Tab_Maillons_AFC_219[[#This Row],[Sens]]="+½ cote",0.5,IF(Tab_Maillons_AFC_219[[#This Row],[Sens]]="-½ cote",-0.5,IF(Tab_Maillons_AFC_219[[#This Row],[Sens]]="S Orient",Tab_Maillons_AFC_219[[#This Row],[S. Orient]],IF(Tab_Maillons_AFC_219[[#This Row],[Sens]]="S CAO",ABS(Tab_Maillons_AFC_219[[#This Row],[S. CAO]]),IF(Tab_Maillons_AFC_219[[#This Row],[Sens]]="",0,"Erreur"))))))) -> 0 | J41: =IF(Tab_Maillons_AFC_219[[#This Row],[Sens]]<>"S CAO",(Tab_Maillons_AFC_219[[#This Row],[Nom.]]+(Tab_Maillons_AFC_219[[#This Row],[Tol min]]+Tab_Maillons_AFC_219[[#This Row],[Tol max]])/2)*Tab_Maillons_AFC_219[[#This Row],[Sensib.]],(Tab_Maillons_AFC_219[[#This Row],[Nom.]]+(Tab_Maillons_AFC_219[[#This Row],[Tol min]]+Tab_Maillons_AFC_219[[#This Row],[Tol max]])/2)) -> 0 | K41: =ABS(Tab_Maillons_AFC_219[[#This Row],[Tol max]]-Tab_Maillons_AFC_219[[#This Row],[Tol min]])*ABS(Tab_Maillons_AFC_219[[#This Row],[Sensib.]]) -> 0 | L41: =Tab_Maillons_AFC_219[[#This Row],[ITx|S|]]^2 -> 0 | M41: =IF(Decentrage_admis,Tab_Maillons_AFC_219[[#This Row],[ITx|S|]]/Decentrage_admis,0) -> 0 | N41: =IF(Tab_Maillons_AFC_219[[#Totals],[ITx|S|]],Tab_Maillons_AFC_219[[#This Row],[ITx|S|]]/Tab_Maillons_AFC_219[[#Totals],[ITx|S|]],0) -> 0 | O41: =IF(Tab_Maillons_AFC_219[[#Totals],[(ITxS)²]],Tab_Maillons_AFC_219[[#This Row],[(ITxS)²]]/Tab_Maillons_AFC_219[[#Totals],[(ITxS)²]],0) -> 0 | P41: =IF(Tab_Maillons_AFC_219[[#This Row],[Appui/2]]<>0,Tab_Maillons_AFC_219[[#This Row],[Déport]]/Tab_Maillons_AFC_219[[#This Row],[Appui/2]],1) -> 1 | S41: =IF(Tab_Maillons_AFC_219[[#This Row],[Delta]]<>0,(Tab_Maillons_AFC_219[[#This Row],[CF(delta)]]-Tab_Maillons_AFC_219[[#This Row],[CF moy.]])/Tab_Maillons_AFC_219[[#This Row],[Delta]],1) -> 1 | T41: =IF(Tab_Maillons_AFC_219[[#This Row],[Maillon]]=Tab_Maillons_AFC_219[[#This Row],[Maillon]], INDEX(Tab_Maillons_AFC_219[CF moy.],1), "") -> 209.141031
I42: =IF(Tab_Maillons_AFC_219[[#This Row],[Sens]]="+",1,IF(Tab_Maillons_AFC_219[[#This Row],[Sens]]="-",-1,IF(Tab_Maillons_AFC_219[[#This Row],[Sens]]="+½ cote",0.5,IF(Tab_Maillons_AFC_219[[#This Row],[Sens]]="-½ cote",-0.5,IF(Tab_Maillons_AFC_219[[#This Row],[Sens]]="S Orient",Tab_Maillons_AFC_219[[#This Row],[S. Orient]],IF(Tab_Maillons_AFC_219[[#This Row],[Sens]]="S CAO",ABS(Tab_Maillons_AFC_219[[#This Row],[S. CAO]]),IF(Tab_Maillons_AFC_219[[#This Row],[Sens]]="",0,"Erreur"))))))) -> 0 | J42: =IF(Tab_Maillons_AFC_219[[#This Row],[Sens]]<>"S CAO",(Tab_Maillons_AFC_219[[#This Row],[Nom.]]+(Tab_Maillons_AFC_219[[#This Row],[Tol min]]+Tab_Maillons_AFC_219[[#This Row],[Tol max]])/2)*Tab_Maillons_AFC_219[[#This Row],[Sensib.]],(Tab_Maillons_AFC_219[[#This Row],[Nom.]]+(Tab_Maillons_AFC_219[[#This Row],[Tol min]]+Tab_Maillons_AFC_219[[#This Row],[Tol max]])/2)) -> 0 | K42: =ABS(Tab_Maillons_AFC_219[[#This Row],[Tol max]]-Tab_Maillons_AFC_219[[#This Row],[Tol min]])*ABS(Tab_Maillons_AFC_219[[#This Row],[Sensib.]]) -> 0 | L42: =Tab_Maillons_AFC_219[[#This Row],[ITx|S|]]^2 -> 0 | M42: =IF(Decentrage_admis,Tab_Maillons_AFC_219[[#This Row],[ITx|S|]]/Decentrage_admis,0) -> 0 | N42: =IF(Tab_Maillons_AFC_219[[#Totals],[ITx|S|]],Tab_Maillons_AFC_219[[#This Row],[ITx|S|]]/Tab_Maillons_AFC_219[[#Totals],[ITx|S|]],0) -> 0 | O42: =IF(Tab_Maillons_AFC_219[[#Totals],[(ITxS)²]],Tab_Maillons_AFC_219[[#This Row],[(ITxS)²]]/Tab_Maillons_AFC_219[[#Totals],[(ITxS)²]],0) -> 0 | P42: =IF(Tab_Maillons_AFC_219[[#This Row],[Appui/2]]<>0,Tab_Maillons_AFC_219[[#This Row],[Déport]]/Tab_Maillons_AFC_219[[#This Row],[Appui/2]],1) -> 1 | S42: =IF(Tab_Maillons_AFC_219[[#This Row],[Delta]]<>0,(Tab_Maillons_AFC_219[[#This Row],[CF(delta)]]-Tab_Maillons_AFC_219[[#This Row],[CF moy.]])/Tab_Maillons_AFC_219[[#This Row],[Delta]],1) -> 1 | T42: =IF(Tab_Maillons_AFC_219[[#This Row],[Maillon]]=Tab_Maillons_AFC_219[[#This Row],[Maillon]], INDEX(Tab_Maillons_AFC_219[CF moy.],1), "") -> 209.141031
I43: =IF(Tab_Maillons_AFC_219[[#This Row],[Sens]]="+",1,IF(Tab_Maillons_AFC_219[[#This Row],[Sens]]="-",-1,IF(Tab_Maillons_AFC_219[[#This Row],[Sens]]="+½ cote",0.5,IF(Tab_Maillons_AFC_219[[#This Row],[Sens]]="-½ cote",-0.5,IF(Tab_Maillons_AFC_219[[#This Row],[Sens]]="S Orient",Tab_Maillons_AFC_219[[#This Row],[S. Orient]],IF(Tab_Maillons_AFC_219[[#This Row],[Sens]]="S CAO",ABS(Tab_Maillons_AFC_219[[#This Row],[S. CAO]]),IF(Tab_Maillons_AFC_219[[#This Row],[Sens]]="",0,"Erreur"))))))) -> 0 | J43: =IF(Tab_Maillons_AFC_219[[#This Row],[Sens]]<>"S CAO",(Tab_Maillons_AFC_219[[#This Row],[Nom.]]+(Tab_Maillons_AFC_219[[#This Row],[Tol min]]+Tab_Maillons_AFC_219[[#This Row],[Tol max]])/2)*Tab_Maillons_AFC_219[[#This Row],[Sensib.]],(Tab_Maillons_AFC_219[[#This Row],[Nom.]]+(Tab_Maillons_AFC_219[[#This Row],[Tol min]]+Tab_Maillons_AFC_219[[#This Row],[Tol max]])/2)) -> 0 | K43: =ABS(Tab_Maillons_AFC_219[[#This Row],[Tol max]]-Tab_Maillons_AFC_219[[#This Row],[Tol min]])*ABS(Tab_Maillons_AFC_219[[#This Row],[Sensib.]]) -> 0 | L43: =Tab_Maillons_AFC_219[[#This Row],[ITx|S|]]^2 -> 0 | M43: =IF(Decentrage_admis,Tab_Maillons_AFC_219[[#This Row],[ITx|S|]]/Decentrage_admis,0) -> 0 | N43: =IF(Tab_Maillons_AFC_219[[#Totals],[ITx|S|]],Tab_Maillons_AFC_219[[#This Row],[ITx|S|]]/Tab_Maillons_AFC_219[[#Totals],[ITx|S|]],0) -> 0 | O43: =IF(Tab_Maillons_AFC_219[[#Totals],[(ITxS)²]],Tab_Maillons_AFC_219[[#This Row],[(ITxS)²]]/Tab_Maillons_AFC_219[[#Totals],[(ITxS)²]],0) -> 0 | P43: =IF(Tab_Maillons_AFC_219[[#This Row],[Appui/2]]<>0,Tab_Maillons_AFC_219[[#This Row],[Déport]]/Tab_Maillons_AFC_219[[#This Row],[Appui/2]],1) -> 1 | S43: =IF(Tab_Maillons_AFC_219[[#This Row],[Delta]]<>0,(Tab_Maillons_AFC_219[[#This Row],[CF(delta)]]-Tab_Maillons_AFC_219[[#This Row],[CF moy.]])/Tab_Maillons_AFC_219[[#This Row],[Delta]],1) -> 1 | T43: =IF(Tab_Maillons_AFC_219[[#This Row],[Maillon]]=Tab_Maillons_AFC_219[[#This Row],[Maillon]], INDEX(Tab_Maillons_AFC_219[CF moy.],1), "") -> 209.141031
I44: =IF(Tab_Maillons_AFC_219[[#This Row],[Sens]]="+",1,IF(Tab_Maillons_AFC_219[[#This Row],[Sens]]="-",-1,IF(Tab_Maillons_AFC_219[[#This Row],[Sens]]="+½ cote",0.5,IF(Tab_Maillons_AFC_219[[#This Row],[Sens]]="-½ cote",-0.5,IF(Tab_Maillons_AFC_219[[#This Row],[Sens]]="S Orient",Tab_Maillons_AFC_219[[#This Row],[S. Orient]],IF(Tab_Maillons_AFC_219[[#This Row],[Sens]]="S CAO",ABS(Tab_Maillons_AFC_219[[#This Row],[S. CAO]]),IF(Tab_Maillons_AFC_219[[#This Row],[Sens]]="",0,"Erreur"))))))) -> 0 | J44: =IF(Tab_Maillons_AFC_219[[#This Row],[Sens]]<>"S CAO",(Tab_Maillons_AFC_219[[#This Row],[Nom.]]+(Tab_Maillons_AFC_219[[#This Row],[Tol min]]+Tab_Maillons_AFC_219[[#This Row],[Tol max]])/2)*Tab_Maillons_AFC_219[[#This Row],[Sensib.]],(Tab_Maillons_AFC_219[[#This Row],[Nom.]]+(Tab_Maillons_AFC_219[[#This Row],[Tol min]]+Tab_Maillons_AFC_219[[#This Row],[Tol max]])/2)) -> 0 | K44: =ABS(Tab_Maillons_AFC_219[[#This Row],[Tol max]]-Tab_Maillons_AFC_219[[#This Row],[Tol min]])*ABS(Tab_Maillons_AFC_219[[#This Row],[Sensib.]]) -> 0 | L44: =Tab_Maillons_AFC_219[[#This Row],[ITx|S|]]^2 -> 0 | M44: =IF(Decentrage_admis,Tab_Maillons_AFC_219[[#This Row],[ITx|S|]]/Decentrage_admis,0) -> 0 | N44: =IF(Tab_Maillons_AFC_219[[#Totals],[ITx|S|]],Tab_Maillons_AFC_219[[#This Row],[ITx|S|]]/Tab_Maillons_AFC_219[[#Totals],[ITx|S|]],0) -> 0 | O44: =IF(Tab_Maillons_AFC_219[[#Totals],[(ITxS)²]],Tab_Maillons_AFC_219[[#This Row],[(ITxS)²]]/Tab_Maillons_AFC_219[[#Totals],[(ITxS)²]],0) -> 0 | P44: =IF(Tab_Maillons_AFC_219[[#This Row],[Appui/2]]<>0,Tab_Maillons_AFC_219[[#This Row],[Déport]]/Tab_Maillons_AFC_219[[#This Row],[Appui/2]],1) -> 1 | S44: =IF(Tab_Maillons_AFC_219[[#This Row],[Delta]]<>0,(Tab_Maillons_AFC_219[[#This Row],[CF(delta)]]-Tab_Maillons_AFC_219[[#This Row],[CF moy.]])/Tab_Maillons_AFC_219[[#This Row],[Delta]],1) -> 1 | T44: =IF(Tab_Maillons_AFC_219[[#This Row],[Maillon]]=Tab_Maillons_AFC_219[[#This Row],[Maillon]], INDEX(Tab_Maillons_AFC_219[CF moy.],1), "") -> 209.141031
I45: =IF(Tab_Maillons_AFC_219[[#This Row],[Sens]]="+",1,IF(Tab_Maillons_AFC_219[[#This Row],[Sens]]="-",-1,IF(Tab_Maillons_AFC_219[[#This Row],[Sens]]="+½ cote",0.5,IF(Tab_Maillons_AFC_219[[#This Row],[Sens]]="-½ cote",-0.5,IF(Tab_Maillons_AFC_219[[#This Row],[Sens]]="S Orient",Tab_Maillons_AFC_219[[#This Row],[S. Orient]],IF(Tab_Maillons_AFC_219[[#This Row],[Sens]]="S CAO",ABS(Tab_Maillons_AFC_219[[#This Row],[S. CAO]]),IF(Tab_Maillons_AFC_219[[#This Row],[Sens]]="",0,"Erreur"))))))) -> 0 | J45: =IF(Tab_Maillons_AFC_219[[#This Row],[Sens]]<>"S CAO",(Tab_Maillons_AFC_219[[#This Row],[Nom.]]+(Tab_Maillons_AFC_219[[#This Row],[Tol min]]+Tab_Maillons_AFC_219[[#This Row],[Tol max]])/2)*Tab_Maillons_AFC_219[[#This Row],[Sensib.]],(Tab_Maillons_AFC_219[[#This Row],[Nom.]]+(Tab_Maillons_AFC_219[[#This Row],[Tol min]]+Tab_Maillons_AFC_219[[#This Row],[Tol max]])/2)) -> 0 | K45: =ABS(Tab_Maillons_AFC_219[[#This Row],[Tol max]]-Tab_Maillons_AFC_219[[#This Row],[Tol min]])*ABS(Tab_Maillons_AFC_219[[#This Row],[Sensib.]]) -> 0 | L45: =Tab_Maillons_AFC_219[[#This Row],[ITx|S|]]^2 -> 0 | M45: =IF(Decentrage_admis,Tab_Maillons_AFC_219[[#This Row],[ITx|S|]]/Decentrage_admis,0) -> 0 | N45: =IF(Tab_Maillons_AFC_219[[#Totals],[ITx|S|]],Tab_Maillons_AFC_219[[#This Row],[ITx|S|]]/Tab_Maillons_AFC_219[[#Totals],[ITx|S|]],0) -> 0 | O45: =IF(Tab_Maillons_AFC_219[[#Totals],[(ITxS)²]],Tab_Maillons_AFC_219[[#This Row],[(ITxS)²]]/Tab_Maillons_AFC_219[[#Totals],[(ITxS)²]],0) -> 0 | P45: =IF(Tab_Maillons_AFC_219[[#This Row],[Appui/2]]<>0,Tab_Maillons_AFC_219[[#This Row],[Déport]]/Tab_Maillons_AFC_219[[#This Row],[Appui/2]],1) -> 1 | S45: =IF(Tab_Maillons_AFC_219[[#This Row],[Delta]]<>0,(Tab_Maillons_AFC_219[[#This Row],[CF(delta)]]-Tab_Maillons_AFC_219[[#This Row],[CF moy.]])/Tab_Maillons_AFC_219[[#This Row],[Delta]],1) -> 1 | T45: =IF(Tab_Maillons_AFC_219[[#This Row],[Maillon]]=Tab_Maillons_AFC_219[[#This Row],[Maillon]], INDEX(Tab_Maillons_AFC_219[CF moy.],1), "") -> 209.141031
I46: =IF(Tab_Maillons_AFC_219[[#This Row],[Sens]]="+",1,IF(Tab_Maillons_AFC_219[[#This Row],[Sens]]="-",-1,IF(Tab_Maillons_AFC_219[[#This Row],[Sens]]="+½ cote",0.5,IF(Tab_Maillons_AFC_219[[#This Row],[Sens]]="-½ cote",-0.5,IF(Tab_Maillons_AFC_219[[#This Row],[Sens]]="S Orient",Tab_Maillons_AFC_219[[#This Row],[S. Orient]],IF(Tab_Maillons_AFC_219[[#This Row],[Sens]]="S CAO",ABS(Tab_Maillons_AFC_219[[#This Row],[S. CAO]]),IF(Tab_Maillons_AFC_219[[#This Row],[Sens]]="",0,"Erreur"))))))) -> 0 | J46: =IF(Tab_Maillons_AFC_219[[#This Row],[Sens]]<>"S CAO",(Tab_Maillons_AFC_219[[#This Row],[Nom.]]+(Tab_Maillons_AFC_219[[#This Row],[Tol min]]+Tab_Maillons_AFC_219[[#This Row],[Tol max]])/2)*Tab_Maillons_AFC_219[[#This Row],[Sensib.]],(Tab_Maillons_AFC_219[[#This Row],[Nom.]]+(Tab_Maillons_AFC_219[[#This Row],[Tol min]]+Tab_Maillons_AFC_219[[#This Row],[Tol max]])/2)) -> 0 | K46: =ABS(Tab_Maillons_AFC_219[[#This Row],[Tol max]]-Tab_Maillons_AFC_219[[#This Row],[Tol min]])*ABS(Tab_Maillons_AFC_219[[#This Row],[Sensib.]]) -> 0 | L46: =Tab_Maillons_AFC_219[[#This Row],[ITx|S|]]^2 -> 0 | M46: =IF(Decentrage_admis,Tab_Maillons_AFC_219[[#This Row],[ITx|S|]]/Decentrage_admis,0) -> 0 | N46: =IF(Tab_Maillons_AFC_219[[#Totals],[ITx|S|]],Tab_Maillons_AFC_219[[#This Row],[ITx|S|]]/Tab_Maillons_AFC_219[[#Totals],[ITx|S|]],0) -> 0 | O46: =IF(Tab_Maillons_AFC_219[[#Totals],[(ITxS)²]],Tab_Maillons_AFC_219[[#This Row],[(ITxS)²]]/Tab_Maillons_AFC_219[[#Totals],[(ITxS)²]],0) -> 0 | P46: =IF(Tab_Maillons_AFC_219[[#This Row],[Appui/2]]<>0,Tab_Maillons_AFC_219[[#This Row],[Déport]]/Tab_Maillons_AFC_219[[#This Row],[Appui/2]],1) -> 1 | S46: =IF(Tab_Maillons_AFC_219[[#This Row],[Delta]]<>0,(Tab_Maillons_AFC_219[[#This Row],[CF(delta)]]-Tab_Maillons_AFC_219[[#This Row],[CF moy.]])/Tab_Maillons_AFC_219[[#This Row],[Delta]],1) -> 1 | T46: =IF(Tab_Maillons_AFC_219[[#This Row],[Maillon]]=Tab_Maillons_AFC_219[[#This Row],[Maillon]], INDEX(Tab_Maillons_AFC_219[CF moy.],1), "") -> 209.141031
I47: =IF(Tab_Maillons_AFC_219[[#This Row],[Sens]]="+",1,IF(Tab_Maillons_AFC_219[[#This Row],[Sens]]="-",-1,IF(Tab_Maillons_AFC_219[[#This Row],[Sens]]="+½ cote",0.5,IF(Tab_Maillons_AFC_219[[#This Row],[Sens]]="-½ cote",-0.5,IF(Tab_Maillons_AFC_219[[#This Row],[Sens]]="S Orient",Tab_Maillons_AFC_219[[#This Row],[S. Orient]],IF(Tab_Maillons_AFC_219[[#This Row],[Sens]]="S CAO",ABS(Tab_Maillons_AFC_219[[#This Row],[S. CAO]]),IF(Tab_Maillons_AFC_219[[#This Row],[Sens]]="",0,"Erreur"))))))) -> 0 | J47: =IF(Tab_Maillons_AFC_219[[#This Row],[Sens]]<>"S CAO",(Tab_Maillons_AFC_219[[#This Row],[Nom.]]+(Tab_Maillons_AFC_219[[#This Row],[Tol min]]+Tab_Maillons_AFC_219[[#This Row],[Tol max]])/2)*Tab_Maillons_AFC_219[[#This Row],[Sensib.]],(Tab_Maillons_AFC_219[[#This Row],[Nom.]]+(Tab_Maillons_AFC_219[[#This Row],[Tol min]]+Tab_Maillons_AFC_219[[#This Row],[Tol max]])/2)) -> 0 | K47: =ABS(Tab_Maillons_AFC_219[[#This Row],[Tol max]]-Tab_Maillons_AFC_219[[#This Row],[Tol min]])*ABS(Tab_Maillons_AFC_219[[#This Row],[Sensib.]]) -> 0 | L47: =Tab_Maillons_AFC_219[[#This Row],[ITx|S|]]^2 -> 0 | M47: =IF(Decentrage_admis,Tab_Maillons_AFC_219[[#This Row],[ITx|S|]]/Decentrage_admis,0) -> 0 | N47: =IF(Tab_Maillons_AFC_219[[#Totals],[ITx|S|]],Tab_Maillons_AFC_219[[#This Row],[ITx|S|]]/Tab_Maillons_AFC_219[[#Totals],[ITx|S|]],0) -> 0 | O47: =IF(Tab_Maillons_AFC_219[[#Totals],[(ITxS)²]],Tab_Maillons_AFC_219[[#This Row],[(ITxS)²]]/Tab_Maillons_AFC_219[[#Totals],[(ITxS)²]],0) -> 0 | P47: =IF(Tab_Maillons_AFC_219[[#This Row],[Appui/2]]<>0,Tab_Maillons_AFC_219[[#This Row],[Déport]]/Tab_Maillons_AFC_219[[#This Row],[Appui/2]],1) -> 1 | S47: =IF(Tab_Maillons_AFC_219[[#This Row],[Delta]]<>0,(Tab_Maillons_AFC_219[[#This Row],[CF(delta)]]-Tab_Maillons_AFC_219[[#This Row],[CF moy.]])/Tab_Maillons_AFC_219[[#This Row],[Delta]],1) -> 1 | T47: =IF(Tab_Maillons_AFC_219[[#This Row],[Maillon]]=Tab_Maillons_AFC_219[[#This Row],[Maillon]], INDEX(Tab_Maillons_AFC_219[CF moy.],1), "") -> 209.141031
I48: =IF(Tab_Maillons_AFC_219[[#This Row],[Sens]]="+",1,IF(Tab_Maillons_AFC_219[[#This Row],[Sens]]="-",-1,IF(Tab_Maillons_AFC_219[[#This Row],[Sens]]="+½ cote",0.5,IF(Tab_Maillons_AFC_219[[#This Row],[Sens]]="-½ cote",-0.5,IF(Tab_Maillons_AFC_219[[#This Row],[Sens]]="S Orient",Tab_Maillons_AFC_219[[#This Row],[S. Orient]],IF(Tab_Maillons_AFC_219[[#This Row],[Sens]]="S CAO",ABS(Tab_Maillons_AFC_219[[#This Row],[S. CAO]]),IF(Tab_Maillons_AFC_219[[#This Row],[Sens]]="",0,"Erreur"))))))) -> 0 | J48: =IF(Tab_Maillons_AFC_219[[#This Row],[Sens]]<>"S CAO",(Tab_Maillons_AFC_219[[#This Row],[Nom.]]+(Tab_Maillons_AFC_219[[#This Row],[Tol min]]+Tab_Maillons_AFC_219[[#This Row],[Tol max]])/2)*Tab_Maillons_AFC_219[[#This Row],[Sensib.]],(Tab_Maillons_AFC_219[[#This Row],[Nom.]]+(Tab_Maillons_AFC_219[[#This Row],[Tol min]]+Tab_Maillons_AFC_219[[#This Row],[Tol max]])/2)) -> 0 | K48: =ABS(Tab_Maillons_AFC_219[[#This Row],[Tol max]]-Tab_Maillons_AFC_219[[#This Row],[Tol min]])*ABS(Tab_Maillons_AFC_219[[#This Row],[Sensib.]]) -> 0 | L48: =Tab_Maillons_AFC_219[[#This Row],[ITx|S|]]^2 -> 0 | M48: =IF(Decentrage_admis,Tab_Maillons_AFC_219[[#This Row],[ITx|S|]]/Decentrage_admis,0) -> 0 | N48: =IF(Tab_Maillons_AFC_219[[#Totals],[ITx|S|]],Tab_Maillons_AFC_219[[#This Row],[ITx|S|]]/Tab_Maillons_AFC_219[[#Totals],[ITx|S|]],0) -> 0 | O48: =IF(Tab_Maillons_AFC_219[[#Totals],[(ITxS)²]],Tab_Maillons_AFC_219[[#This Row],[(ITxS)²]]/Tab_Maillons_AFC_219[[#Totals],[(ITxS)²]],0) -> 0 | P48: =IF(Tab_Maillons_AFC_219[[#This Row],[Appui/2]]<>0,Tab_Maillons_AFC_219[[#This Row],[Déport]]/Tab_Maillons_AFC_219[[#This Row],[Appui/2]],1) -> 1 | S48: =IF(Tab_Maillons_AFC_219[[#This Row],[Delta]]<>0,(Tab_Maillons_AFC_219[[#This Row],[CF(delta)]]-Tab_Maillons_AFC_219[[#This Row],[CF moy.]])/Tab_Maillons_AFC_219[[#This Row],[Delta]],1) -> 1 | T48: =IF(Tab_Maillons_AFC_219[[#This Row],[Maillon]]=Tab_Maillons_AFC_219[[#This Row],[Maillon]], INDEX(Tab_Maillons_AFC_219[CF moy.],1), "") -> 209.141031
A49: Total | J49: =IF(COUNTIF(Tab_Maillons_AFC_219[Sens],"S CAO"),INDEX(Tab_Maillons_AFC_219[CF moy.],1),SUM(Tab_Maillons_AFC_219[Moy.])) -> 209.141031 | K49: =SUM(Tab_Maillons_AFC_219[ITx|S|]) -> 30.11352 | L49: =SUM(Tab_Maillons_AFC_219[(ITxS)²]) -> 386.5417117 | M49: =SUM(Tab_Maillons_AFC_219[±δμ adm.]) -> 3.76419 | N49: =SUM(Tab_Maillons_AFC_219[C. Arith.]) -> 1 | O49: =SUM(Tab_Maillons_AFC_219[C. Quad]) -> 1
A51: Type de calculs | C51: Formule | D51: Paramètre | F51: Conditions d'application | K51: IT CF | L51: CF résultante | N51: CFmin | O51: CFmax
A52: Arithmétique | D52: Aucun | F52: Pire des cas, bornes correctes si la cible est proche du maxi ou mini matière. | K52: =Tab_Maillons_AFC_219[[#Totals],[ITx|S|]] -> 30.11352 | L52: =FIXED(Tab_Maillons_AFC_219[[#Totals],[Moy.]],3)&" ± "&FIXED($K$52/2,3) -> 209.141 ± 15.057 | N52: =Tab_Maillons_AFC_219[[#Totals],[Moy.]]-$K$52/2 -> 194.084271 | O52: =Tab_Maillons_AFC_219[[#Totals],[Moy.]]+$K$52/2 -> 224.197791
A53: Quadratique | D53: Aucun | F53: Cible = moyenne, aucun décentrage, ITi indépendants. | K53: =Tab_Maillons_AFC_219[[#Totals],[(ITxS)²]]^0.5 -> 19.66066407 | L53: =FIXED(Tab_Maillons_AFC_219[[#Totals],[Moy.]],3)&" ± "&FIXED($K$53/2,3) -> 209.141 ± 9.830 | N53: =Tab_Maillons_AFC_219[[#Totals],[Moy.]]-$K$53/2 -> 199.310699 | O53: =Tab_Maillons_AFC_219[[#Totals],[Moy.]]+$K$53/2 -> 218.971363
A54: Quadratique Décentré | D54: ± ITi / | E54: 8 | F54: Cible = moyenne avec décentrage possible, ppm ITQD = ppm ITi ; ITi indépendants. | K54: =IF(Decentrage_admis,2*(ABS(Tab_Maillons_AFC_219[[#Totals],[±δμ adm.]])+$K$53/2-$K$53/ABS(Decentrage_admis)),$K$53) -> 22.27387805 | L54: =FIXED(Tab_Maillons_AFC_219[[#Totals],[Moy.]],3)&" ± "&FIXED($K$54/2,3) -> 209.141 ± 11.137 | N54: =Tab_Maillons_AFC_219[[#Totals],[Moy.]]-$K$54/2 -> 198.004092 | O54: =Tab_Maillons_AFC_219[[#Totals],[Moy.]]+$K$54/2 -> 220.27797
A55: Probabiliste U à nσ | D55: n = | E55: 6 | F55: Loi uniforme, ITi identiques, ≥ 5 maillons, ITi indépendants, peut être > ITA. | K55: =$E$55/(2*3^0.5)*$K$53 -> 34.05326908 | L55: =FIXED(Tab_Maillons_AFC_219[[#Totals],[Moy.]],3)&" ± "&FIXED($K$55/2,3) -> 209.141 ± 17.027 | N55: =Tab_Maillons_AFC_219[[#Totals],[Moy.]]-$K$55/2 -> 192.1143965 | O55: =Tab_Maillons_AFC_219[[#Totals],[Moy.]]+$K$55/2 -> 226.1676655
A56: Proba. Monte Carlo | C56: Loi uniforme 1 M de tirages | D56: PPM Cible | E56: 2700 | F56: Ignorance statistique pas de cible ; ITi indépendants. | K56: 26.40512732 | L56: =FIXED(Tab_Maillons_AFC_219[[#Totals],[Moy.]],3)&" ± "&FIXED($K$56/2,3) -> 209.141 ± 13.203 | N56: =Tab_Maillons_AFC_219[[#Totals],[Moy.]]-$K$56/2 -> 195.9384673 | O56: =Tab_Maillons_AFC_219[[#Totals],[Moy.]]+$K$56/2 -> 222.3435947
A57: Gain par rapport à : | C57: Arithmétique | D57: ITi | E57: =IF(MCU_IT_CF,$K$52/MCU_IT_CF-1,0) -> 0.1404421436 | F57: =1+E57 -> 1.140442144 | G57: Cond. Fonct. | I57: =IF($K$52,($K$52-MCU_IT_CF)/$K$52,0) -> 0.1231471008
A58: Commentaires :
A59: Optimisation possible avec : - Coefficient de gain pour le calcul Monte Carlo, - Valeur cible ou Solver pour les autres méthodes de calcul.
